Workbook

Sheet Перечень
A1: 1-я городская детская поликлиника УЗ
A2: IT-Эксперт
A3: TUT.BY МЕДИА ООО
A4: Аванбек ООО | D4: Нажмите правую кнопку мышки, увидите дополнительнй значек Листы.
A5: Аванбек -Строй ООО | D5: Двойной клик на нужном листе.
A6: Авком трейд
A7: Автобусный парк №4 Ф-л
A8: Автовождение ООО
A9: Автопромснаб
A10: Автопромснаб-Спедишн
A11: АвтоРентСервис ЧП
A12: Автотехцентр ВАРДИ ООО
A13: Аг-во по гос.регистрации и зем. Кадастру ППО РУП
A14: Агенство ОфисТайм
A15: Агентство "Минск-Новости"

Sheet ежемесячный
A2: заказные отправления | C2: дата | D2: организация | E2: вид услуги | F2: количество | G2: сумма
A3: простые отправления | C3: 2014-03-12 | D3: Авком трейд | E3: заказные отправления | F3: 2 | G3: 35000
A4: посылки | C4: 2014-03-12 | D4: Авком трейд | E4: посылки | F4: 8 | G4: 25300
A5: мелкие пакеты, ценные письма | C5: 2014-03-12 | D5: Авком трейд | E5: простые отправления | F5: 123 | G5: 125000
A6: EMS внутренние | C6: 2014-03-13 | D6: Авком трейд | E6: EMS внутренние | F6: 1 | G6: 30000
A7: EMS международные | C7: 2014-03-12 | D7: Авком трейд | E7: доп.услуги | F7: 5 | G7: 3500000
A8: доп.услуги | C8: 2014-03-13 | D8: Авком трейд | E8: товары почты | F8: 80 | G8: 326000
A9: товары почты | C9: 2014-03-12 | D9: Авком трейд | E9: мелкие пакеты, ценные письма | F9: 236 | G9: 12500
A10: маркиров. прод. | C10: 2014-03-12 | D10: Авком трейд | E10: переводы | F10: 36 | G10: 283000
A11: переводы | C11: 2014-03-13 | D11: Авком трейд | E11: маркиров. прод. | F11: 12 | G11: 5444444
C12: 2014-03-12 | D12: Авком трейд | E12: простые отправления | F12: 3 | G12: 520
C13: 2014-03-12 | D13: Авком трейд | E13: товары почты | F13: 8 | G13: 520
C14: 2014-03-14 | D14: Авком трейд | E14: EMS внутренние | F14: 6 | G14: 90000
C15: 2014-03-12 | D15: Авком трейд | E15: EMS международные | F15: 9 | G15: 256
C16: 2014-03-12 | D16: Авком трейд | E16: доп.услуги | F16: 6 | G16: 32000
C17: 2014-03-12 | D17: Авком трейд | E17: товары почты | F17: 123 | G17: 555
C18: 2014-03-12 | D18: Авком трейд | E18: маркиров. прод. | F18: 5 | G18: 256000
C19: 2014-03-12 | D19: Авком трейд | E19: переводы | F19: 123 | G19: 563
C20: 2014-03-12 | D20: Авком трейд | E20: переводы | F20: 2 | G20: 256000
C21: 2014-03-12 | D21: Авком трейд | E21: товары почты | F21: 78 | G21: 58888
C22: 2014-03-12 | D22: Авком трейд | E22: маркиров. прод. | F22: 4 | G22: 787870
C23: 2014-03-12 | D23: Авком трейд | E23: заказные отправления | F23: 757 | G23: 75757
C24: 2014-03-12 | D24: Авком трейд | E24: простые отправления | F24: 14 | G24: 75757
C25: 2014-03-12 | D25: Авком трейд | E25: посылки | F25: 4 | G25: 57575
C26: 2014-03-12 | D26: Авком трейд | E26: мелкие пакеты, ценные письма | F26: 242 | G26: 2285
C27: 2014-03-12 | D27: Авком трейд | E27: EMS внутренние | F27: 4 | G27: 78787
C28: 2014-03-12 | D28: Авком трейд | E28: EMS международные | F28: 777 | G28: 77787
C29: 2014-03-12 | D29: Авком трейд | E29: доп.услуги | F29: 4 | G29: 87
C30: Для создания листа из дубликата Авком Трейд, необходимо на ярлычке листа ПКМ--Переместить/копировать--создать коапию перед любым листом.
C31: ПКМ--на ярлычке этого листа--переименовать. Присвоить одно из имен из столбца А этого листа.
C32: На листе Авком Трейд и на других из него сделанных, при смене значения в ячейках Е3:Е17, текущая дата в столбец В проставляется макросом. При необходимости её можно поменять.
C33: На листе Авком Трейд желтым обозначены ячейки в которые вставляются данные из таблицы на этом листе.
C34: По такому принципу нужно сделать до конца таблицы.
C35: После того как в строке 1, На листе Авком Трейд , все необходимые названия будут прописаны , черную заливку можно убрать, белый шрифт вспомогательных ячеек не будет виден.

Sheet отчет БП-5 ФЕВРАЛЬ 2014Г
C1: Приложение 1 | G1: БИЗНЕС ПОЧТА 5 | M1: Бизнес-почта 5
L2: Отчет с 1 по 28 ФЕВРАЛЯ 2014г.
A3: № п/п | B3: Признак | C3: № договора | D3: Дата заключения | E3: Лицевой счет | G3: Наименование организации | H3: заказные отправления | J3: простые отправления | L3: посылки | N3: мелкие пакеты,ценные письма | P3: EMS внутренние | R3: EMS международные | T3: доп.услуги | U3: товары почты | V3: маркиров. прод. | W3: переводы | Y3: Доходы по каждой организации
H4: кол-во | I4: доходы | J4: кол-во | K4: доходы | L4: кол-во | M4: доходы | N4: кол-во | O4: доходы | P4: кол-во | Q4: доходы | R4: кол-во | S4: доходы | T4: доходы | U4: доходы | V4: доходы | W4: кол-во | X4: доходы
A5: 1 | B5: Договор | C5: 22-02-11/237 | D5: 2012-09-04 | E5: 907 | F5: 12 | G5: Автопромснаб | H5: =[2]Автопромснаб!B35 -> 0 | I5: =[2]Автопромснаб!C35 -> 0 | J5: =[2]Автопромснаб!D35 -> 0 | K5: =[2]Автопромснаб!E35 -> 0 | L5: =[2]Автопромснаб!F35 -> 0 | M5: =[2]Автопромснаб!G35 -> 0 | N5: =[2]Автопромснаб!H36 -> 0 | O5: =[2]Автопромснаб!I36 -> 0 | P5: =[2]Автопромснаб!J35 -> 0 | Q5: =[2]Автопромснаб!K35 -> 0 | R5: =[2]Автопромснаб!L35 -> 0 | S5: =[2]Автопромснаб!M35 -> 0 | T5: =[2]Автопромснаб!N35 -> 0 | U5: =[2]Автопромснаб!O35 -> 0 | V5: =[2]Автопромснаб!P35 -> 0 | W5: =[2]Автопромснаб!Q35 -> 0 | X5: =[2]Автопромснаб!R35 -> 0 | Y5: =[2]Автопромснаб!S35 -> 0
A6: 2 | B6: Договор | C6: 22-02-11/238 | D6: 2012-09-04 | E6: 897 | F6: 12 | G6: Автопромснаб-Спедишн | H6: ='[2]Автопромснаб-спедишн'!B35 -> 0 | I6: ='[2]Автопромснаб-спедишн'!C35 -> 0 | J6: ='[2]Автопромснаб-спедишн'!D35 -> 0 | K6: ='[2]Автопромснаб-спедишн'!E35 -> 0 | L6: ='[2]Автопромснаб-спедишн'!F35 -> 0 | M6: ='[2]Автопромснаб-спедишн'!G35 -> 0 | N6: ='[2]Автопромснаб-спедишн'!H36 -> 0 | O6: ='[2]Автопромснаб-спедишн'!I35 -> 0 | P6: ='[2]Автопромснаб-спедишн'!J35 -> 0 | Q6: ='[2]Автопромснаб-спедишн'!K35 -> 0 | R6: ='[2]Автопромснаб-спедишн'!L35 -> 0 | S6: ='[2]Автопромснаб-спедишн'!M35 -> 0 | T6: ='[2]Автопромснаб-спедишн'!N35 -> 0 | U6: ='[2]Автопромснаб-спедишн'!O35 -> 0 | V6: ='[2]Автопромснаб-спедишн'!P35 -> 0 | W6: ='[2]Автопромснаб-спедишн'!Q35 -> 0 | X6: ='[2]Автопромснаб-спедишн'!R35 -> 0 | Y6: ='[2]Автопромснаб-спедишн'!S35 -> 0
A7: 3 | G7: Аг-во по гос.регистрации и зем. Кадастру ППО РУП | H7: ='[2]Аг-во по гос.регистр.и зем.кад.'!B35 -> 0 | I7: ='[2]Аг-во по гос.регистр.и зем.кад.'!C35 -> 0 | J7: ='[2]Аг-во по гос.регистр.и зем.кад.'!D35 -> 0 | K7: ='[2]Аг-во по гос.регистр.и зем.кад.'!E35 -> 0 | L7: ='[2]Аг-во по гос.регистр.и зем.кад.'!F35 -> 0 | M7: ='[2]Аг-во по гос.регистр.и зем.кад.'!G35 -> 0 | N7: ='[2]Аг-во по гос.регистр.и зем.кад.'!H35 -> 0 | O7: ='[2]Аг-во по гос.регистр.и зем.кад.'!I35 -> 0 | P7: ='[2]Аг-во по гос.регистр.и зем.кад.'!J35 -> 0 | Q7: ='[2]Аг-во по гос.регистр.и зем.кад.'!K35 -> 0 | R7: ='[2]Аг-во по гос.регистр.и зем.кад.'!L35 -> 0 | S7: ='[2]Аг-во по гос.регистр.и зем.кад.'!M35 -> 0 | T7: ='[2]Аг-во по гос.регистр.и зем.кад.'!N35 -> 0 | U7: ='[2]Аг-во по гос.регистр.и зем.кад.'!O35 -> 0 | V7: ='[2]Аг-во по гос.регистр.и зем.кад.'!P35 -> 0 | W7: ='[2]Аг-во по гос.регистр.и зем.кад.'!Q35 -> 0 | X7: ='[2]Аг-во по гос.регистр.и зем.кад.'!R35 -> 0 | Y7: ='[2]Аг-во по гос.регистр.и зем.кад.'!S35 -> 0
A8: 4 | B8: Договор | C8: 259 | D8: 2014-02-25 | E8: 2152 | G8: Агролизинг ОАО | H8: =[2]Агролизинг!B35 -> 0 | I8: =[2]Агролизинг!C35 -> 0 | J8: =[2]Агролизинг!D35 -> 0 | K8: =[2]Агролизинг!E35 -> 0 | L8: =[2]Агролизинг!F35 -> 0 | M8: =[2]Агролизинг!G35 -> 0 | N8: =[2]Агролизинг!H35 -> 0 | O8: =[2]Агролизинг!I35 -> 0 | P8: =[2]Агролизинг!J35 -> 0 | Q8: =[2]Агролизинг!K35 -> 0 | R8: =[2]Агролизинг!L35 -> 0 | S8: =[2]Агролизинг!M35 -> 0 | T8: =[2]Агролизинг!N35 -> 0 | U8: =[2]Агролизинг!O35 -> 0 | V8: =[2]Агролизинг!P35 -> 0 | W8: =[2]Агролизинг!Q35 -> 0 | X8: =[2]Агролизинг!R35 -> 0 | Y8: =[2]Агролизинг!S35 -> 0
A9: 5 | B9: Договор | C9: 330 | D9: 2013-03-20 | E9: 1276 | G9: Амеди ЧПУП | H9: =[2]Амеди!B35 -> 0 | I9: =[2]Амеди!C35 -> 0 | J9: =[2]Амеди!D35 -> 0 | K9: =[2]Амеди!E35 -> 0 | L9: =[2]Амеди!F35 -> 0 | M9: =[2]Амеди!G35 -> 0 | N9: =[2]Амеди!H35 -> 0 | O9: =[2]Амеди!I35 -> 0 | P9: =[2]Амеди!J35 -> 0 | Q9: =[2]Амеди!K35 -> 0 | R9: =[2]Амеди!L35 -> 0 | S9: =[2]Амеди!M35 -> 0 | T9: =[2]Амеди!N35 -> 0 | U9: =[2]Амеди!O35 -> 0 | V9: =[2]Амеди!P35 -> 0 | W9: =[2]Амеди!Q35 -> 0 | X9: =[2]Амеди!R35 -> 0 | Y9: =[2]Амеди!S35 -> 0
A10: 6 | G10: Амкодор-Белвар ОАО | H10: ='[2]Амкодор-Белвар'!B35 -> 0 | I10: ='[2]Амкодор-Белвар'!C35 -> 0 | J10: ='[2]Амкодор-Белвар'!D35 -> 0 | K10: ='[2]Амкодор-Белвар'!E35 -> 0 | L10: ='[2]Амкодор-Белвар'!F35 -> 0 | M10: ='[2]Амкодор-Белвар'!G35 -> 0 | N10: ='[2]Амкодор-Белвар'!H35 -> 0 | O10: ='[2]Амкодор-Белвар'!I35 -> 0 | P10: ='[2]Амкодор-Белвар'!J35 -> 0 | Q10: ='[2]Амкодор-Белвар'!K35 -> 0 | R10: ='[2]Амкодор-Белвар'!L35 -> 0 | S10: ='[2]Амкодор-Белвар'!M35 -> 0 | T10: ='[2]Амкодор-Белвар'!N35 -> 0 | U10: ='[2]Амкодор-Белвар'!O35 -> 0 | V10: ='[2]Амкодор-Белвар'!P35 -> 0 | W10: ='[2]Амкодор-Белвар'!Q35 -> 0 | X10: ='[2]Амкодор-Белвар'!R35 -> 0 | Y10: ='[2]Амкодор-Белвар'!S35 -> 0
A11: 355 | G11: Сигнал-+ | H11: ='[2]Сигнал+'!B35 -> 0 | I11: ='[2]Сигнал+'!C35 -> 0 | J11: ='[2]Сигнал+'!D35 -> 0 | K11: ='[2]Сигнал+'!E35 -> 0 | L11: ='[2]Сигнал+'!F35 -> 0 | M11: ='[2]Сигнал+'!G35 -> 0 | N11: ='[2]Сигнал+'!H35 -> 0 | O11: ='[2]Сигнал+'!I35 -> 0 | P11: ='[2]Сигнал+'!J35 -> 0 | Q11: ='[2]Сигнал+'!K35 -> 0 | R11: ='[2]Сигнал+'!L35 -> 0 | S11: ='[2]Сигнал+'!M35 -> 0 | T11: ='[2]Сигнал+'!N35 -> 0 | U11: ='[2]Сигнал+'!O35 -> 0 | V11: ='[2]Сигнал+'!P35 -> 0 | W11: ='[2]Сигнал+'!Q35 -> 0 | X11: ='[2]Сигнал+'!R35 -> 0 | Y11: ='[2]Сигнал+'!S35 -> 0
A12: 356 | G12: АйЭйчЭсГлобал | H12: =[2]АйЭйчЭсГлобал!B35 -> 0 | I12: =[2]АйЭйчЭсГлобал!C35 -> 0 | J12: =[2]АйЭйчЭсГлобал!D35 -> 0 | K12: =[2]АйЭйчЭсГлобал!E35 -> 0 | L12: =[2]АйЭйчЭсГлобал!F35 -> 0 | M12: =[2]АйЭйчЭсГлобал!G35 -> 0 | N12: =[2]АйЭйчЭсГлобал!H35 -> 0 | O12: =[2]АйЭйчЭсГлобал!I35 -> 0 | P12: =[2]АйЭйчЭсГлобал!J35 -> 0 | Q12: =[2]АйЭйчЭсГлобал!K35 -> 0 | R12: =[2]АйЭйчЭсГлобал!L35 -> 0 | S12: =[2]АйЭйчЭсГлобал!M35 -> 0 | T12: =[2]АйЭйчЭсГлобал!N35 -> 0 | U12: =[2]АйЭйчЭсГлобал!O35 -> 0 | V12: =[2]АйЭйчЭсГлобал!P35 -> 0 | W12: =[2]АйЭйчЭсГлобал!Q35 -> 0 | X12: =[2]АйЭйчЭсГлобал!R35 -> 0 | Y12: =[2]АйЭйчЭсГлобал!S35 -> 0
A13: 357 | G13: БелвнешРеклама | H13: =[2]БелвнешРеклама!B35 -> 0 | I13: =[2]БелвнешРеклама!C35 -> 0 | J13: =[2]БелвнешРеклама!D35 -> 0 | K13: =[2]БелвнешРеклама!E35 -> 0 | L13: =[2]БелвнешРеклама!F35 -> 0 | M13: =[2]БелвнешРеклама!G35 -> 0 | N13: =[2]БелвнешРеклама!H35 -> 0 | O13: =[2]БелвнешРеклама!I35 -> 0 | P13: =[2]БелвнешРеклама!J35 -> 0 | Q13: =[2]БелвнешРеклама!K35 -> 0 | R13: =[2]БелвнешРеклама!L35 -> 0 | S13: =[2]БелвнешРеклама!M35 -> 0 | T13: =[2]БелвнешРеклама!N35 -> 0 | U13: =[2]БелвнешРеклама!O35 -> 0 | V13: =[2]БелвнешРеклама!P35 -> 0 | W13: =[2]БелвнешРеклама!Q35 -> 0 | X13: =[2]БелвнешРеклама!R35 -> 0 | Y13: =[2]БелвнешРеклама!S35 -> 0
A14: 358 | G14: Рапуль-Бел | H14: ='[2]Рапуль-Бел'!B35 -> 0 | I14: ='[2]Рапуль-Бел'!C35 -> 0 | J14: ='[2]Рапуль-Бел'!D35 -> 0 | K14: ='[2]Рапуль-Бел'!E35 -> 0 | L14: ='[2]Рапуль-Бел'!F35 -> 0 | M14: ='[2]Рапуль-Бел'!G35 -> 0 | N14: ='[2]Рапуль-Бел'!H35 -> 0 | O14: ='[2]Рапуль-Бел'!I35 -> 0 | P14: ='[2]Рапуль-Бел'!J35 -> 0 | Q14: ='[2]Рапуль-Бел'!K35 -> 0 | R14: ='[2]Рапуль-Бел'!L35 -> 0 | S14: ='[2]Рапуль-Бел'!M35 -> 0 | T14: ='[2]Рапуль-Бел'!N35 -> 0 | U14: ='[2]Рапуль-Бел'!O35 -> 0 | V14: ='[2]Рапуль-Бел'!P35 -> 0 | W14: ='[2]Рапуль-Бел'!Q35 -> 0 | X14: ='[2]Рапуль-Бел'!R35 -> 0 | Y14: ='[2]Рапуль-Бел'!S35 -> 0
A15: 359 | B15: Договор | G15: Профистиль | H15: =[2]Профистиль!B35 -> 0 | I15: =[2]Профистиль!C35 -> 0 | J15: =[2]Профистиль!D35 -> 0 | K15: =[2]Профистиль!E35 -> 0 | L15: =[2]Профистиль!F35 -> 0 | M15: =[2]Профистиль!G35 -> 0 | N15: =[2]Профистиль!H35 -> 0 | O15: =[2]Профистиль!I35 -> 0 | P15: =[2]Профистиль!J35 -> 0 | Q15: =[2]Профистиль!K35 -> 0 | R15: =[2]Профистиль!L35 -> 0 | S15: =[2]Профистиль!M35 -> 0 | T15: =[2]Профистиль!N35 -> 0 | U15: =[2]Профистиль!O35 -> 0 | V15: =[2]Профистиль!P35 -> 0 | W15: =[2]Профистиль!Q35 -> 0 | X15: =[2]Профистиль!R35 -> 0 | Y15: =[2]Профистиль!S35 -> 0
A16: 360 | B16: Договор | G16: Кровля дизайн | H16: ='[2]Кровля дизайн'!B35 -> 0 | I16: ='[2]Кровля дизайн'!C35 -> 0 | J16: ='[2]Кровля дизайн'!D35 -> 0 | K16: ='[2]Кровля дизайн'!E35 -> 0 | L16: ='[2]Кровля дизайн'!F35 -> 0 | M16: ='[2]Кровля дизайн'!G35 -> 0 | N16: ='[2]Кровля дизайн'!H35 -> 0 | O16: ='[2]Кровля дизайн'!I35 -> 0 | P16: ='[2]Кровля дизайн'!J35 -> 0 | Q16: ='[2]Кровля дизайн'!K35 -> 0 | R16: ='[2]Кровля дизайн'!L35 -> 0 | S16: ='[2]Кровля дизайн'!M35 -> 0 | T16: ='[2]Кровля дизайн'!N35 -> 0 | U16: ='[2]Кровля дизайн'!O35 -> 0 | V16: ='[2]Кровля дизайн'!P35 -> 0 | W16: ='[2]Кровля дизайн'!Q35 -> 0 | X16: ='[2]Кровля дизайн'!R35 -> 0 | Y16: ='[2]Кровля дизайн'!S35 -> 0
A17: 361 | B17: Договор | C17: 676 | D17: 2013-09-05 | E17: 1648 | G17: Альтер Дом | H17: ='[2]Альтер Дом'!B35 -> 0 | I17: ='[2]Альтер Дом'!C35 -> 0 | J17: ='[2]Альтер Дом'!D35 -> 0 | K17: ='[2]Альтер Дом'!E35 -> 0 | L17: ='[2]Альтер Дом'!F35 -> 0 | M17: ='[2]Альтер Дом'!G35 -> 0 | N17: ='[2]Альтер Дом'!H35 -> 0 | O17: ='[2]Альтер Дом'!I35 -> 0 | P17: ='[2]Альтер Дом'!J35 -> 0 | Q17: ='[2]Альтер Дом'!K35 -> 0 | R17: ='[2]Альтер Дом'!L35 -> 0 | S17: ='[2]Альтер Дом'!M35 -> 0 | T17: ='[2]Альтер Дом'!N35 -> 0 | U17: ='[2]Альтер Дом'!O35 -> 0 | V17: ='[2]Альтер Дом'!P35 -> 0 | W17: ='[2]Альтер Дом'!Q35 -> 0 | X17: ='[2]Альтер Дом'!R35 -> 0 | Y17: ='[2]Альтер Дом'!S35 -> 0
A18: 362 | B18: Договор | C18: 693 | D18: 2013-09-13 | E18: 1665 | G18: ГардаТранс | H18: =[2]ГардаТранс!B35 -> 0 | I18: =[2]ГардаТранс!C35 -> 0 | J18: =[2]ГардаТранс!D35 -> 0 | K18: =[2]ГардаТранс!E35 -> 0 | L18: =[2]ГардаТранс!F35 -> 0 | M18: =[2]ГардаТранс!G35 -> 0 | N18: =[2]ГардаТранс!H35 -> 0 | O18: =[2]ГардаТранс!I35 -> 0 | P18: =[2]ГардаТранс!J35 -> 0 | Q18: =[2]ГардаТранс!K35 -> 0 | R18: =[2]ГардаТранс!L35 -> 0 | S18: =[2]ГардаТранс!M35 -> 0 | T18: =[2]ГардаТранс!N35 -> 0 | U18: =[2]ГардаТранс!O35 -> 0 | V18: =[2]ГардаТранс!P35 -> 0 | W18: =[2]ГардаТранс!Q35 -> 0 | X18: =[2]ГардаТранс!R35 -> 0 | Y18: =[2]ГардаТранс!S35 -> 0
A19: 363 | B19: Франкир | G19: Агенство ОфисТайм | H19: ='[2]Аг-тво ОфисТайм'!B35 -> 0 | I19: ='[2]Аг-тво ОфисТайм'!C35 -> 0 | J19: ='[2]Аг-тво ОфисТайм'!D35 -> 0 | K19: ='[2]Аг-тво ОфисТайм'!E35 -> 0 | L19: ='[2]Аг-тво ОфисТайм'!F35 -> 0 | M19: ='[2]Аг-тво ОфисТайм'!G35 -> 0 | N19: ='[2]Аг-тво ОфисТайм'!H35 -> 0 | O19: ='[2]Аг-тво ОфисТайм'!I35 -> 0 | P19: ='[2]Аг-тво ОфисТайм'!J35 -> 0 | Q19: ='[2]Аг-тво ОфисТайм'!K35 -> 0 | R19: ='[2]Аг-тво ОфисТайм'!L35 -> 0 | S19: ='[2]Аг-тво ОфисТайм'!M35 -> 0 | T19: ='[2]Аг-тво ОфисТайм'!N35 -> 0 | U19: ='[2]Аг-тво ОфисТайм'!O35 -> 0 | V19: ='[2]Аг-тво ОфисТайм'!P35 -> 0 | W19: ='[2]Аг-тво ОфисТайм'!Q35 -> 0 | X19: ='[2]Аг-тво ОфисТайм'!R35 -> 0 | Y19: ='[2]Аг-тво ОфисТайм'!S35 -> 0
A20: 364 | B20: Договор | C20: 22-02-09/356 | D20: 2013-09-27 | E20: 1799 | G20: Вогез Энерго | H20: =[2]ВогезЭнерго!B35 -> 0 | I20: =[2]ВогезЭнерго!C35 -> 0 | J20: =[2]ВогезЭнерго!D35 -> 0 | K20: =[2]ВогезЭнерго!E35 -> 0 | L20: =[2]ВогезЭнерго!F35 -> 0 | M20: =[2]ВогезЭнерго!G35 -> 0 | N20: =[2]ВогезЭнерго!H35 -> 0 | O20: =[2]ВогезЭнерго!I35 -> 0 | P20: =[2]ВогезЭнерго!J35 -> 0 | Q20: =[2]ВогезЭнерго!K35 -> 0 | R20: =[2]ВогезЭнерго!L35 -> 0 | S20: =[2]ВогезЭнерго!M35 -> 0 | T20: =[2]ВогезЭнерго!N35 -> 0 | U20: =[2]ВогезЭнерго!O35 -> 0 | V20: =[2]ВогезЭнерго!P35 -> 0 | W20: =[2]ВогезЭнерго!Q35 -> 0 | X20: =[2]ВогезЭнерго!R35 -> 0 | Y20: =[2]ВогезЭнерго!S35 -> 0
A21: 365 | B21: Договор | G21: МетлаBY | H21: =[2]МетлаBY!B35 -> 0 | I21: =[2]МетлаBY!C35 -> 0 | J21: =[2]МетлаBY!D35 -> 0 | K21: =[2]МетлаBY!E35 -> 0 | L21: =[2]МетлаBY!F35 -> 0 | M21: =[2]МетлаBY!G35 -> 0 | N21: =[2]МетлаBY!H35 -> 0 | O21: =[2]МетлаBY!I35 -> 0 | P21: =[2]МетлаBY!J35 -> 0 | Q21: =[2]МетлаBY!K35 -> 0 | R21: =[2]МетлаBY!L35 -> 0 | S21: =[2]МетлаBY!M35 -> 0 | T21: =[2]МетлаBY!N35 -> 0 | U21: =[2]МетлаBY!O35 -> 0 | V21: =[2]МетлаBY!P35 -> 0 | W21: =[2]МетлаBY!Q35 -> 0 | X21: =[2]МетлаBY!R35 -> 0 | Y21: =[2]МетлаBY!S35 -> 0
A22: 366 | B22: Франкир | G22: Белхозторг | H22: =[2]Белхозторг!B35 -> 0 | I22: =[2]Белхозторг!C35 -> 0 | J22: =[2]Белхозторг!D35 -> 0 | K22: =[2]Белхозторг!E35 -> 0 | L22: =[2]Белхозторг!F35 -> 0 | M22: =[2]Белхозторг!G35 -> 0 | N22: =[2]Белхозторг!H35 -> 0 | O22: =[2]Белхозторг!I35 -> 0 | P22: =[2]Белхозторг!J35 -> 0 | Q22: =[2]Белхозторг!K35 -> 0 | R22: =[2]Белхозторг!L35 -> 0 | S22: =[2]Белхозторг!M35 -> 0 | T22: =[2]Белхозторг!N35 -> 0 | U22: =[2]Белхозторг!O35 -> 0 | V22: =[2]Белхозторг!P35 -> 0 | W22: =[2]Белхозторг!Q35 -> 0 | X22: =[2]Белхозторг!R35 -> 0 | Y22: =[2]Белхозторг!S35 -> 0
A23: 367 | B23: Договор | G23: Ванчик СтройТорг | H23: =[2]ВанчикСтройТорг!B35 -> 0 | I23: =[2]ВанчикСтройТорг!C35 -> 0 | J23: =[2]ВанчикСтройТорг!D35 -> 0 | K23: =[2]ВанчикСтройТорг!E35 -> 0 | L23: =[2]ВанчикСтройТорг!F35 -> 0 | M23: =[2]ВанчикСтройТорг!G35 -> 0 | N23: =[2]ВанчикСтройТорг!H35 -> 0 | O23: =[2]ВанчикСтройТорг!I35 -> 0 | P23: =[2]ВанчикСтройТорг!J35 -> 0 | Q23: =[2]ВанчикСтройТорг!K35 -> 0 | R23: =[2]ВанчикСтройТорг!L35 -> 0 | S23: =[2]ВанчикСтройТорг!M35 -> 0 | T23: =[2]ВанчикСтройТорг!N35 -> 0 | U23: =[2]ВанчикСтройТорг!O35 -> 0 | V23: =[2]ВанчикСтройТорг!P35 -> 0 | W23: =[2]ВанчикСтройТорг!Q35 -> 0 | X23: =[2]ВанчикСтройТорг!R35 -> 0 | Y23: =[2]ВанчикСтройТорг!S35 -> 0
A24: 368 | B24: Договор | G24: АНК-групп | H24: ='[2]АНК-групп'!B35 -> 0 | I24: ='[2]АНК-групп'!C35 -> 0 | J24: ='[2]АНК-групп'!D35 -> 0 | K24: ='[2]АНК-групп'!E35 -> 0 | L24: ='[2]АНК-групп'!F35 -> 0 | M24: ='[2]АНК-групп'!G35 -> 0 | N24: ='[2]АНК-групп'!H35 -> 0 | O24: ='[2]АНК-групп'!I35 -> 0 | P24: ='[2]АНК-групп'!J35 -> 0 | Q24: ='[2]АНК-групп'!K35 -> 0 | R24: ='[2]АНК-групп'!L35 -> 0 | S24: ='[2]АНК-групп'!M35 -> 0 | T24: ='[2]АНК-групп'!N35 -> 0 | U24: ='[2]АНК-групп'!O35 -> 0 | V24: ='[2]АНК-групп'!P35 -> 0 | W24: ='[2]АНК-групп'!Q35 -> 0 | X24: ='[2]АНК-групп'!R35 -> 0 | Y24: ='[2]АНК-групп'!S35 -> 0
A25: 369 | B25: Франкир | G25: Скарб-Био | H25: ='[2]Скарб Био'!B35 -> 0 | I25: ='[2]Скарб Био'!C35 -> 0 | J25: ='[2]Скарб Био'!D35 -> 0 | K25: ='[2]Скарб Био'!E35 -> 0 | L25: ='[2]Скарб Био'!F35 -> 0 | M25: ='[2]Скарб Био'!G35 -> 0 | N25: ='[2]Скарб Био'!H35 -> 0 | O25: ='[2]Скарб Био'!I35 -> 0 | P25: ='[2]Скарб Био'!J35 -> 0 | Q25: ='[2]Скарб Био'!K35 -> 0 | R25: ='[2]Скарб Био'!L35 -> 0 | S25: ='[2]Скарб Био'!M35 -> 0 | T25: ='[2]Скарб Био'!N35 -> 0 | U25: ='[2]Скарб Био'!O35 -> 0 | V25: ='[2]Скарб Био'!P35 -> 0 | W25: ='[2]Скарб Био'!Q35 -> 0 | X25: ='[2]Скарб Био'!R35 -> 0 | Y25: ='[2]Скарб Био'!S35 -> 0
A26: 370 | B26: Договор | G26: Энциклопедикс | H26: =[2]Энциклопедикс!B35 -> 0 | I26: =[2]Энциклопедикс!C35 -> 0 | J26: =[2]Энциклопедикс!D35 -> 0 | K26: =[2]Энциклопедикс!E35 -> 0 | L26: =[2]Энциклопедикс!F35 -> 0 | M26: =[2]Энциклопедикс!G35 -> 0 | N26: =[2]Энциклопедикс!H35 -> 0 | O26: =[2]Энциклопедикс!I35 -> 0 | P26: =[2]Энциклопедикс!J35 -> 0 | Q26: =[2]Энциклопедикс!K35 -> 0 | R26: =[2]Энциклопедикс!L35 -> 0 | S26: =[2]Энциклопедикс!M35 -> 0 | T26: =[2]Энциклопедикс!N35 -> 0 | U26: =[2]Энциклопедикс!O35 -> 0 | V26: =[2]Энциклопедикс!P35 -> 0 | W26: =[2]Энциклопедикс!Q35 -> 0 | X26: =[2]Энциклопедикс!R35 -> 0 | Y26: =[2]Энциклопедикс!S35 -> 0
A27: 371 | B27: Франкир | G27: Агроинвестконсалтинг | H27: =[2]Агроинвестконсалтинг!B35 -> 0 | I27: =[2]Агроинвестконсалтинг!C35 -> 0 | J27: =[2]Агроинвестконсалтинг!D35 -> 0 | K27: =[2]Агроинвестконсалтинг!E35 -> 0 | L27: =[2]Агроинвестконсалтинг!F35 -> 0 | M27: =[2]Агроинвестконсалтинг!G35 -> 0 | N27: =[2]Агроинвестконсалтинг!H35 -> 0 | O27: =[2]Агроинвестконсалтинг!I35 -> 0 | P27: =[2]Агроинвестконсалтинг!J35 -> 0 | Q27: =[2]Агроинвестконсалтинг!K35 -> 0 | R27: =[2]Агроинвестконсалтинг!L35 -> 0 | S27: =[2]Агроинвестконсалтинг!M35 -> 0 | T27: =[2]Агроинвестконсалтинг!N35 -> 0 | U27: =[2]Агроинвестконсалтинг!O35 -> 0 | V27: =[2]Агроинвестконсалтинг!P35 -> 0 | W27: =[2]Агроинвестконсалтинг!Q35 -> 0 | X27: =[2]Агроинвестконсалтинг!R35 -> 0 | Y27: =[2]Агроинвестконсалтинг!S35 -> 0
A28: 372 | B28: Франкир | G28: Представительство Роллингер Логистик | H28: ='[2]Роллингер Логистик Пр-во'!B35 -> 0 | I28: ='[2]Роллингер Логистик Пр-во'!C35 -> 0 | J28: ='[2]Роллингер Логистик Пр-во'!D35 -> 0 | K28: ='[2]Роллингер Логистик Пр-во'!E35 -> 0 | L28: ='[2]Роллингер Логистик Пр-во'!F35 -> 0 | M28: ='[2]Роллингер Логистик Пр-во'!G35 -> 0 | N28: ='[2]Роллингер Логистик Пр-во'!H35 -> 0 | O28: ='[2]Роллингер Логистик Пр-во'!I35 -> 0 | P28: ='[2]Роллингер Логистик Пр-во'!J35 -> 0 | Q28: ='[2]Роллингер Логистик Пр-во'!K35 -> 0 | R28: ='[2]Роллингер Логистик Пр-во'!L35 -> 0 | S28: ='[2]Роллингер Логистик Пр-во'!M35 -> 0 | T28: ='[2]Роллингер Логистик Пр-во'!N35 -> 0 | U28: ='[2]Роллингер Логистик Пр-во'!O35 -> 0 | V28: ='[2]Роллингер Логистик Пр-во'!P35 -> 0 | W28: ='[2]Роллингер Логистик Пр-во'!Q35 -> 0 | X28: ='[2]Роллингер Логистик Пр-во'!R35 -> 0 | Y28: ='[2]Роллингер Логистик Пр-во'!S35 -> 0
A29: 373 | B29: Договор | C29: 22-02-09/30 | D29: 2013-01-23 | E29: 1128 | F29: 4 | G29: Ветеринарный ЦЕНТР | H29: =[2]Вет.ЦЕНТР!B35 -> 0 | I29: =[2]Вет.ЦЕНТР!C35 -> 0 | J29: =[2]Вет.ЦЕНТР!D35 -> 0 | K29: =[2]Вет.ЦЕНТР!E35 -> 0 | L29: =[2]Вет.ЦЕНТР!F35 -> 0 | M29: =[2]Вет.ЦЕНТР!G35 -> 0 | N29: =[2]Вет.ЦЕНТР!H35 -> 0 | O29: =[2]Вет.ЦЕНТР!I35 -> 0 | P29: =[2]Вет.ЦЕНТР!J35 -> 0 | Q29: =[2]Вет.ЦЕНТР!K35 -> 0 | R29: =[2]Вет.ЦЕНТР!L35 -> 0 | S29: =[2]Вет.ЦЕНТР!M35 -> 0 | T29: =[2]Вет.ЦЕНТР!N35 -> 0 | U29: =[2]Вет.ЦЕНТР!O35 -> 0 | V29: =[2]Вет.ЦЕНТР!P35 -> 0 | W29: =[2]Вет.ЦЕНТР!Q35 -> 0 | X29: =[2]Вет.ЦЕНТР!R35 -> 0 | Y29: =[2]Вет.ЦЕНТР!S35 -> 0
A30: 374 | B30: Договор | C30: 22-02-11/47 | D30: 2012-04-09 | E30: 774 | F30: 29 | G30: УмкаБелМед | H30: =[2]УмкаБелМед!B35 -> 0 | I30: =[2]УмкаБелМед!C35 -> 0 | J30: =[2]УмкаБелМед!D35 -> 0 | K30: =[2]УмкаБелМед!E35 -> 0 | L30: =[2]УмкаБелМед!F35 -> 0 | M30: =[2]УмкаБелМед!G35 -> 0 | N30: =[2]УмкаБелМед!H35 -> 0 | O30: =[2]УмкаБелМед!I35 -> 0 | P30: =[2]УмкаБелМед!J35 -> 0 | Q30: =[2]УмкаБелМед!K35 -> 0 | R30: =[2]УмкаБелМед!L35 -> 0 | S30: =[2]УмкаБелМед!M35 -> 0 | T30: =[2]УмкаБелМед!N35 -> 0 | U30: =[2]УмкаБелМед!O35 -> 0 | V30: =[2]УмкаБелМед!P35 -> 0 | W30: =[2]УмкаБелМед!Q35 -> 0 | X30: =[2]УмкаБелМед!R35 -> 0 | Y30: =[2]УмкаБелМед!S35 -> 0
A31: 375 | B31: Договор | C31: 604 | D31: 2013-08-02 | E31: 1566 | F31: 90 | G31: Стантек ООО | H31: =[2]Стантек!B35 -> 0 | I31: =[2]Стантек!C35 -> 0 | J31: =[2]Стантек!D35 -> 0 | K31: =[2]Стантек!E35 -> 0 | L31: =[2]Стантек!F35 -> 0 | M31: =[2]Стантек!G35 -> 0 | N31: =[2]Стантек!H35 -> 0 | O31: =[2]Стантек!I35 -> 0 | P31: =[2]Стантек!J35 -> 0 | Q31: =[2]Стантек!K35 -> 0 | R31: =[2]Стантек!L35 -> 0 | S31: =[2]Стантек!M35 -> 0 | T31: =[2]Стантек!N35 -> 0 | U31: =[2]Стантек!O35 -> 0 | V31: =[2]Стантек!P35 -> 0 | W31: =[2]Стантек!Q35 -> 0 | X31: =[2]Стантек!R35 -> 0 | Y31: =[2]Стантек!S35 -> 0
A32: 376 | B32: Договор | C32: 597 | D32: 2013-08-01 | E32: 1550 | F32: 90 | G32: Ситек Комплект ООО | H32: ='[2]Ситек Комплект'!B35 -> 0 | I32: ='[2]Ситек Комплект'!C35 -> 0 | J32: ='[2]Ситек Комплект'!D35 -> 0 | K32: ='[2]Ситек Комплект'!E35 -> 0 | L32: ='[2]Ситек Комплект'!F35 -> 0 | M32: ='[2]Ситек Комплект'!G35 -> 0 | N32: ='[2]Ситек Комплект'!H35 -> 0 | O32: ='[2]Ситек Комплект'!I35 -> 0 | P32: ='[2]Ситек Комплект'!J35 -> 0 | Q32: ='[2]Ситек Комплект'!K35 -> 0 | R32: ='[2]Ситек Комплект'!L35 -> 0 | S32: ='[2]Ситек Комплект'!M35 -> 0 | T32: ='[2]Ситек Комплект'!N35 -> 0 | U32: ='[2]Ситек Комплект'!O35 -> 0 | V32: ='[2]Ситек Комплект'!P35 -> 0 | W32: ='[2]Ситек Комплект'!Q35 -> 0 | X32: ='[2]Ситек Комплект'!R35 -> 0 | Y32: ='[2]Ситек Комплект'!S35 -> 0
A33: 377 | B33: Договор | C33: 22-02-09/324 | D33: 2013-08-29 | E33: 1664 | G33: АПЛ ОДО | H33: =[2]АПЛ!B35 -> 0 | I33: =[2]АПЛ!C35 -> 0 | J33: =[2]АПЛ!D35 -> 0 | K33: =[2]АПЛ!E35 -> 0 | L33: =[2]АПЛ!F35 -> 0 | M33: =[2]АПЛ!G35 -> 0 | N33: =[2]АПЛ!H35 -> 0 | O33: =[2]АПЛ!I35 -> 0 | P33: =[2]АПЛ!J35 -> 0 | Q33: =[2]АПЛ!K35 -> 0 | R33: =[2]АПЛ!L35 -> 0 | S33: =[2]АПЛ!M35 -> 0 | T33: =[2]АПЛ!N35 -> 0 | U33: =[2]АПЛ!O35 -> 0 | V33: =[2]АПЛ!P35 -> 0 | W33: =[2]АПЛ!Q35 -> 0 | X33: =[2]АПЛ!R35 -> 0 | Y33: =[2]АПЛ!S35 -> 0
A34: 378 | B34: Договор | C34: 803 | D34: 2013-10-25 | E34: 1904 | G34: БелАПП Ассоциация | H34: =[2]БелАПП!B35 -> 0 | I34: =[2]БелАПП!C35 -> 0 | J34: =[2]БелАПП!D35 -> 0 | K34: =[2]БелАПП!E35 -> 0 | L34: =[2]БелАПП!F35 -> 0 | M34: =[2]БелАПП!G35 -> 0 | N34: =[2]БелАПП!H35 -> 0 | O34: =[2]БелАПП!I35 -> 0 | P34: =[2]БелАПП!J35 -> 0 | Q34: =[2]БелАПП!K35 -> 0 | R34: =[2]БелАПП!L35 -> 0 | S34: =[2]БелАПП!M35 -> 0 | T34: =[2]БелАПП!N35 -> 0 | U34: =[2]БелАПП!O35 -> 0 | V34: =[2]БелАПП!P35 -> 0 | W34: =[2]БелАПП!Q35 -> 0 | X34: =[2]БелАПП!R35 -> 0 | Y34: =[2]БелАПП!S35 -> 0
A35: 379 | B35: Договор | C35: 22-02-09/352 | D35: 2013-11-27 | E35: 1762 | G35: Дарелина СООО | H35: =[2]Дарелина!B35 -> 0 | I35: =[2]Дарелина!C35 -> 0 | J35: =[2]Дарелина!D35 -> 0 | K35: =[2]Дарелина!E35 -> 0 | L35: =[2]Дарелина!F35 -> 0 | M35: =[2]Дарелина!G35 -> 0 | N35: =[2]Дарелина!H35 -> 0 | O35: =[2]Дарелина!I35 -> 0 | P35: =[2]Дарелина!J35 -> 0 | Q35: =[2]Дарелина!K35 -> 0 | R35: =[2]Дарелина!L35 -> 0 | S35: =[2]Дарелина!M35 -> 0 | T35: =[2]Дарелина!N35 -> 0 | U35: =[2]Дарелина!O35 -> 0 | V35: =[2]Дарелина!P35 -> 0 | W35: =[2]Дарелина!Q35 -> 0 | X35: =[2]Дарелина!R35 -> 0 | Y35: =[2]Дарелина!S35 -> 0
A36: 380 | B36: Договор | C36: 402 | D36: 2013-07-09 | E36: 1632 | G36: Дилекстранс | H36: =[2]Дилектстранс!B35 -> 0 | I36: =[2]Дилектстранс!C35 -> 0 | J36: =[2]Дилектстранс!D35 -> 0 | K36: =[2]Дилектстранс!E35 -> 0 | L36: =[2]Дилектстранс!F35 -> 0 | M36: =[2]Дилектстранс!G35 -> 0 | N36: =[2]Дилектстранс!H35 -> 0 | O36: =[2]Дилектстранс!I35 -> 0 | P36: =[2]Дилектстранс!J35 -> 0 | Q36: =[2]Дилектстранс!K35 -> 0 | R36: =[2]Дилектстранс!L35 -> 0 | S36: =[2]Дилектстранс!M35 -> 0 | T36: =[2]Дилектстранс!N35 -> 0 | U36: =[2]Дилектстранс!O35 -> 0 | V36: =[2]Дилектстранс!P35 -> 0 | W36: =[2]Дилектстранс!Q35 -> 0 | X36: =[2]Дилектстранс!R35 -> 0 | Y36: =[2]Дилектстранс!S35 -> 0
A37: 381 | B37: Договор | G37: Ратуспатент | H37: =[2]Ратуспатент!B35 -> 0 | I37: =[2]Ратуспатент!C35 -> 0 | J37: =[2]Ратуспатент!D35 -> 0 | K37: =[2]Ратуспатент!E35 -> 0 | L37: =[2]Ратуспатент!F35 -> 0 | M37: =[2]Ратуспатент!G35 -> 0 | N37: =[2]Ратуспатент!H35 -> 0 | O37: =[2]Ратуспатент!I35 -> 0 | P37: =[2]Ратуспатент!J35 -> 0 | Q37: =[2]Ратуспатент!K35 -> 0 | R37: =[2]Ратуспатент!L35 -> 0 | S37: =[2]Ратуспатент!M35 -> 0 | T37: =[2]Ратуспатент!N35 -> 0 | U37: =[2]Ратуспатент!O35 -> 0 | V37: =[2]Ратуспатент!P35 -> 0 | W37: =[2]Ратуспатент!Q35 -> 0 | X37: =[2]Ратуспатент!R35 -> 0 | Y37: =[2]Ратуспатент!S35 -> 0
A38: 382 | B38: Договор | G38: Белый Град | H38: ='[2]Белый Град'!B35 -> 0 | I38: ='[2]Белый Град'!C35 -> 0 | J38: ='[2]Белый Град'!D35 -> 0 | K38: ='[2]Белый Град'!E35 -> 0 | L38: ='[2]Белый Град'!F35 -> 0 | M38: ='[2]Белый Град'!G35 -> 0 | N38: ='[2]Белый Град'!H35 -> 0 | O38: ='[2]Белый Град'!I35 -> 0 | P38: ='[2]Белый Град'!J35 -> 0 | Q38: ='[2]Белый Град'!K35 -> 0 | R38: ='[2]Белый Град'!L35 -> 0 | S38: ='[2]Белый Град'!M35 -> 0 | T38: ='[2]Белый Град'!N35 -> 0 | U38: ='[2]Белый Град'!O35 -> 0 | V38: ='[2]Белый Град'!P35 -> 0 | W38: ='[2]Белый Град'!Q35 -> 0 | X38: ='[2]Белый Град'!R35 -> 0 | Y38: ='[2]Белый Град'!S35 -> 0
A39: 383 | B39: Договор | G39: Чулочная Торговая компания | H39: ='[2]Чулочная торг компания'!B35 -> 0 | I39: ='[2]Чулочная торг компания'!C35 -> 0 | J39: ='[2]Чулочная торг компания'!D35 -> 0 | K39: ='[2]Чулочная торг компания'!E35 -> 0 | L39: ='[2]Чулочная торг компания'!F35 -> 0 | M39: ='[2]Чулочная торг компания'!G35 -> 0 | N39: ='[2]Чулочная торг компания'!H35 -> 0 | O39: ='[2]Чулочная торг компания'!I35 -> 0 | P39: ='[2]Чулочная торг компания'!J35 -> 0 | Q39: ='[2]Чулочная торг компания'!K35 -> 0 | R39: ='[2]Чулочная торг компания'!L35 -> 0 | S39: ='[2]Чулочная торг компания'!M35 -> 0 | T39: ='[2]Чулочная торг компания'!N35 -> 0 | U39: ='[2]Чулочная торг компания'!O35 -> 0 | V39: ='[2]Чулочная торг компания'!P35 -> 0 | W39: ='[2]Чулочная торг компания'!Q35 -> 0 | X39: ='[2]Чулочная торг компания'!R35 -> 0 | Y39: ='[2]Чулочная торг компания'!S35 -> 0
A40: 384 | G40: Шиков ИП | H40: ='[2]Шиков ИП'!B35 -> 0 | I40: ='[2]Шиков ИП'!C35 -> 0 | J40: ='[2]Шиков ИП'!D35 -> 0 | K40: ='[2]Шиков ИП'!E35 -> 0 | L40: ='[2]Шиков ИП'!F35 -> 0 | M40: ='[2]Шиков ИП'!G35 -> 0 | N40: ='[2]Шиков ИП'!H35 -> 0 | O40: ='[2]Шиков ИП'!I35 -> 0 | P40: ='[2]Шиков ИП'!J35 -> 0 | Q40: ='[2]Шиков ИП'!K35 -> 0 | R40: ='[2]Шиков ИП'!L35 -> 0 | S40: ='[2]Шиков ИП'!M35 -> 0 | T40: ='[2]Шиков ИП'!N35 -> 0 | U40: ='[2]Шиков ИП'!O35 -> 0 | V40: ='[2]Шиков ИП'!P35 -> 0 | W40: ='[2]Шиков ИП'!Q35 -> 0 | X40: ='[2]Шиков ИП'!R35 -> 0 | Y40: ='[2]Шиков ИП'!S35 -> 0
A41: 385 | B41: Договор | C41: 22-02-09/400 | D41: 2013-11-11 | E41: 1861 | G41: Аида Пионер Прод | H41: ='[2]Аида Пионер'!B35 -> 0 | I41: ='[2]Аида Пионер'!C35 -> 0 | J41: ='[2]Аида Пионер'!D35 -> 0 | K41: ='[2]Аида Пионер'!E35 -> 0 | L41: ='[2]Аида Пионер'!F35 -> 0 | M41: ='[2]Аида Пионер'!G35 -> 0 | N41: ='[2]Аида Пионер'!H35 -> 0 | O41: ='[2]Аида Пионер'!I35 -> 0 | P41: ='[2]Аида Пионер'!J35 -> 0 | Q41: ='[2]Аида Пионер'!K35 -> 0 | R41: ='[2]Аида Пионер'!L35 -> 0 | S41: ='[2]Аида Пионер'!M35 -> 0 | T41: ='[2]Аида Пионер'!N35 -> 0 | U41: ='[2]Аида Пионер'!O35 -> 0 | V41: ='[2]Аида Пионер'!P35 -> 0 | W41: ='[2]Аида Пионер'!Q35 -> 0 | X41: ='[2]Аида Пионер'!R35 -> 0 | Y41: ='[2]Аида Пионер'!S35 -> 0
A42: 386 | G42: Бекиш ИП | H42: ='[2]Бекиш ИП'!B35 -> 0 | I42: ='[2]Бекиш ИП'!C35 -> 0 | J42: ='[2]Бекиш ИП'!D35 -> 0 | K42: ='[2]Бекиш ИП'!E35 -> 0 | L42: ='[2]Бекиш ИП'!F35 -> 0 | M42: ='[2]Бекиш ИП'!G35 -> 0 | N42: ='[2]Бекиш ИП'!H35 -> 0 | O42: ='[2]Бекиш ИП'!I35 -> 0 | P42: ='[2]Бекиш ИП'!J35 -> 0 | Q42: ='[2]Бекиш ИП'!K35 -> 0 | R42: ='[2]Бекиш ИП'!L35 -> 0 | S42: ='[2]Бекиш ИП'!M35 -> 0 | T42: ='[2]Бекиш ИП'!N35 -> 0 | U42: ='[2]Бекиш ИП'!O35 -> 0 | V42: ='[2]Бекиш ИП'!P35 -> 0 | W42: ='[2]Бекиш ИП'!Q35 -> 0 | X42: ='[2]Бекиш ИП'!R35 -> 0 | Y42: ='[2]Бекиш ИП'!S35 -> 0
A43: 387 | G43: Сайзин | H43: =[2]Сайзин!B35 -> 0 | I43: =[2]Сайзин!C35 -> 0 | J43: =[2]Сайзин!D35 -> 0 | K43: =[2]Сайзин!E35 -> 0 | L43: =[2]Сайзин!F35 -> 0 | M43: =[2]Сайзин!G35 -> 0 | N43: =[2]Сайзин!H35 -> 0 | O43: =[2]Сайзин!I35 -> 0 | P43: =[2]Сайзин!J35 -> 0 | Q43: =[2]Сайзин!K35 -> 0 | R43: =[2]Сайзин!L35 -> 0 | S43: =[2]Сайзин!M35 -> 0 | T43: =[2]Сайзин!N35 -> 0 | U43: =[2]Сайзин!O35 -> 0 | V43: =[2]Сайзин!P35 -> 0 | W43: =[2]Сайзин!Q35 -> 0 | X43: =[2]Сайзин!R35 -> 0 | Y43: =[2]Сайзин!S35 -> 0
A44: 388 | G44: Доставка счастья | H44: ='[2]Доставка счастья'!B35 -> 0 | I44: ='[2]Доставка счастья'!C35 -> 0 | J44: ='[2]Доставка счастья'!D35 -> 0 | K44: ='[2]Доставка счастья'!E35 -> 0 | L44: ='[2]Доставка счастья'!F35 -> 0 | M44: ='[2]Доставка счастья'!G35 -> 0 | N44: ='[2]Доставка счастья'!H35 -> 0 | O44: ='[2]Доставка счастья'!I35 -> 0 | P44: ='[2]Доставка счастья'!J35 -> 0 | Q44: ='[2]Доставка счастья'!K35 -> 0 | R44: ='[2]Доставка счастья'!L35 -> 0 | S44: ='[2]Доставка счастья'!M35 -> 0 | T44: ='[2]Доставка счастья'!N35 -> 0 | U44: ='[2]Доставка счастья'!O35 -> 0 | V44: ='[2]Доставка счастья'!P35 -> 0 | W44: ='[2]Доставка счастья'!Q35 -> 0 | X44: ='[2]Доставка счастья'!R35 -> 0 | Y44: ='[2]Доставка счастья'!S35 -> 0
A45: 389 | B45: Договор | C45: 922 | D45: 2013-11-28 | E45: 1950 | G45: Пашкевич | H45: =[2]Пашкевич!B35 -> 0 | I45: =[2]Пашкевич!C35 -> 0 | J45: =[2]Пашкевич!D35 -> 0 | K45: =[2]Пашкевич!E35 -> 0 | L45: =[2]Пашкевич!F35 -> 0 | M45: =[2]Пашкевич!G35 -> 0 | N45: =[2]Пашкевич!H35 -> 0 | O45: =[2]Пашкевич!I35 -> 0 | P45: =[2]Пашкевич!J35 -> 0 | Q45: =[2]Пашкевич!K35 -> 0 | R45: =[2]Пашкевич!L35 -> 0 | S45: =[2]Пашкевич!M35 -> 0 | T45: =[2]Пашкевич!N35 -> 0 | U45: =[2]Пашкевич!O35 -> 0 | V45: =[2]Пашкевич!P35 -> 0 | W45: =[2]Пашкевич!Q35 -> 0 | X45: =[2]Пашкевич!R35 -> 0 | Y45: =[2]Пашкевич!S35 -> 0
A46: 390 | B46: Договор | C46: 1059 | D46: 2013-12-24 | E46: 1921 | G46: Рок-Бастион | H46: ='[2]Рок Бастион'!B35 -> 0 | I46: ='[2]Рок Бастион'!C35 -> 0 | J46: ='[2]Рок Бастион'!D35 -> 0 | K46: ='[2]Рок Бастион'!E35 -> 0 | L46: ='[2]Рок Бастион'!F35 -> 0 | M46: ='[2]Рок Бастион'!G35 -> 0 | N46: ='[2]Рок Бастион'!H35 -> 0 | O46: ='[2]Рок Бастион'!I35 -> 0 | P46: ='[2]Рок Бастион'!J35 -> 0 | Q46: ='[2]Рок Бастион'!K35 -> 0 | R46: ='[2]Рок Бастион'!L35 -> 0 | S46: ='[2]Рок Бастион'!M35 -> 0 | T46: ='[2]Рок Бастион'!N35 -> 0 | U46: ='[2]Рок Бастион'!O35 -> 0 | V46: ='[2]Рок Бастион'!P35 -> 0 | W46: ='[2]Рок Бастион'!Q35 -> 0 | X46: ='[2]Рок Бастион'!R35 -> 0 | Y46: ='[2]Рок Бастион'!S35 -> 0
A47: 391 | G47: Харды Тулс | H47: ='[2]Харды Тулс'!B35 -> 0 | I47: ='[2]Харды Тулс'!C35 -> 0 | J47: ='[2]Харды Тулс'!D35 -> 0 | K47: ='[2]Харды Тулс'!E35 -> 0 | L47: ='[2]Харды Тулс'!F35 -> 0 | M47: ='[2]Харды Тулс'!G35 -> 0 | N47: ='[2]Харды Тулс'!H35 -> 0 | O47: ='[2]Харды Тулс'!I35 -> 0 | P47: ='[2]Харды Тулс'!J35 -> 0 | Q47: ='[2]Харды Тулс'!K35 -> 0 | R47: ='[2]Харды Тулс'!L35 -> 0 | S47: ='[2]Харды Тулс'!M35 -> 0 | T47: ='[2]Харды Тулс'!N35 -> 0 | U47: ='[2]Харды Тулс'!O35 -> 0 | V47: ='[2]Харды Тулс'!P35 -> 0 | W47: ='[2]Харды Тулс'!Q35 -> 0 | X47: ='[2]Харды Тулс'!R35 -> 0 | Y47: ='[2]Харды Тулс'!S35 -> 0
A48: 392 | G48: Ноотехника | H48: =[2]Ноотехника!B35 -> 0 | I48: =[2]Ноотехника!C35 -> 0 | J48: =[2]Ноотехника!D35 -> 0 | K48: =[2]Ноотехника!E35 -> 0 | L48: =[2]Ноотехника!F35 -> 0 | M48: =[2]Ноотехника!G35 -> 0 | N48: =[2]Ноотехника!H35 -> 0 | O48: =[2]Ноотехника!I35 -> 0 | P48: =[2]Ноотехника!J35 -> 0 | Q48: =[2]Ноотехника!K35 -> 0 | R48: =[2]Ноотехника!L35 -> 0 | S48: =[2]Ноотехника!M35 -> 0 | T48: =[2]Ноотехника!N35 -> 0 | U48: =[2]Ноотехника!O35 -> 0 | V48: =[2]Ноотехника!P35 -> 0 | W48: =[2]Ноотехника!Q35 -> 0 | X48: =[2]Ноотехника!R35 -> 0 | Y48: =[2]Ноотехника!S35 -> 0
A49: 393 | G49: Де-факто | H49: ='[2]Де-факто'!B35 -> 0 | I49: ='[2]Де-факто'!C35 -> 0 | J49: ='[2]Де-факто'!D35 -> 0 | K49: ='[2]Де-факто'!E35 -> 0 | L49: ='[2]Де-факто'!F35 -> 0 | M49: ='[2]Де-факто'!G35 -> 0 | N49: ='[2]Де-факто'!H35 -> 0 | O49: ='[2]Де-факто'!I35 -> 0 | P49: ='[2]Де-факто'!J35 -> 0 | Q49: ='[2]Де-факто'!K35 -> 0 | R49: ='[2]Де-факто'!L35 -> 0 | S49: ='[2]Де-факто'!M35 -> 0 | T49: ='[2]Де-факто'!N35 -> 0 | U49: ='[2]Де-факто'!O35 -> 0 | V49: ='[2]Де-факто'!P35 -> 0 | W49: ='[2]Де-факто'!Q35 -> 0 | X49: ='[2]Де-факто'!R35 -> 0 | Y49: ='[2]Де-факто'!S35 -> 0
A50: 394 | G50: Мединг | H50: =[2]Мединг!B35 -> 0 | I50: =[2]Мединг!C35 -> 0 | J50: =[2]Мединг!D35 -> 0 | K50: =[2]Мединг!E35 -> 0 | L50: =[2]Мединг!F35 -> 0 | M50: =[2]Мединг!G35 -> 0 | N50: =[2]Мединг!H35 -> 0 | O50: =[2]Мединг!I35 -> 0 | P50: =[2]Мединг!J35 -> 0 | Q50: =[2]Мединг!K35 -> 0 | R50: =[2]Мединг!L35 -> 0 | S50: =[2]Мединг!M35 -> 0 | T50: =[2]Мединг!N35 -> 0 | U50: =[2]Мединг!O35 -> 0 | V50: =[2]Мединг!P35 -> 0 | W50: =[2]Мединг!Q35 -> 0 | X50: =[2]Мединг!R35 -> 0 | Y50: =[2]Мединг!S35 -> 0
A51: 395 | G51: Волат-1ООО | H51: ='[2]Волат-1'!B35 -> 0 | I51: ='[2]Волат-1'!C35 -> 0 | J51: ='[2]Волат-1'!D35 -> 0 | K51: ='[2]Волат-1'!E35 -> 0 | L51: ='[2]Волат-1'!F35 -> 0 | M51: ='[2]Волат-1'!G35 -> 0 | N51: ='[2]Волат-1'!H35 -> 0 | O51: ='[2]Волат-1'!I35 -> 0 | P51: ='[2]Волат-1'!J35 -> 0 | Q51: ='[2]Волат-1'!K35 -> 0 | R51: ='[2]Волат-1'!L35 -> 0 | S51: ='[2]Волат-1'!M35 -> 0 | T51: ='[2]Волат-1'!N35 -> 0 | U51: ='[2]Волат-1'!O35 -> 0 | V51: ='[2]Волат-1'!P35 -> 0 | W51: ='[2]Волат-1'!Q35 -> 0 | X51: ='[2]Волат-1'!R35 -> 0 | Y51: ='[2]Волат-1'!S35 -> 0
A52: 396 | G52: Баркос УП | H52: =[2]Баркос!B35 -> 0 | I52: =[2]Баркос!C35 -> 0 | J52: =[2]Баркос!D35 -> 0 | K52: =[2]Баркос!E35 -> 0 | L52: =[2]Баркос!F35 -> 0 | M52: =[2]Баркос!G35 -> 0 | N52: =[2]Баркос!H35 -> 0 | O52: =[2]Баркос!I35 -> 0 | P52: =[2]Баркос!J35 -> 0 | Q52: =[2]Баркос!K35 -> 0 | R52: =[2]Баркос!L35 -> 0 | S52: =[2]Баркос!M35 -> 0 | T52: =[2]Баркос!N35 -> 0 | U52: =[2]Баркос!O35 -> 0 | V52: =[2]Баркос!P35 -> 0 | W52: =[2]Баркос!Q35 -> 0 | X52: =[2]Баркос!R35 -> 0 | Y52: =[2]Баркос!S35 -> 0
A53: 397 | B53: Франкир | G53: Региональный центр | H53: =[2]Регион.центр!B35 -> 0 | I53: =[2]Регион.центр!C35 -> 0 | J53: =[2]Регион.центр!D35 -> 0 | K53: =[2]Регион.центр!E35 -> 0 | L53: =[2]Регион.центр!F35 -> 0 | M53: =[2]Регион.центр!G35 -> 0 | N53: =[2]Регион.центр!H35 -> 0 | O53: =[2]Регион.центр!I35 -> 0 | P53: =[2]Регион.центр!J35 -> 0 | Q53: =[2]Регион.центр!K35 -> 0 | R53: =[2]Регион.центр!L35 -> 0 | S53: =[2]Регион.центр!M35 -> 0 | T53: =[2]Регион.центр!N35 -> 0 | U53: =[2]Регион.центр!O35 -> 0 | V53: =[2]Регион.центр!P35 -> 0 | W53: =[2]Регион.центр!Q35 -> 0 | X53: =[2]Регион.центр!R35 -> 0 | Y53: =[2]Регион.центр!S35 -> 0
A54: 398 | G54: Лузуе | H54: =[2]ЛУЗУЕ!B35 -> 0 | I54: =[2]ЛУЗУЕ!C35 -> 0 | J54: =[2]ЛУЗУЕ!D35 -> 0 | K54: =[2]ЛУЗУЕ!E35 -> 0 | L54: =[2]ЛУЗУЕ!F35 -> 0 | M54: =[2]ЛУЗУЕ!G35 -> 0 | N54: =[2]ЛУЗУЕ!H35 -> 0 | O54: =[2]ЛУЗУЕ!I35 -> 0 | P54: =[2]ЛУЗУЕ!J35 -> 0 | Q54: =[2]ЛУЗУЕ!K35 -> 0 | R54: =[2]ЛУЗУЕ!L35 -> 0 | S54: =[2]ЛУЗУЕ!M35 -> 0 | T54: =[2]ЛУЗУЕ!N35 -> 0 | U54: =[2]ЛУЗУЕ!O35 -> 0 | V54: =[2]ЛУЗУЕ!P35 -> 0 | W54: =[2]ЛУЗУЕ!Q35 -> 0 | X54: =[2]ЛУЗУЕ!R35 -> 0 | Y54: =[2]ЛУЗУЕ!S35 -> 0
A55: 399 | G55: ЗдоровБел | H55: ='[2]Здоров Бел'!B35 -> 0 | I55: ='[2]Здоров Бел'!C35 -> 0 | J55: ='[2]Здоров Бел'!D35 -> 0 | K55: ='[2]Здоров Бел'!E35 -> 0 | L55: ='[2]Здоров Бел'!F35 -> 0 | M55: ='[2]Здоров Бел'!G35 -> 0 | N55: ='[2]Здоров Бел'!H35 -> 0 | O55: ='[2]Здоров Бел'!I35 -> 0 | P55: ='[2]Здоров Бел'!J35 -> 0 | Q55: ='[2]Здоров Бел'!K35 -> 0 | R55: ='[2]Здоров Бел'!L35 -> 0 | S55: ='[2]Здоров Бел'!M35 -> 0 | T55: ='[2]Здоров Бел'!N35 -> 0 | U55: ='[2]Здоров Бел'!O35 -> 0 | V55: ='[2]Здоров Бел'!P35 -> 0 | W55: ='[2]Здоров Бел'!Q35 -> 0 | X55: ='[2]Здоров Бел'!R35 -> 0 | Y55: ='[2]Здоров Бел'!S35 -> 0
A56: 400 | B56: Договор | C56: 975 | D56: 2013-12-12 | E56: 1970 | F56: 29 | G56: Насс-авто | H56: ='[2]Насс-авто'!B35 -> 0 | I56: ='[2]Насс-авто'!C35 -> 0 | J56: ='[2]Насс-авто'!D35 -> 0 | K56: ='[2]Насс-авто'!E35 -> 0 | L56: ='[2]Насс-авто'!F35 -> 0 | M56: ='[2]Насс-авто'!G35 -> 0 | N56: ='[2]Насс-авто'!H35 -> 0 | O56: ='[2]Насс-авто'!I35 -> 0 | P56: ='[2]Насс-авто'!J35 -> 0 | Q56: ='[2]Насс-авто'!K35 -> 0 | R56: ='[2]Насс-авто'!L35 -> 0 | S56: ='[2]Насс-авто'!M35 -> 0 | T56: ='[2]Насс-авто'!N35 -> 0 | U56: ='[2]Насс-авто'!O35 -> 0 | V56: ='[2]Насс-авто'!P35 -> 0 | W56: ='[2]Насс-авто'!Q35 -> 0 | X56: ='[2]Насс-авто'!R35 -> 0 | Y56: ='[2]Насс-авто'!S35 -> 0
A57: 401 | B57: Договор | C57: 888 | D57: 2013-11-25 | E57: 1941 | G57: Интеллектсофт Медиа | H57: ='[2]Интеллект Софт медиа'!B35 -> 0 | I57: ='[2]Интеллект Софт медиа'!C35 -> 0 | J57: ='[2]Интеллект Софт медиа'!D35 -> 0 | K57: ='[2]Интеллект Софт медиа'!E35 -> 0 | L57: ='[2]Интеллект Софт медиа'!F35 -> 0 | M57: ='[2]Интеллект Софт медиа'!G35 -> 0 | N57: ='[2]Интеллект Софт медиа'!H35 -> 0 | O57: ='[2]Интеллект Софт медиа'!I35 -> 0 | P57: ='[2]Интеллект Софт медиа'!J35 -> 0 | Q57: ='[2]Интеллект Софт медиа'!K35 -> 0 | R57: ='[2]Интеллект Софт медиа'!L35 -> 0 | S57: ='[2]Интеллект Софт медиа'!M35 -> 0 | T57: ='[2]Интеллект Софт медиа'!N35 -> 0 | U57: ='[2]Интеллект Софт медиа'!O35 -> 0 | V57: ='[2]Интеллект Софт медиа'!P35 -> 0 | W57: ='[2]Интеллект Софт медиа'!Q35 -> 0 | X57: ='[2]Интеллект Софт медиа'!R35 -> 0 | Y57: ='[2]Интеллект Софт медиа'!S35 -> 0
A58: 402 | B58: Договор | C58: 939 | D58: 2013-12-05 | E58: 1958 | G58: Оптик-клуб ЧТУП | H58: ='[2]Оптик Клуб'!B35 -> 0 | I58: ='[2]Оптик Клуб'!C35 -> 0 | J58: ='[2]Оптик Клуб'!D35 -> 0 | K58: ='[2]Оптик Клуб'!E35 -> 0 | L58: ='[2]Оптик Клуб'!F35 -> 0 | M58: ='[2]Оптик Клуб'!G35 -> 0 | N58: ='[2]Оптик Клуб'!H35 -> 0 | O58: ='[2]Оптик Клуб'!I35 -> 0 | P58: ='[2]Оптик Клуб'!J35 -> 0 | Q58: ='[2]Оптик Клуб'!K35 -> 0 | R58: ='[2]Оптик Клуб'!L35 -> 0 | S58: ='[2]Оптик Клуб'!M35 -> 0 | T58: ='[2]Оптик Клуб'!N35 -> 0 | U58: ='[2]Оптик Клуб'!O35 -> 0 | V58: ='[2]Оптик Клуб'!P35 -> 0 | W58: ='[2]Оптик Клуб'!Q35 -> 0 | X58: ='[2]Оптик Клуб'!R35 -> 0 | Y58: ='[2]Оптик Клуб'!S35 -> 0
A59: 403 | B59: Договор | C59: 990 | D59: 2013-12-06 | E59: 1974 | G59: КрамаДент | H59: =[2]КрамаДент!B35 -> 0 | I59: =[2]КрамаДент!C35 -> 0 | J59: =[2]КрамаДент!D35 -> 0 | K59: =[2]КрамаДент!E35 -> 0 | L59: =[2]КрамаДент!F35 -> 0 | M59: =[2]КрамаДент!G35 -> 0 | N59: =[2]КрамаДент!H35 -> 0 | O59: =[2]КрамаДент!I35 -> 0 | P59: =[2]КрамаДент!J35 -> 0 | Q59: =[2]КрамаДент!K35 -> 0 | R59: =[2]КрамаДент!L35 -> 0 | S59: =[2]КрамаДент!M35 -> 0 | T59: =[2]КрамаДент!N35 -> 0 | U59: =[2]КрамаДент!O35 -> 0 | V59: =[2]КрамаДент!P35 -> 0 | W59: =[2]КрамаДент!Q35 -> 0 | X59: =[2]КрамаДент!R35 -> 0 | Y59: =[2]КрамаДент!S35 -> 0
A60: 404 | B60: Договор | C60: 22-02-09/430 | D60: 2013-12-16 | E60: 1883 | G60: Классические вина | H60: =[2]Классич.вина!B35 -> 0 | I60: =[2]Классич.вина!C35 -> 0 | J60: =[2]Классич.вина!D35 -> 0 | K60: =[2]Классич.вина!E35 -> 0 | L60: =[2]Классич.вина!F35 -> 0 | M60: =[2]Классич.вина!G35 -> 0 | N60: =[2]Классич.вина!H35 -> 0 | O60: =[2]Классич.вина!I35 -> 0 | P60: =[2]Классич.вина!J35 -> 0 | Q60: =[2]Классич.вина!K35 -> 0 | R60: =[2]Классич.вина!L35 -> 0 | S60: =[2]Классич.вина!M35 -> 0 | T60: =[2]Классич.вина!N35 -> 0 | U60: =[2]Классич.вина!O35 -> 0 | V60: =[2]Классич.вина!P35 -> 0 | W60: =[2]Классич.вина!Q35 -> 0 | X60: =[2]Классич.вина!R35 -> 0 | Y60: =[2]Классич.вина!S35 -> 0
A61: 405 | B61: Договор | C61: 22-02-09/429 | D61: 2013-12-16 | E61: 1882 | G61: Мир пива | H61: ='[2]Мир пива'!B35 -> 0 | I61: ='[2]Мир пива'!C35 -> 0 | J61: ='[2]Мир пива'!D35 -> 0 | K61: ='[2]Мир пива'!E35 -> 0 | L61: ='[2]Мир пива'!F35 -> 0 | M61: ='[2]Мир пива'!G35 -> 0 | N61: ='[2]Мир пива'!H35 -> 0 | O61: ='[2]Мир пива'!I35 -> 0 | P61: ='[2]Мир пива'!J35 -> 0 | Q61: ='[2]Мир пива'!K35 -> 0 | R61: ='[2]Мир пива'!L35 -> 0 | S61: ='[2]Мир пива'!M35 -> 0 | T61: ='[2]Мир пива'!N35 -> 0 | U61: ='[2]Мир пива'!O35 -> 0 | V61: ='[2]Мир пива'!P35 -> 0 | W61: ='[2]Мир пива'!Q35 -> 0 | X61: ='[2]Мир пива'!R35 -> 0 | Y61: ='[2]Мир пива'!S35 -> 0
A62: 406 | B62: Договор | C62: 22-02-09/431 | D62: 2013-12-16 | E62: 1884 | G62: Винный мир | H62: ='[2]Винный мир'!B35 -> 0 | I62: ='[2]Винный мир'!C35 -> 0 | J62: ='[2]Винный мир'!D35 -> 0 | K62: ='[2]Винный мир'!E35 -> 0 | L62: ='[2]Винный мир'!F35 -> 0 | M62: ='[2]Винный мир'!G35 -> 0 | N62: ='[2]Винный мир'!H35 -> 0 | O62: ='[2]Винный мир'!I35 -> 0 | P62: ='[2]Винный мир'!J35 -> 0 | Q62: ='[2]Винный мир'!K35 -> 0 | R62: ='[2]Винный мир'!L35 -> 0 | S62: ='[2]Винный мир'!M35 -> 0 | T62: ='[2]Винный мир'!N35 -> 0 | U62: ='[2]Винный мир'!O35 -> 0 | V62: ='[2]Винный мир'!P35 -> 0 | W62: ='[2]Винный мир'!Q35 -> 0 | X62: ='[2]Винный мир'!R35 -> 0 | Y62: ='[2]Винный мир'!S35 -> 0
A63: 407 | B63: Договор | C63: 1039 | D63: 2013-12-20 | E63: 1983 | G63: МБФ "ДЖОЙНТ" | H63: =[2]Джойнт!B35 -> 0 | I63: =[2]Джойнт!C35 -> 0 | J63: =[2]Джойнт!D35 -> 0 | K63: =[2]Джойнт!E35 -> 0 | L63: =[2]Джойнт!F35 -> 0 | M63: =[2]Джойнт!G35 -> 0 | N63: =[2]Джойнт!H35 -> 0 | O63: =[2]Джойнт!I35 -> 0 | P63: =[2]Джойнт!J35 -> 0 | Q63: =[2]Джойнт!K35 -> 0 | R63: =[2]Джойнт!L35 -> 0 | S63: =[2]Джойнт!M35 -> 0 | T63: =[2]Джойнт!N35 -> 0 | U63: =[2]Джойнт!O35 -> 0 | V63: =[2]Джойнт!P35 -> 0 | W63: =[2]Джойнт!Q35 -> 0 | X63: =[2]Джойнт!R35 -> 0 | Y63: =[2]Джойнт!S35 -> 0
A64: 408 | B64: Договор | C64: 1083 | D64: 2013-12-26 | E64: 2000 | G64: Адвокатское бюро Шерстнев и партнеры | H64: ='[2]Шерстнев и П'!B35 -> 0 | I64: ='[2]Шерстнев и П'!C35 -> 0 | J64: ='[2]Шерстнев и П'!D35 -> 0 | K64: ='[2]Шерстнев и П'!E35 -> 0 | L64: ='[2]Шерстнев и П'!F35 -> 0 | M64: ='[2]Шерстнев и П'!G35 -> 0 | N64: ='[2]Шерстнев и П'!H35 -> 0 | O64: ='[2]Шерстнев и П'!I35 -> 0 | P64: ='[2]Шерстнев и П'!J35 -> 0 | Q64: ='[2]Шерстнев и П'!K35 -> 0 | R64: ='[2]Шерстнев и П'!L35 -> 0 | S64: ='[2]Шерстнев и П'!M35 -> 0 | T64: ='[2]Шерстнев и П'!N35 -> 0 | U64: ='[2]Шерстнев и П'!O35 -> 0 | V64: ='[2]Шерстнев и П'!P35 -> 0 | W64: ='[2]Шерстнев и П'!Q35 -> 0 | X64: ='[2]Шерстнев и П'!R35 -> 0 | Y64: ='[2]Шерстнев и П'!S35 -> 0
A65: 409 | B65: Договор | C65: 22-02-09/440 | D65: 2013-12-23 | E65: 1888 | G65: "Игрика" ООО | H65: =[2]Игрика!B35 -> 0 | I65: =[2]Игрика!C35 -> 0 | J65: =[2]Игрика!D35 -> 0 | K65: =[2]Игрика!E35 -> 0 | L65: =[2]Игрика!F35 -> 0 | M65: =[2]Игрика!G35 -> 0 | N65: =[2]Игрика!H35 -> 0 | O65: =[2]Игрика!I35 -> 0 | P65: =[2]Игрика!J35 -> 0 | Q65: =[2]Игрика!K35 -> 0 | R65: =[2]Игрика!L35 -> 0 | S65: =[2]Игрика!M35 -> 0 | T65: =[2]Игрика!N35 -> 0 | U65: =[2]Игрика!O35 -> 0 | V65: =[2]Игрика!P35 -> 0 | W65: =[2]Игрика!Q35 -> 0 | X65: =[2]Игрика!R35 -> 0 | Y65: =[2]Игрика!S35 -> 0
A66: 410 | B66: Договор | C66: 22-02-09/443 | D66: 2013-12-30 | E66: 1890 | G66: Альфачип ЛТД | H66: =[2]АльфаЧип!B35 -> 0 | I66: =[2]АльфаЧип!C35 -> 0 | J66: =[2]АльфаЧип!D35 -> 0 | K66: =[2]АльфаЧип!E35 -> 0 | L66: =[2]АльфаЧип!F35 -> 0 | M66: =[2]АльфаЧип!G35 -> 0 | N66: =[2]АльфаЧип!H35 -> 0 | O66: =[2]АльфаЧип!I35 -> 0 | P66: =[2]АльфаЧип!J35 -> 0 | Q66: =[2]АльфаЧип!K35 -> 0 | R66: =[2]АльфаЧип!L35 -> 0 | S66: =[2]АльфаЧип!M35 -> 0 | T66: =[2]АльфаЧип!N35 -> 0 | U66: =[2]АльфаЧип!O35 -> 0 | V66: =[2]АльфаЧип!P35 -> 0 | W66: =[2]АльфаЧип!Q35 -> 0 | X66: =[2]АльфаЧип!R35 -> 0 | Y66: =[2]АльфаЧип!S35 -> 0
A67: 411 | G67: Йота Бел | H67: =[2]ЙотаБел!B35 -> 0 | I67: =[2]ЙотаБел!C35 -> 0 | J67: =[2]ЙотаБел!D35 -> 0 | K67: =[2]ЙотаБел!E35 -> 0 | L67: =[2]ЙотаБел!F35 -> 0 | M67: =[2]ЙотаБел!G35 -> 0 | N67: =[2]ЙотаБел!H35 -> 0 | O67: =[2]ЙотаБел!I35 -> 0 | P67: =[2]ЙотаБел!J35 -> 0 | Q67: =[2]ЙотаБел!K35 -> 0 | R67: =[2]ЙотаБел!L35 -> 0 | S67: =[2]ЙотаБел!M35 -> 0 | T67: =[2]ЙотаБел!N35 -> 0 | U67: =[2]ЙотаБел!O35 -> 0 | V67: =[2]ЙотаБел!P35 -> 0 | W67: =[2]ЙотаБел!Q35 -> 0 | X67: =[2]ЙотаБел!R35 -> 0 | Y67: =[2]ЙотаБел!S35 -> 0
A68: 412 | G68: НьюСнаб | H68: =[2]НьюСнаб!B35 -> 0 | I68: =[2]НьюСнаб!C35 -> 0 | J68: =[2]НьюСнаб!D35 -> 0 | K68: =[2]НьюСнаб!E35 -> 0 | L68: =[2]НьюСнаб!F35 -> 0 | M68: =[2]НьюСнаб!G35 -> 0 | N68: =[2]НьюСнаб!H35 -> 0 | O68: =[2]НьюСнаб!I35 -> 0 | P68: =[2]НьюСнаб!J35 -> 0 | Q68: =[2]НьюСнаб!K35 -> 0 | R68: =[2]НьюСнаб!L35 -> 0 | S68: =[2]НьюСнаб!M35 -> 0 | T68: =[2]НьюСнаб!N35 -> 0 | U68: =[2]НьюСнаб!O35 -> 0 | V68: =[2]НьюСнаб!P35 -> 0 | W68: =[2]НьюСнаб!Q35 -> 0 | X68: =[2]НьюСнаб!R35 -> 0 | Y68: =[2]НьюСнаб!S35 -> 0
A69: 413 | G69: Даная | H69: =[2]Даная!B35 -> 0 | I69: =[2]Даная!C35 -> 0 | J69: =[2]Даная!D35 -> 0 | K69: =[2]Даная!E35 -> 0 | L69: =[2]Даная!F35 -> 0 | M69: =[2]Даная!G35 -> 0 | N69: =[2]Даная!H35 -> 0 | O69: =[2]Даная!I35 -> 0 | P69: =[2]Даная!J35 -> 0 | Q69: =[2]Даная!K35 -> 0 | R69: =[2]Даная!L35 -> 0 | S69: =[2]Даная!M35 -> 0 | T69: =[2]Даная!N35 -> 0 | U69: =[2]Даная!O35 -> 0 | V69: =[2]Даная!P35 -> 0 | W69: =[2]Даная!Q35 -> 0 | X69: =[2]Даная!R35 -> 0 | Y69: =[2]Даная!S35 -> 0
A70: 414 | B70: Договор | C70: 651 | D70: 2013-08-27 | E70: 1628 | F70: 29 | G70: Адвокатское бюро Степановский | H70: ='[2]Адв бюро Степановский'!B35 -> 0 | I70: ='[2]Адв бюро Степановский'!C35 -> 0 | J70: ='[2]Адв бюро Степановский'!D35 -> 0 | K70: ='[2]Адв бюро Степановский'!E35 -> 0 | L70: ='[2]Адв бюро Степановский'!F35 -> 0 | M70: ='[2]Адв бюро Степановский'!G35 -> 0 | N70: ='[2]Адв бюро Степановский'!H35 -> 0 | O70: ='[2]Адв бюро Степановский'!I35 -> 0 | P70: ='[2]Адв бюро Степановский'!J35 -> 0 | Q70: ='[2]Адв бюро Степановский'!K35 -> 0 | R70: ='[2]Адв бюро Степановский'!L35 -> 0 | S70: ='[2]Адв бюро Степановский'!M35 -> 0 | T70: ='[2]Адв бюро Степановский'!N35 -> 0 | U70: ='[2]Адв бюро Степановский'!O35 -> 0 | V70: ='[2]Адв бюро Степановский'!P35 -> 0 | W70: ='[2]Адв бюро Степановский'!Q35 -> 0 | X70: ='[2]Адв бюро Степановский'!R35 -> 0 | Y70: ='[2]Адв бюро Степановский'!S35 -> 0
A71: 415 | G71: Тур Люкс | H71: ='[2]Тур Люкс'!B35 -> 0 | I71: ='[2]Тур Люкс'!C35 -> 0 | J71: ='[2]Тур Люкс'!D35 -> 0 | K71: ='[2]Тур Люкс'!E35 -> 0 | L71: ='[2]Тур Люкс'!F35 -> 0 | M71: ='[2]Тур Люкс'!G35 -> 0 | N71: ='[2]Тур Люкс'!H35 -> 0 | O71: ='[2]Тур Люкс'!I35 -> 0 | P71: ='[2]Тур Люкс'!J35 -> 0 | Q71: ='[2]Тур Люкс'!K35 -> 0 | R71: ='[2]Тур Люкс'!L35 -> 0 | S71: ='[2]Тур Люкс'!M35 -> 0 | T71: ='[2]Тур Люкс'!N35 -> 0 | U71: ='[2]Тур Люкс'!O35 -> 0 | V71: ='[2]Тур Люкс'!P35 -> 0 | W71: ='[2]Тур Люкс'!Q35 -> 0 | X71: ='[2]Тур Люкс'!R35 -> 0 | Y71: ='[2]Тур Люкс'!S35 -> 0
A72: 416 | G72: РИА-групп | H72: =[2]РИАгрупп!B35 -> 0 | I72: =[2]РИАгрупп!C35 -> 0 | J72: =[2]РИАгрупп!D35 -> 0 | K72: =[2]РИАгрупп!E35 -> 0 | L72: =[2]РИАгрупп!F35 -> 0 | M72: =[2]РИАгрупп!G35 -> 0 | N72: =[2]РИАгрупп!H35 -> 0 | O72: =[2]РИАгрупп!I35 -> 0 | P72: =[2]РИАгрупп!J35 -> 0 | Q72: =[2]РИАгрупп!K35 -> 0 | R72: =[2]РИАгрупп!L35 -> 0 | S72: =[2]РИАгрупп!M35 -> 0 | T72: =[2]РИАгрупп!N35 -> 0 | U72: =[2]РИАгрупп!O35 -> 0 | V72: =[2]РИАгрупп!P35 -> 0 | W72: =[2]РИАгрупп!Q35 -> 0 | X72: =[2]РИАгрупп!R35 -> 0 | Y72: =[2]РИАгрупп!S35 -> 0
A73: 417 | B73: Договор | C73: 45 | D73: 2014-01-14 | E73: 653 | F73: 29 | G73: Степановский Папакуль | H73: ='[2]Степановский Папакуль'!B35 -> 18 | I73: ='[2]Степановский Папакуль'!C35 -> 0 | J73: ='[2]Степановский Папакуль'!D35 -> 0 | K73: ='[2]Степановский Папакуль'!E35 -> 0 | L73: ='[2]Степановский Папакуль'!F35 -> 0 | M73: ='[2]Степановский Папакуль'!G35 -> 0 | N73: ='[2]Степановский Папакуль'!H35 -> 0 | O73: ='[2]Степановский Папакуль'!I35 -> 0 | P73: ='[2]Степановский Папакуль'!J35 -> 0 | Q73: ='[2]Степановский Папакуль'!K35 -> 0 | R73: ='[2]Степановский Папакуль'!L35 -> 0 | S73: ='[2]Степановский Папакуль'!M35 -> 0 | T73: ='[2]Степановский Папакуль'!N35 -> 0 | U73: ='[2]Степановский Папакуль'!O35 -> 0 | V73: ='[2]Степановский Папакуль'!P35 -> 0 | W73: ='[2]Степановский Папакуль'!Q35 -> 0 | X73: ='[2]Степановский Папакуль'!R35 -> 0 | Y73: ='[2]Степановский Папакуль'!S35 -> 0
A74: 418 | B74: Договор | C74: 65 | D74: 2014-01-16 | E74: 2028 | G74: Европейские технологии | H74: ='[2]Европейские технологии'!B35 -> 0 | I74: ='[2]Европейские технологии'!C35 -> 0 | J74: ='[2]Европейские технологии'!D35 -> 0 | K74: ='[2]Европейские технологии'!E35 -> 0 | L74: ='[2]Европейские технологии'!F35 -> 0 | M74: ='[2]Европейские технологии'!G35 -> 0 | N74: ='[2]Европейские технологии'!H35 -> 0 | O74: ='[2]Европейские технологии'!I35 -> 0 | P74: ='[2]Европейские технологии'!J35 -> 0 | Q74: ='[2]Европейские технологии'!K35 -> 0 | R74: ='[2]Европейские технологии'!L35 -> 0 | S74: ='[2]Европейские технологии'!M35 -> 0 | T74: ='[2]Европейские технологии'!N35 -> 0 | U74: ='[2]Европейские технологии'!O35 -> 0 | V74: ='[2]Европейские технологии'!P35 -> 0 | W74: ='[2]Европейские технологии'!Q35 -> 0 | X74: ='[2]Европейские технологии'!R35 -> 0 | Y74: ='[2]Европейские технологии'!S35 -> 0
A75: 419 | B75: Договор | C75: 27 | D75: 2014-01-10 | E75: 2012 | G75: РЕХАУ | H75: =[2]РЕХАУ!B35 -> 0 | I75: =[2]РЕХАУ!C35 -> 0 | J75: =[2]РЕХАУ!D35 -> 0 | K75: =[2]РЕХАУ!E35 -> 0 | L75: =[2]РЕХАУ!F35 -> 0 | M75: =[2]РЕХАУ!G35 -> 0 | N75: =[2]РЕХАУ!H35 -> 0 | O75: =[2]РЕХАУ!I35 -> 0 | P75: =[2]РЕХАУ!J35 -> 0 | Q75: =[2]РЕХАУ!K35 -> 0 | R75: =[2]РЕХАУ!L35 -> 0 | S75: =[2]РЕХАУ!M35 -> 0 | T75: =[2]РЕХАУ!N35 -> 0 | U75: =[2]РЕХАУ!O35 -> 0 | V75: =[2]РЕХАУ!P35 -> 0 | W75: =[2]РЕХАУ!Q35 -> 0 | X75: =[2]РЕХАУ!R35 -> 0 | Y75: =[2]РЕХАУ!S35 -> 0
A76: 420 | B76: Договор | C76: 33 | D76: 2014-01-13 | E76: 822 | G76: НТЛаб-ИС | H76: =[2]НТЛаб!B35 -> 0 | I76: =[2]НТЛаб!C35 -> 0 | J76: =[2]НТЛаб!D35 -> 0 | K76: =[2]НТЛаб!E35 -> 0 | L76: =[2]НТЛаб!F35 -> 0 | M76: =[2]НТЛаб!G35 -> 0 | N76: =[2]НТЛаб!H35 -> 0 | O76: =[2]НТЛаб!I35 -> 0 | P76: =[2]НТЛаб!J35 -> 0 | Q76: =[2]НТЛаб!K35 -> 0 | R76: =[2]НТЛаб!L35 -> 0 | S76: =[2]НТЛаб!M35 -> 0 | T76: =[2]НТЛаб!N35 -> 0 | U76: =[2]НТЛаб!O35 -> 0 | V76: =[2]НТЛаб!P35 -> 0 | W76: =[2]НТЛаб!Q35 -> 0 | X76: =[2]НТЛаб!R35 -> 0 | Y76: =[2]НТЛаб!S35 -> 0
A77: 421 | B77: Договор | C77: 18 | D77: 2014-01-09 | E77: 2008 | G77: Прико В.И. ИП | H77: ='[2]Прико ИП'!B35 -> 0 | I77: ='[2]Прико ИП'!C35 -> 0 | J77: ='[2]Прико ИП'!D35 -> 0 | K77: ='[2]Прико ИП'!E35 -> 0 | L77: ='[2]Прико ИП'!F35 -> 0 | M77: ='[2]Прико ИП'!G35 -> 0 | N77: ='[2]Прико ИП'!H35 -> 0 | O77: ='[2]Прико ИП'!I35 -> 0 | P77: ='[2]Прико ИП'!J35 -> 0 | Q77: ='[2]Прико ИП'!K35 -> 0 | R77: ='[2]Прико ИП'!L35 -> 0 | S77: ='[2]Прико ИП'!M35 -> 0 | T77: ='[2]Прико ИП'!N35 -> 0 | U77: ='[2]Прико ИП'!O35 -> 0 | V77: ='[2]Прико ИП'!P35 -> 0 | W77: ='[2]Прико ИП'!Q35 -> 0 | X77: ='[2]Прико ИП'!R35 -> 0 | Y77: ='[2]Прико ИП'!S35 -> 0
A78: 422 | B78: Договор | E78: 2018 | G78: ГрандРесурс | H78: =[2]ГрандРесурс!B35 -> 0 | I78: =[2]ГрандРесурс!C35 -> 0 | J78: =[2]ГрандРесурс!D35 -> 0 | K78: =[2]ГрандРесурс!E35 -> 0 | L78: =[2]ГрандРесурс!F35 -> 0 | M78: =[2]ГрандРесурс!G35 -> 0 | N78: =[2]ГрандРесурс!H35 -> 0 | O78: =[2]ГрандРесурс!I35 -> 0 | P78: =[2]ГрандРесурс!J35 -> 0 | Q78: =[2]ГрандРесурс!K35 -> 0 | R78: =[2]ГрандРесурс!L35 -> 0 | S78: =[2]ГрандРесурс!M35 -> 0 | T78: =[2]ГрандРесурс!N35 -> 0 | U78: =[2]ГрандРесурс!O35 -> 0 | V78: =[2]ГрандРесурс!P35 -> 0 | W78: =[2]ГрандРесурс!Q35 -> 0 | X78: =[2]ГрандРесурс!R35 -> 0 | Y78: =[2]ГрандРесурс!S35 -> 0
A79: 423 | B79: Договор | C79: 41 | D79: 2014-01-04 | E79: 2019 | G79: БелИзоЛайф | H79: =[2]БелИзоЛайф!B35 -> 0 | I79: =[2]БелИзоЛайф!C35 -> 0 | J79: =[2]БелИзоЛайф!D35 -> 0 | K79: =[2]БелИзоЛайф!E35 -> 0 | L79: =[2]БелИзоЛайф!F35 -> 0 | M79: =[2]БелИзоЛайф!G35 -> 0 | N79: =[2]БелИзоЛайф!H35 -> 0 | O79: =[2]БелИзоЛайф!I35 -> 0 | P79: =[2]БелИзоЛайф!J35 -> 0 | Q79: =[2]БелИзоЛайф!K35 -> 0 | R79: =[2]БелИзоЛайф!L35 -> 0 | S79: =[2]БелИзоЛайф!M35 -> 0 | T79: =[2]БелИзоЛайф!N35 -> 0 | U79: =[2]БелИзоЛайф!O35 -> 0 | V79: =[2]БелИзоЛайф!P35 -> 0 | W79: =[2]БелИзоЛайф!Q35 -> 0 | X79: =[2]БелИзоЛайф!R35 -> 0 | Y79: =[2]БелИзоЛайф!S35 -> 0
A80: 424 | B80: Договор | C80: 22-02-09/11 | D80: 2014-01-17 | E80: 1898 | G80: ГУ юстиций Мингорисполкома | H80: ='[2]ГУ юстиций'!B35 -> 0 | I80: ='[2]ГУ юстиций'!C35 -> 0 | J80: ='[2]ГУ юстиций'!D35 -> 0 | K80: ='[2]ГУ юстиций'!E35 -> 0 | L80: ='[2]ГУ юстиций'!F35 -> 0 | M80: ='[2]ГУ юстиций'!G35 -> 0 | N80: ='[2]ГУ юстиций'!H35 -> 0 | O80: ='[2]ГУ юстиций'!I35 -> 0 | P80: ='[2]ГУ юстиций'!J35 -> 0 | Q80: ='[2]ГУ юстиций'!K35 -> 0 | R80: ='[2]ГУ юстиций'!L35 -> 0 | S80: ='[2]ГУ юстиций'!M35 -> 0 | T80: ='[2]ГУ юстиций'!N35 -> 0 | U80: ='[2]ГУ юстиций'!O35 -> 0 | V80: ='[2]ГУ юстиций'!P35 -> 0 | W80: ='[2]ГУ юстиций'!Q35 -> 0 | X80: ='[2]ГУ юстиций'!R35 -> 0 | Y80: ='[2]ГУ юстиций'!S35 -> 0
A81: 425 | B81: Договор | C81: 22-02-09/17 | D81: 2014-01-24 | E81: 2059 | G81: Стома А.В. ИП | H81: ='[2]Стома ИП'!B35 -> 0 | I81: ='[2]Стома ИП'!C35 -> 0 | J81: ='[2]Стома ИП'!D35 -> 0 | K81: ='[2]Стома ИП'!E35 -> 0 | L81: ='[2]Стома ИП'!F35 -> 0 | M81: ='[2]Стома ИП'!G35 -> 0 | N81: ='[2]Стома ИП'!H35 -> 0 | O81: ='[2]Стома ИП'!I35 -> 0 | P81: ='[2]Стома ИП'!J35 -> 0 | Q81: ='[2]Стома ИП'!K35 -> 0 | R81: ='[2]Стома ИП'!L35 -> 0 | S81: ='[2]Стома ИП'!M35 -> 0 | T81: ='[2]Стома ИП'!N35 -> 0 | U81: ='[2]Стома ИП'!O35 -> 0 | V81: ='[2]Стома ИП'!P35 -> 0 | W81: ='[2]Стома ИП'!Q35 -> 0 | X81: ='[2]Стома ИП'!R35 -> 0 | Y81: ='[2]Стома ИП'!S35 -> 0
A82: 426 | B82: Договор | C82: 164 | D82: 2014-01-29 | E82: 2106 | G82: БелАгроРост ООО | H82: =[2]БелАгроРост!B35 -> 0 | I82: =[2]БелАгроРост!C35 -> 0 | J82: =[2]БелАгроРост!D35 -> 0 | K82: =[2]БелАгроРост!E35 -> 0 | L82: =[2]БелАгроРост!F35 -> 0 | M82: =[2]БелАгроРост!G35 -> 0 | N82: =[2]БелАгроРост!H35 -> 0 | O82: =[2]БелАгроРост!I35 -> 0 | P82: =[2]БелАгроРост!J35 -> 0 | Q82: =[2]БелАгроРост!K35 -> 0 | R82: =[2]БелАгроРост!L35 -> 0 | S82: =[2]БелАгроРост!M35 -> 0 | T82: =[2]БелАгроРост!N35 -> 0 | U82: =[2]БелАгроРост!O35 -> 0 | V82: =[2]БелАгроРост!P35 -> 0 | W82: =[2]БелАгроРост!Q35 -> 0 | X82: =[2]БелАгроРост!R35 -> 0 | Y82: =[2]БелАгроРост!S35 -> 0
A83: 427 | B83: Договор | C83: 185 | D83: 2014-02-10 | E83: 2122 | G83: СУ-2 Полесьежилстрой | H83: ='[2]СУ-2 Полесье'!B35 -> 0 | I83: ='[2]СУ-2 Полесье'!C35 -> 0 | J83: ='[2]СУ-2 Полесье'!D35 -> 0 | K83: ='[2]СУ-2 Полесье'!E35 -> 0 | L83: ='[2]СУ-2 Полесье'!F35 -> 0 | M83: ='[2]СУ-2 Полесье'!G35 -> 0 | N83: ='[2]СУ-2 Полесье'!H35 -> 0 | O83: ='[2]СУ-2 Полесье'!I35 -> 0 | P83: ='[2]СУ-2 Полесье'!J35 -> 0 | Q83: ='[2]СУ-2 Полесье'!K35 -> 0 | R83: ='[2]СУ-2 Полесье'!L35 -> 0 | S83: ='[2]СУ-2 Полесье'!M35 -> 0 | T83: ='[2]СУ-2 Полесье'!N35 -> 0 | U83: ='[2]СУ-2 Полесье'!O35 -> 0 | V83: ='[2]СУ-2 Полесье'!P35 -> 0 | W83: ='[2]СУ-2 Полесье'!Q35 -> 0 | X83: ='[2]СУ-2 Полесье'!R35 -> 0 | Y83: ='[2]СУ-2 Полесье'!S35 -> 0
A84: 428 | B84: Договор | C84: 187 | D84: 2014-02-05 | E84: 2124 | G84: Крона Белорашиа | H84: =[2]КронаБелорашиа!B35 -> 0 | I84: =[2]КронаБелорашиа!C35 -> 0 | J84: =[2]КронаБелорашиа!D35 -> 0 | K84: =[2]КронаБелорашиа!E35 -> 0 | L84: =[2]КронаБелорашиа!F35 -> 0 | M84: =[2]КронаБелорашиа!G35 -> 0 | N84: =[2]КронаБелорашиа!H35 -> 0 | O84: =[2]КронаБелорашиа!I35 -> 0 | P84: =[2]КронаБелорашиа!J35 -> 0 | Q84: =[2]КронаБелорашиа!K35 -> 0 | R84: =[2]КронаБелорашиа!L35 -> 0 | S84: =[2]КронаБелорашиа!M35 -> 0 | T84: =[2]КронаБелорашиа!N35 -> 0 | U84: =[2]КронаБелорашиа!O35 -> 0 | V84: =[2]КронаБелорашиа!P35 -> 0 | W84: =[2]КронаБелорашиа!Q35 -> 0 | X84: =[2]КронаБелорашиа!R35 -> 0 | Y84: =[2]КронаБелорашиа!S35 -> 0
A85: 429 | B85: Франкир | G85: Саммит Технолоджис | H85: ='[2]Саммит Т'!B35 -> 0 | I85: ='[2]Саммит Т'!C35 -> 0 | J85: ='[2]Саммит Т'!D35 -> 0 | K85: ='[2]Саммит Т'!E35 -> 0 | L85: ='[2]Саммит Т'!F35 -> 0 | M85: ='[2]Саммит Т'!G35 -> 0 | N85: ='[2]Саммит Т'!H35 -> 0 | O85: ='[2]Саммит Т'!I35 -> 0 | P85: ='[2]Саммит Т'!J35 -> 0 | Q85: ='[2]Саммит Т'!K35 -> 0 | R85: ='[2]Саммит Т'!L35 -> 0 | S85: ='[2]Саммит Т'!M35 -> 0 | T85: ='[2]Саммит Т'!N35 -> 0 | U85: ='[2]Саммит Т'!O35 -> 0 | V85: ='[2]Саммит Т'!P35 -> 0 | W85: ='[2]Саммит Т'!Q35 -> 0 | X85: ='[2]Саммит Т'!R35 -> 0 | Y85: ='[2]Саммит Т'!S35 -> 0
A86: 430 | G86: Матвеенко ИП | H86: ='[2]Матвеенко ИП'!B35 -> 0 | I86: ='[2]Матвеенко ИП'!C35 -> 0 | J86: ='[2]Матвеенко ИП'!D35 -> 0 | K86: ='[2]Матвеенко ИП'!E35 -> 0 | L86: ='[2]Матвеенко ИП'!F35 -> 0 | M86: ='[2]Матвеенко ИП'!G35 -> 0 | N86: ='[2]Матвеенко ИП'!H35 -> 0 | O86: ='[2]Матвеенко ИП'!I35 -> 0 | P86: ='[2]Матвеенко ИП'!J35 -> 0 | Q86: ='[2]Матвеенко ИП'!K35 -> 0 | R86: ='[2]Матвеенко ИП'!L35 -> 0 | S86: ='[2]Матвеенко ИП'!M35 -> 0 | T86: ='[2]Матвеенко ИП'!N35 -> 0 | U86: ='[2]Матвеенко ИП'!O35 -> 0 | V86: ='[2]Матвеенко ИП'!P35 -> 0 | W86: ='[2]Матвеенко ИП'!Q35 -> 0 | X86: ='[2]Матвеенко ИП'!R35 -> 0 | Y86: ='[2]Матвеенко ИП'!S35 -> 0
A87: 431 | G87: Всегда Вместе ГК | H87: ='[2]Всегда Вместе'!B35 -> 0 | I87: ='[2]Всегда Вместе'!C35 -> 0 | J87: ='[2]Всегда Вместе'!D35 -> 0 | K87: ='[2]Всегда Вместе'!E35 -> 0 | L87: ='[2]Всегда Вместе'!F35 -> 0 | M87: ='[2]Всегда Вместе'!G35 -> 0 | N87: ='[2]Всегда Вместе'!H35 -> 0 | O87: ='[2]Всегда Вместе'!I35 -> 0 | P87: ='[2]Всегда Вместе'!J35 -> 0 | Q87: ='[2]Всегда Вместе'!K35 -> 0 | R87: ='[2]Всегда Вместе'!L35 -> 0 | S87: ='[2]Всегда Вместе'!M35 -> 0 | T87: ='[2]Всегда Вместе'!N35 -> 0 | U87: ='[2]Всегда Вместе'!O35 -> 0 | V87: ='[2]Всегда Вместе'!P35 -> 0 | W87: ='[2]Всегда Вместе'!Q35 -> 0 | X87: ='[2]Всегда Вместе'!R35 -> 0 | Y87: ='[2]Всегда Вместе'!S35 -> 0
A88: 432 | B88: Договор | C88: 262 | D88: 2014-02-03 | E88: 2150 | G88: Витсвитстрой | H88: =[2]ВитВитстрой!B35 -> 0 | I88: =[2]ВитВитстрой!C35 -> 0 | J88: =[2]ВитВитстрой!D35 -> 0 | K88: =[2]ВитВитстрой!E35 -> 0 | L88: =[2]ВитВитстрой!F35 -> 0 | M88: =[2]ВитВитстрой!G35 -> 0 | N88: =[2]ВитВитстрой!H35 -> 0 | O88: =[2]ВитВитстрой!I35 -> 0 | P88: =[2]ВитВитстрой!J35 -> 0 | Q88: =[2]ВитВитстрой!K35 -> 0 | R88: =[2]ВитВитстрой!L35 -> 0 | S88: =[2]ВитВитстрой!M35 -> 0 | T88: =[2]ВитВитстрой!N35 -> 0 | U88: =[2]ВитВитстрой!O35 -> 0 | V88: =[2]ВитВитстрой!P35 -> 0 | W88: =[2]ВитВитстрой!Q35 -> 0 | X88: =[2]ВитВитстрой!R35 -> 0 | Y88: =[2]ВитВитстрой!S35 -> 0
A89: 433 | B89: Договор | C89: 1-/2 | D89: 2014-02-27 | E89: 2157 | G89: Центр института Приватизации | H89: ='[2]Центр инстПриватизации'!B35 -> 0 | I89: ='[2]Центр инстПриватизации'!C35 -> 0 | J89: ='[2]Центр инстПриватизации'!D35 -> 0 | K89: ='[2]Центр инстПриватизации'!E35 -> 0 | L89: ='[2]Центр инстПриватизации'!F35 -> 0 | M89: ='[2]Центр инстПриватизации'!G35 -> 0 | N89: ='[2]Центр инстПриватизации'!H35 -> 0 | O89: ='[2]Центр инстПриватизации'!I35 -> 0 | P89: ='[2]Центр инстПриватизации'!J35 -> 0 | Q89: ='[2]Центр инстПриватизации'!K35 -> 0 | R89: ='[2]Центр инстПриватизации'!L35 -> 0 | S89: ='[2]Центр инстПриватизации'!M35 -> 0 | T89: ='[2]Центр инстПриватизации'!N35 -> 0 | U89: ='[2]Центр инстПриватизации'!O35 -> 0 | V89: ='[2]Центр инстПриватизации'!P35 -> 0 | W89: ='[2]Центр инстПриватизации'!Q35 -> 0 | X89: ='[2]Центр инстПриватизации'!R35 -> 0 | Y89: ='[2]Центр инстПриватизации'!S35 -> 0
A90: 434 | B90: Договор | C90: 223 | D90: 2014-02-18 | E90: 2136 | G90: Мицкевич ИП | H90: =[2]Мицкевич!B35 -> 0 | I90: =[2]Мицкевич!C35 -> 0 | J90: =[2]Мицкевич!D35 -> 0 | K90: =[2]Мицкевич!E35 -> 0 | L90: =[2]Мицкевич!F35 -> 0 | M90: =[2]Мицкевич!G35 -> 0 | N90: =[2]Мицкевич!H35 -> 0 | O90: =[2]Мицкевич!I35 -> 0 | P90: =[2]Мицкевич!J35 -> 0 | Q90: =[2]Мицкевич!K35 -> 0 | R90: =[2]Мицкевич!L35 -> 0 | S90: =[2]Мицкевич!M35 -> 0 | T90: =[2]Мицкевич!N35 -> 0 | U90: =[2]Мицкевич!O35 -> 0 | V90: =[2]Мицкевич!P35 -> 0 | W90: =[2]Мицкевич!Q35 -> 0 | X90: =[2]Мицкевич!R35 -> 0 | Y90: =[2]Мицкевич!S35 -> 0
A91: 435 | B91: Договор | C91: 22-02-09/31 | D91: 2014-02-17 | E91: 2069 | G91: ЛюбоДело | H91: ='[2]Любо Дело'!B35 -> 0 | I91: ='[2]Любо Дело'!C35 -> 0 | J91: ='[2]Любо Дело'!D35 -> 0 | K91: ='[2]Любо Дело'!E35 -> 0 | L91: ='[2]Любо Дело'!F35 -> 0 | M91: ='[2]Любо Дело'!G35 -> 0 | N91: ='[2]Любо Дело'!H35 -> 0 | O91: ='[2]Любо Дело'!I35 -> 0 | P91: ='[2]Любо Дело'!J35 -> 0 | Q91: ='[2]Любо Дело'!K35 -> 0 | R91: ='[2]Любо Дело'!L35 -> 0 | S91: ='[2]Любо Дело'!M35 -> 0 | T91: ='[2]Любо Дело'!N35 -> 0 | U91: ='[2]Любо Дело'!O35 -> 0 | V91: ='[2]Любо Дело'!P35 -> 0 | W91: ='[2]Любо Дело'!Q35 -> 0 | X91: ='[2]Любо Дело'!R35 -> 0 | Y91: ='[2]Любо Дело'!S35 -> 0
A92: 432 | B92: Договор | C92: 221 | D92: 2014-02-18 | E92: 2134 | G92: Пластгрупп ЧТУП
A93: 433 | G93: Авком трейд-Монтажные системы ООО
A94: 434
A95: 435 | Y95: =X95+V95+U95+T95+S95+Q95+O95+M95+K95+I95 -> 0
G99: всего | H99: =SUM(H5:H95) -> 18 | I99: 0 | J99: 0 | K99: 0 | L99: 0 | M99: 0 | N99: 0 | O99: 0 | P99: 0 | Q99: 0 | R99: 0 | S99: 0 | T99: 0 | U99: 0 | V99: 0 | W99: 0 | X99: 0 | Y99: 0
G100: Всего услуг | H100: кол-во прин.ПО | J100: =H99+J99+L99+N99+P99+R99+W99 -> 18
H101: сумма доходов | J101: =Y99 -> 0
C102: Новые
C103: по договору
C104: франкир.маш
C105: марк.маш.своя

Sheet Авком Трейд
A1: =MID(CELL("имяфайла",B2),SEARCH("]",CELL("имяфайла",B2),1)+1,99) -> Авком Трейд
A2: Число месяца | B2: заказные отправления | D2: простые отправления | F2: посылки | H2: мелкие пакеты, ценные письма | J2: EMS внутренние | L2: EMS международные | N2: доп.услуги | P2: товары почты | R2: маркиров. прод. | T2: переводы | V2: Итого доходы
B3: (116, 161) | D3: (117, 165) | F3: (151, 156) | H3: (121) | J3: (181 ,182) | L3: (321, 322) | N3: (241, 311) | P3: (641) | R3: (111) | T3: (138,139,144,145,146,149)
B4: кол-во | C4: доходы | D4: кол-во | E4: доходы | F4: кол-во | G4: доходы | H4: кол-во | I4: доходы | J4: кол-во | K4: доходы | L4: кол-во | M4: доходы | N4: кол-во | O4: доходы | P4: кол-во | Q4: доходы | R4: кол-во | S4: доходы | T4: кол-во | U4: доходы
A5: 2014-03-01 | B5: =SUMIFS(ежемесячный!$F:$F,ежемесячный!$C:$C,$A5,ежемесячный!$D:$D,$A$1,ежемесячный!$E:$E,B$2) -> 0 | C5: =SUMIFS(ежемесячный!$G:$G,ежемесячный!$C:$C,$A5,ежемесячный!$D:$D,$A$1,ежемесячный!$E:$E,B$2) -> 0 | D5: =SUMIFS(ежемесячный!$F:$F,ежемесячный!$C:$C,$A5,ежемесячный!$D:$D,$A$1,ежемесячный!$E:$E,D$2) -> 0 | E5: =SUMIFS(ежемесячный!$G:$G,ежемесячный!$C:$C,$A5,ежемесячный!$D:$D,$A$1,ежемесячный!$E:$E,D$2) -> 0 | F5: =SUMIFS(ежемесячный!$F:$F,ежемесячный!$C:$C,$A5,ежемесячный!$D:$D,$A$1,ежемесячный!$E:$E,F$2) -> 0 | G5: =SUMIFS(ежемесячный!$G:$G,ежемесячный!$C:$C,$A5,ежемесячный!$D:$D,$A$1,ежемесячный!$E:$E,F$2) -> 0 | H5: =SUMIFS(ежемесячный!$F:$F,ежемесячный!$C:$C,$A5,ежемесячный!$D:$D,$A$1,ежемесячный!$E:$E,H$2) -> 0 | I5: =SUMIFS(ежемесячный!$G:$G,ежемесячный!$C:$C,$A5,ежемесячный!$D:$D,$A$1,ежемесячный!$E:$E,H$2) -> 0 | J5: =SUMIFS(ежемесячный!$F:$F,ежемесячный!$C:$C,$A5,ежемесячный!$D:$D,$A$1,ежемесячный!$E:$E,J$2) -> 0 | K5: =SUMIFS(ежемесячный!$G:$G,ежемесячный!$C:$C,$A5,ежемесячный!$D:$D,$A$1,ежемесячный!$E:$E,J$2) -> 0 | L5: =SUMIFS(ежемесячный!$F:$F,ежемесячный!$C:$C,$A5,ежемесячный!$D:$D,$A$1,ежемесячный!$E:$E,L$2) -> 0 | M5: =SUMIFS(ежемесячный!$G:$G,ежемесячный!$C:$C,$A5,ежемесячный!$D:$D,$A$1,ежемесячный!$E:$E,L$2) -> 0 | N5: =SUMIFS(ежемесячный!$F:$F,ежемесячный!$C:$C,$A5,ежемесячный!$D:$D,$A$1,ежемесячный!$E:$E,N$2) -> 0 | O5: =SUMIFS(ежемесячный!$G:$G,ежемесячный!$C:$C,$A5,ежемесячный!$D:$D,$A$1,ежемесячный!$E:$E,N$2) -> 0 | P5: =SUMIFS(ежемесячный!$F:$F,ежемесячный!$C:$C,$A5,ежемесячный!$D:$D,$A$1,ежемесячный!$E:$E,P$2) -> 0 | Q5: =SUMIFS(ежемесячный!$G:$G,ежемесячный!$C:$C,$A5,ежемесячный!$D:$D,$A$1,ежемесячный!$E:$E,P$2) -> 0 | R5: =SUMIFS(ежемесячный!$F:$F,ежемесячный!$C:$C,$A5,ежемесячный!$D:$D,$A$1,ежемесячный!$E:$E,R$2) -> 0 | S5: =SUMIFS(ежемесячный!$G:$G,ежемесячный!$C:$C,$A5,ежемесячный!$D:$D,$A$1,ежемесячный!$E:$E,R$2) -> 0 | T5: =SUMIFS(ежемесячный!$F:$F,ежемесячный!$C:$C,$A5,ежемесячный!$D:$D,$A$1,ежемесячный!$E:$E,T$2) -> 0 | U5: =SUMIFS(ежемесячный!$G:$G,ежемесячный!$C:$C,$A5,ежемесячный!$D:$D,$A$1,ежемесячный!$E:$E,T$2) -> 0 | V5: =U5+S5+Q5+O5+M5+K5+I5+G5+E5+C5 -> 0
A6: 2014-03-02 | B6: =SUMIFS(ежемесячный!$F:$F,ежемесячный!$C:$C,$A6,ежемесячный!$D:$D,$A$1,ежемесячный!$E:$E,B$2) -> 0 | C6: =SUMIFS(ежемесячный!$G:$G,ежемесячный!$C:$C,$A6,ежемесячный!$D:$D,$A$1,ежемесячный!$E:$E,B$2) -> 0 | D6: =SUMIFS(ежемесячный!$F:$F,ежемесячный!$C:$C,$A6,ежемесячный!$D:$D,$A$1,ежемесячный!$E:$E,D$2) -> 0 | E6: =SUMIFS(ежемесячный!$G:$G,ежемесячный!$C:$C,$A6,ежемесячный!$D:$D,$A$1,ежемесячный!$E:$E,D$2) -> 0 | F6: =SUMIFS(ежемесячный!$F:$F,ежемесячный!$C:$C,$A6,ежемесячный!$D:$D,$A$1,ежемесячный!$E:$E,F$2) -> 0 | G6: =SUMIFS(ежемесячный!$G:$G,ежемесячный!$C:$C,$A6,ежемесячный!$D:$D,$A$1,ежемесячный!$E:$E,F$2) -> 0 | H6: =SUMIFS(ежемесячный!$F:$F,ежемесячный!$C:$C,$A6,ежемесячный!$D:$D,$A$1,ежемесячный!$E:$E,H$2) -> 0 | I6: =SUMIFS(ежемесячный!$G:$G,ежемесячный!$C:$C,$A6,ежемесячный!$D:$D,$A$1,ежемесячный!$E:$E,H$2) -> 0 | J6: =SUMIFS(ежемесячный!$F:$F,ежемесячный!$C:$C,$A6,ежемесячный!$D:$D,$A$1,ежемесячный!$E:$E,J$2) -> 0 | K6: =SUMIFS(ежемесячный!$G:$G,ежемесячный!$C:$C,$A6,ежемесячный!$D:$D,$A$1,ежемесячный!$E:$E,J$2) -> 0 | L6: =SUMIFS(ежемесячный!$F:$F,ежемесячный!$C:$C,$A6,ежемесячный!$D:$D,$A$1,ежемесячный!$E:$E,L$2) -> 0 | M6: =SUMIFS(ежемесячный!$G:$G,ежемесячный!$C:$C,$A6,ежемесячный!$D:$D,$A$1,ежемесячный!$E:$E,L$2) -> 0 | N6: =SUMIFS(ежемесячный!$F:$F,ежемесячный!$C:$C,$A6,ежемесячный!$D:$D,$A$1,ежемесячный!$E:$E,N$2) -> 0 | O6: =SUMIFS(ежемесячный!$G:$G,ежемесячный!$C:$C,$A6,ежемесячный!$D:$D,$A$1,ежемесячный!$E:$E,N$2) -> 0 | P6: =SUMIFS(ежемесячный!$F:$F,ежемесячный!$C:$C,$A6,ежемесячный!$D:$D,$A$1,ежемесячный!$E:$E,P$2) -> 0 | Q6: =SUMIFS(ежемесячный!$G:$G,ежемесячный!$C:$C,$A6,ежемесячный!$D:$D,$A$1,ежемесячный!$E:$E,P$2) -> 0 | R6: =SUMIFS(ежемесячный!$F:$F,ежемесячный!$C:$C,$A6,ежемесячный!$D:$D,$A$1,ежемесячный!$E:$E,R$2) -> 0 | S6: =SUMIFS(ежемесячный!$G:$G,ежемесячный!$C:$C,$A6,ежемесячный!$D:$D,$A$1,ежемесячный!$E:$E,R$2) -> 0 | T6: =SUMIFS(ежемесячный!$F:$F,ежемесячный!$C:$C,$A6,ежемесячный!$D:$D,$A$1,ежемесячный!$E:$E,T$2) -> 0 | U6: =SUMIFS(ежемесячный!$G:$G,ежемесячный!$C:$C,$A6,ежемесячный!$D:$D,$A$1,ежемесячный!$E:$E,T$2) -> 0 | V6: 0
A7: 2014-03-03 | B7: =SUMIFS(ежемесячный!$F:$F,ежемесячный!$C:$C,$A7,ежемесячный!$D:$D,$A$1,ежемесячный!$E:$E,B$2) -> 0 | C7: =SUMIFS(ежемесячный!$G:$G,ежемесячный!$C:$C,$A7,ежемесячный!$D:$D,$A$1,ежемесячный!$E:$E,B$2) -> 0 | D7: =SUMIFS(ежемесячный!$F:$F,ежемесячный!$C:$C,$A7,ежемесячный!$D:$D,$A$1,ежемесячный!$E:$E,D$2) -> 0 | E7: =SUMIFS(ежемесячный!$G:$G,ежемесячный!$C:$C,$A7,ежемесячный!$D:$D,$A$1,ежемесячный!$E:$E,D$2) -> 0 | F7: =SUMIFS(ежемесячный!$F:$F,ежемесячный!$C:$C,$A7,ежемесячный!$D:$D,$A$1,ежемесячный!$E:$E,F$2) -> 0 | G7: =SUMIFS(ежемесячный!$G:$G,ежемесячный!$C:$C,$A7,ежемесячный!$D:$D,$A$1,ежемесячный!$E:$E,F$2) -> 0 | H7: =SUMIFS(ежемесячный!$F:$F,ежемесячный!$C:$C,$A7,ежемесячный!$D:$D,$A$1,ежемесячный!$E:$E,H$2) -> 0 | I7: =SUMIFS(ежемесячный!$G:$G,ежемесячный!$C:$C,$A7,ежемесячный!$D:$D,$A$1,ежемесячный!$E:$E,H$2) -> 0 | J7: =SUMIFS(ежемесячный!$F:$F,ежемесячный!$C:$C,$A7,ежемесячный!$D:$D,$A$1,ежемесячный!$E:$E,J$2) -> 0 | K7: =SUMIFS(ежемесячный!$G:$G,ежемесячный!$C:$C,$A7,ежемесячный!$D:$D,$A$1,ежемесячный!$E:$E,J$2) -> 0 | L7: =SUMIFS(ежемесячный!$F:$F,ежемесячный!$C:$C,$A7,ежемесячный!$D:$D,$A$1,ежемесячный!$E:$E,L$2) -> 0 | M7: =SUMIFS(ежемесячный!$G:$G,ежемесячный!$C:$C,$A7,ежемесячный!$D:$D,$A$1,ежемесячный!$E:$E,L$2) -> 0 | N7: =SUMIFS(ежемесячный!$F:$F,ежемесячный!$C:$C,$A7,ежемесячный!$D:$D,$A$1,ежемесячный!$E:$E,N$2) -> 0 | O7: =SUMIFS(ежемесячный!$G:$G,ежемесячный!$C:$C,$A7,ежемесячный!$D:$D,$A$1,ежемесячный!$E:$E,N$2) -> 0 | P7: =SUMIFS(ежемесячный!$F:$F,ежемесячный!$C:$C,$A7,ежемесячный!$D:$D,$A$1,ежемесячный!$E:$E,P$2) -> 0 | Q7: =SUMIFS(ежемесячный!$G:$G,ежемесячный!$C:$C,$A7,ежемесячный!$D:$D,$A$1,ежемесячный!$E:$E,P$2) -> 0 | R7: =SUMIFS(ежемесячный!$F:$F,ежемесячный!$C:$C,$A7,ежемесячный!$D:$D,$A$1,ежемесячный!$E:$E,R$2) -> 0 | S7: =SUMIFS(ежемесячный!$G:$G,ежемесячный!$C:$C,$A7,ежемесячный!$D:$D,$A$1,ежемесячный!$E:$E,R$2) -> 0 | T7: =SUMIFS(ежемесячный!$F:$F,ежемесячный!$C:$C,$A7,ежемесячный!$D:$D,$A$1,ежемесячный!$E:$E,T$2) -> 0 | U7: =SUMIFS(ежемесячный!$G:$G,ежемесячный!$C:$C,$A7,ежемесячный!$D:$D,$A$1,ежемесячный!$E:$E,T$2) -> 0 | V7: 0
A8: 2014-03-04 | B8: =SUMIFS(ежемесячный!$F:$F,ежемесячный!$C:$C,$A8,ежемесячный!$D:$D,$A$1,ежемесячный!$E:$E,B$2) -> 0 | C8: =SUMIFS(ежемесячный!$G:$G,ежемесячный!$C:$C,$A8,ежемесячный!$D:$D,$A$1,ежемесячный!$E:$E,B$2) -> 0 | D8: =SUMIFS(ежемесячный!$F:$F,ежемесячный!$C:$C,$A8,ежемесячный!$D:$D,$A$1,ежемесячный!$E:$E,D$2) -> 0 | E8: =SUMIFS(ежемесячный!$G:$G,ежемесячный!$C:$C,$A8,ежемесячный!$D:$D,$A$1,ежемесячный!$E:$E,D$2) -> 0 | F8: =SUMIFS(ежемесячный!$F:$F,ежемесячный!$C:$C,$A8,ежемесячный!$D:$D,$A$1,ежемесячный!$E:$E,F$2) -> 0 | G8: =SUMIFS(ежемесячный!$G:$G,ежемесячный!$C:$C,$A8,ежемесячный!$D:$D,$A$1,ежемесячный!$E:$E,F$2) -> 0 | H8: =SUMIFS(ежемесячный!$F:$F,ежемесячный!$C:$C,$A8,ежемесячный!$D:$D,$A$1,ежемесячный!$E:$E,H$2) -> 0 | I8: =SUMIFS(ежемесячный!$G:$G,ежемесячный!$C:$C,$A8,ежемесячный!$D:$D,$A$1,ежемесячный!$E:$E,H$2) -> 0 | J8: =SUMIFS(ежемесячный!$F:$F,ежемесячный!$C:$C,$A8,ежемесячный!$D:$D,$A$1,ежемесячный!$E:$E,J$2) -> 0 | K8: =SUMIFS(ежемесячный!$G:$G,ежемесячный!$C:$C,$A8,ежемесячный!$D:$D,$A$1,ежемесячный!$E:$E,J$2) -> 0 | L8: =SUMIFS(ежемесячный!$F:$F,ежемесячный!$C:$C,$A8,ежемесячный!$D:$D,$A$1,ежемесячный!$E:$E,L$2) -> 0 | M8: =SUMIFS(ежемесячный!$G:$G,ежемесячный!$C:$C,$A8,ежемесячный!$D:$D,$A$1,ежемесячный!$E:$E,L$2) -> 0 | N8: =SUMIFS(ежемесячный!$F:$F,ежемесячный!$C:$C,$A8,ежемесячный!$D:$D,$A$1,ежемесячный!$E:$E,N$2) -> 0 | O8: =SUMIFS(ежемесячный!$G:$G,ежемесячный!$C:$C,$A8,ежемесячный!$D:$D,$A$1,ежемесячный!$E:$E,N$2) -> 0 | P8: =SUMIFS(ежемесячный!$F:$F,ежемесячный!$C:$C,$A8,ежемесячный!$D:$D,$A$1,ежемесячный!$E:$E,P$2) -> 0 | Q8: =SUMIFS(ежемесячный!$G:$G,ежемесячный!$C:$C,$A8,ежемесячный!$D:$D,$A$1,ежемесячный!$E:$E,P$2) -> 0 | R8: =SUMIFS(ежемесячный!$F:$F,ежемесячный!$C:$C,$A8,ежемесячный!$D:$D,$A$1,ежемесячный!$E:$E,R$2) -> 0 | S8: =SUMIFS(ежемесячный!$G:$G,ежемесячный!$C:$C,$A8,ежемесячный!$D:$D,$A$1,ежемесячный!$E:$E,R$2) -> 0 | T8: =SUMIFS(ежемесячный!$F:$F,ежемесячный!$C:$C,$A8,ежемесячный!$D:$D,$A$1,ежемесячный!$E:$E,T$2) -> 0 | U8: =SUMIFS(ежемесячный!$G:$G,ежемесячный!$C:$C,$A8,ежемесячный!$D:$D,$A$1,ежемесячный!$E:$E,T$2) -> 0 | V8: 0
A9: 2014-03-05 | B9: =SUMIFS(ежемесячный!$F:$F,ежемесячный!$C:$C,$A9,ежемесячный!$D:$D,$A$1,ежемесячный!$E:$E,B$2) -> 0 | C9: =SUMIFS(ежемесячный!$G:$G,ежемесячный!$C:$C,$A9,ежемесячный!$D:$D,$A$1,ежемесячный!$E:$E,B$2) -> 0 | D9: =SUMIFS(ежемесячный!$F:$F,ежемесячный!$C:$C,$A9,ежемесячный!$D:$D,$A$1,ежемесячный!$E:$E,D$2) -> 0 | E9: =SUMIFS(ежемесячный!$G:$G,ежемесячный!$C:$C,$A9,ежемесячный!$D:$D,$A$1,ежемесячный!$E:$E,D$2) -> 0 | F9: =SUMIFS(ежемесячный!$F:$F,ежемесячный!$C:$C,$A9,ежемесячный!$D:$D,$A$1,ежемесячный!$E:$E,F$2) -> 0 | G9: =SUMIFS(ежемесячный!$G:$G,ежемесячный!$C:$C,$A9,ежемесячный!$D:$D,$A$1,ежемесячный!$E:$E,F$2) -> 0 | H9: =SUMIFS(ежемесячный!$F:$F,ежемесячный!$C:$C,$A9,ежемесячный!$D:$D,$A$1,ежемесячный!$E:$E,H$2) -> 0 | I9: =SUMIFS(ежемесячный!$G:$G,ежемесячный!$C:$C,$A9,ежемесячный!$D:$D,$A$1,ежемесячный!$E:$E,H$2) -> 0 | J9: =SUMIFS(ежемесячный!$F:$F,ежемесячный!$C:$C,$A9,ежемесячный!$D:$D,$A$1,ежемесячный!$E:$E,J$2) -> 0 | K9: =SUMIFS(ежемесячный!$G:$G,ежемесячный!$C:$C,$A9,ежемесячный!$D:$D,$A$1,ежемесячный!$E:$E,J$2) -> 0 | L9: =SUMIFS(ежемесячный!$F:$F,ежемесячный!$C:$C,$A9,ежемесячный!$D:$D,$A$1,ежемесячный!$E:$E,L$2) -> 0 | M9: =SUMIFS(ежемесячный!$G:$G,ежемесячный!$C:$C,$A9,ежемесячный!$D:$D,$A$1,ежемесячный!$E:$E,L$2) -> 0 | N9: =SUMIFS(ежемесячный!$F:$F,ежемесячный!$C:$C,$A9,ежемесячный!$D:$D,$A$1,ежемесячный!$E:$E,N$2) -> 0 | O9: =SUMIFS(ежемесячный!$G:$G,ежемесячный!$C:$C,$A9,ежемесячный!$D:$D,$A$1,ежемесячный!$E:$E,N$2) -> 0 | P9: =SUMIFS(ежемесячный!$F:$F,ежемесячный!$C:$C,$A9,ежемесячный!$D:$D,$A$1,ежемесячный!$E:$E,P$2) -> 0 | Q9: =SUMIFS(ежемесячный!$G:$G,ежемесячный!$C:$C,$A9,ежемесячный!$D:$D,$A$1,ежемесячный!$E:$E,P$2) -> 0 | R9: =SUMIFS(ежемесячный!$F:$F,ежемесячный!$C:$C,$A9,ежемесячный!$D:$D,$A$1,ежемесячный!$E:$E,R$2) -> 0 | S9: =SUMIFS(ежемесячный!$G:$G,ежемесячный!$C:$C,$A9,ежемесячный!$D:$D,$A$1,ежемесячный!$E:$E,R$2) -> 0 | T9: =SUMIFS(ежемесячный!$F:$F,ежемесячный!$C:$C,$A9,ежемесячный!$D:$D,$A$1,ежемесячный!$E:$E,T$2) -> 0 | U9: =SUMIFS(ежемесячный!$G:$G,ежемесячный!$C:$C,$A9,ежемесячный!$D:$D,$A$1,ежемесячный!$E:$E,T$2) -> 0 | V9: 0
A10: 2014-03-06 | B10: =SUMIFS(ежемесячный!$F:$F,ежемесячный!$C:$C,$A10,ежемесячный!$D:$D,$A$1,ежемесячный!$E:$E,B$2) -> 0 | C10: =SUMIFS(ежемесячный!$G:$G,ежемесячный!$C:$C,$A10,ежемесячный!$D:$D,$A$1,ежемесячный!$E:$E,B$2) -> 0 | D10: =SUMIFS(ежемесячный!$F:$F,ежемесячный!$C:$C,$A10,ежемесячный!$D:$D,$A$1,ежемесячный!$E:$E,D$2) -> 0 | E10: =SUMIFS(ежемесячный!$G:$G,ежемесячный!$C:$C,$A10,ежемесячный!$D:$D,$A$1,ежемесячный!$E:$E,D$2) -> 0 | F10: =SUMIFS(ежемесячный!$F:$F,ежемесячный!$C:$C,$A10,ежемесячный!$D:$D,$A$1,ежемесячный!$E:$E,F$2) -> 0 | G10: =SUMIFS(ежемесячный!$G:$G,ежемесячный!$C:$C,$A10,ежемесячный!$D:$D,$A$1,ежемесячный!$E:$E,F$2) -> 0 | H10: =SUMIFS(ежемесячный!$F:$F,ежемесячный!$C:$C,$A10,ежемесячный!$D:$D,$A$1,ежемесячный!$E:$E,H$2) -> 0 | I10: =SUMIFS(ежемесячный!$G:$G,ежемесячный!$C:$C,$A10,ежемесячный!$D:$D,$A$1,ежемесячный!$E:$E,H$2) -> 0 | J10: =SUMIFS(ежемесячный!$F:$F,ежемесячный!$C:$C,$A10,ежемесячный!$D:$D,$A$1,ежемесячный!$E:$E,J$2) -> 0 | K10: =SUMIFS(ежемесячный!$G:$G,ежемесячный!$C:$C,$A10,ежемесячный!$D:$D,$A$1,ежемесячный!$E:$E,J$2) -> 0 | L10: =SUMIFS(ежемесячный!$F:$F,ежемесячный!$C:$C,$A10,ежемесячный!$D:$D,$A$1,ежемесячный!$E:$E,L$2) -> 0 | M10: =SUMIFS(ежемесячный!$G:$G,ежемесячный!$C:$C,$A10,ежемесячный!$D:$D,$A$1,ежемесячный!$E:$E,L$2) -> 0 | N10: =SUMIFS(ежемесячный!$F:$F,ежемесячный!$C:$C,$A10,ежемесячный!$D:$D,$A$1,ежемесячный!$E:$E,N$2) -> 0 | O10: =SUMIFS(ежемесячный!$G:$G,ежемесячный!$C:$C,$A10,ежемесячный!$D:$D,$A$1,ежемесячный!$E:$E,N$2) -> 0 | P10: =SUMIFS(ежемесячный!$F:$F,ежемесячный!$C:$C,$A10,ежемесячный!$D:$D,$A$1,ежемесячный!$E:$E,P$2) -> 0 | Q10: =SUMIFS(ежемесячный!$G:$G,ежемесячный!$C:$C,$A10,ежемесячный!$D:$D,$A$1,ежемесячный!$E:$E,P$2) -> 0 | R10: =SUMIFS(ежемесячный!$F:$F,ежемесячный!$C:$C,$A10,ежемесячный!$D:$D,$A$1,ежемесячный!$E:$E,R$2) -> 0 | S10: =SUMIFS(ежемесячный!$G:$G,ежемесячный!$C:$C,$A10,ежемесячный!$D:$D,$A$1,ежемесячный!$E:$E,R$2) -> 0 | T10: =SUMIFS(ежемесячный!$F:$F,ежемесячный!$C:$C,$A10,ежемесячный!$D:$D,$A$1,ежемесячный!$E:$E,T$2) -> 0 | U10: =SUMIFS(ежемесячный!$G:$G,ежемесячный!$C:$C,$A10,ежемесячный!$D:$D,$A$1,ежемесячный!$E:$E,T$2) -> 0 | V10: 0
A11: 2014-03-07 | B11: =SUMIFS(ежемесячный!$F:$F,ежемесячный!$C:$C,$A11,ежемесячный!$D:$D,$A$1,ежемесячный!$E:$E,B$2) -> 0 | C11: =SUMIFS(ежемесячный!$G:$G,ежемесячный!$C:$C,$A11,ежемесячный!$D:$D,$A$1,ежемесячный!$E:$E,B$2) -> 0 | D11: =SUMIFS(ежемесячный!$F:$F,ежемесячный!$C:$C,$A11,ежемесячный!$D:$D,$A$1,ежемесячный!$E:$E,D$2) -> 0 | E11: =SUMIFS(ежемесячный!$G:$G,ежемесячный!$C:$C,$A11,ежемесячный!$D:$D,$A$1,ежемесячный!$E:$E,D$2) -> 0 | F11: =SUMIFS(ежемесячный!$F:$F,ежемесячный!$C:$C,$A11,ежемесячный!$D:$D,$A$1,ежемесячный!$E:$E,F$2) -> 0 | G11: =SUMIFS(ежемесячный!$G:$G,ежемесячный!$C:$C,$A11,ежемесячный!$D:$D,$A$1,ежемесячный!$E:$E,F$2) -> 0 | H11: =SUMIFS(ежемесячный!$F:$F,ежемесячный!$C:$C,$A11,ежемесячный!$D:$D,$A$1,ежемесячный!$E:$E,H$2) -> 0 | I11: =SUMIFS(ежемесячный!$G:$G,ежемесячный!$C:$C,$A11,ежемесячный!$D:$D,$A$1,ежемесячный!$E:$E,H$2) -> 0 | J11: =SUMIFS(ежемесячный!$F:$F,ежемесячный!$C:$C,$A11,ежемесячный!$D:$D,$A$1,ежемесячный!$E:$E,J$2) -> 0 | K11: =SUMIFS(ежемесячный!$G:$G,ежемесячный!$C:$C,$A11,ежемесячный!$D:$D,$A$1,ежемесячный!$E:$E,J$2) -> 0 | L11: =SUMIFS(ежемесячный!$F:$F,ежемесячный!$C:$C,$A11,ежемесячный!$D:$D,$A$1,ежемесячный!$E:$E,L$2) -> 0 | M11: =SUMIFS(ежемесячный!$G:$G,ежемесячный!$C:$C,$A11,ежемесячный!$D:$D,$A$1,ежемесячный!$E:$E,L$2) -> 0 | N11: =SUMIFS(ежемесячный!$F:$F,ежемесячный!$C:$C,$A11,ежемесячный!$D:$D,$A$1,ежемесячный!$E:$E,N$2) -> 0 | O11: =SUMIFS(ежемесячный!$G:$G,ежемесячный!$C:$C,$A11,ежемесячный!$D:$D,$A$1,ежемесячный!$E:$E,N$2) -> 0 | P11: =SUMIFS(ежемесячный!$F:$F,ежемесячный!$C:$C,$A11,ежемесячный!$D:$D,$A$1,ежемесячный!$E:$E,P$2) -> 0 | Q11: =SUMIFS(ежемесячный!$G:$G,ежемесячный!$C:$C,$A11,ежемесячный!$D:$D,$A$1,ежемесячный!$E:$E,P$2) -> 0 | R11: =SUMIFS(ежемесячный!$F:$F,ежемесячный!$C:$C,$A11,ежемесячный!$D:$D,$A$1,ежемесячный!$E:$E,R$2) -> 0 | S11: =SUMIFS(ежемесячный!$G:$G,ежемесячный!$C:$C,$A11,ежемесячный!$D:$D,$A$1,ежемесячный!$E:$E,R$2) -> 0 | T11: =SUMIFS(ежемесячный!$F:$F,ежемесячный!$C:$C,$A11,ежемесячный!$D:$D,$A$1,ежемесячный!$E:$E,T$2) -> 0 | U11: =SUMIFS(ежемесячный!$G:$G,ежемесячный!$C:$C,$A11,ежемесячный!$D:$D,$A$1,ежемесячный!$E:$E,T$2) -> 0 | V11: 0
A12: 2014-03-08 | B12: =SUMIFS(ежемесячный!$F:$F,ежемесячный!$C:$C,$A12,ежемесячный!$D:$D,$A$1,ежемесячный!$E:$E,B$2) -> 0 | C12: =SUMIFS(ежемесячный!$G:$G,ежемесячный!$C:$C,$A12,ежемесячный!$D:$D,$A$1,ежемесячный!$E:$E,B$2) -> 0 | D12: =SUMIFS(ежемесячный!$F:$F,ежемесячный!$C:$C,$A12,ежемесячный!$D:$D,$A$1,ежемесячный!$E:$E,D$2) -> 0 | E12: =SUMIFS(ежемесячный!$G:$G,ежемесячный!$C:$C,$A12,ежемесячный!$D:$D,$A$1,ежемесячный!$E:$E,D$2) -> 0 | F12: =SUMIFS(ежемесячный!$F:$F,ежемесячный!$C:$C,$A12,ежемесячный!$D:$D,$A$1,ежемесячный!$E:$E,F$2) -> 0 | G12: =SUMIFS(ежемесячный!$G:$G,ежемесячный!$C:$C,$A12,ежемесячный!$D:$D,$A$1,ежемесячный!$E:$E,F$2) -> 0 | H12: =SUMIFS(ежемесячный!$F:$F,ежемесячный!$C:$C,$A12,ежемесячный!$D:$D,$A$1,ежемесячный!$E:$E,H$2) -> 0 | I12: =SUMIFS(ежемесячный!$G:$G,ежемесячный!$C:$C,$A12,ежемесячный!$D:$D,$A$1,ежемесячный!$E:$E,H$2) -> 0 | J12: =SUMIFS(ежемесячный!$F:$F,ежемесячный!$C:$C,$A12,ежемесячный!$D:$D,$A$1,ежемесячный!$E:$E,J$2) -> 0 | K12: =SUMIFS(ежемесячный!$G:$G,ежемесячный!$C:$C,$A12,ежемесячный!$D:$D,$A$1,ежемесячный!$E:$E,J$2) -> 0 | L12: =SUMIFS(ежемесячный!$F:$F,ежемесячный!$C:$C,$A12,ежемесячный!$D:$D,$A$1,ежемесячный!$E:$E,L$2) -> 0 | M12: =SUMIFS(ежемесячный!$G:$G,ежемесячный!$C:$C,$A12,ежемесячный!$D:$D,$A$1,ежемесячный!$E:$E,L$2) -> 0 | N12: =SUMIFS(ежемесячный!$F:$F,ежемесячный!$C:$C,$A12,ежемесячный!$D:$D,$A$1,ежемесячный!$E:$E,N$2) -> 0 | O12: =SUMIFS(ежемесячный!$G:$G,ежемесячный!$C:$C,$A12,ежемесячный!$D:$D,$A$1,ежемесячный!$E:$E,N$2) -> 0 | P12: =SUMIFS(ежемесячный!$F:$F,ежемесячный!$C:$C,$A12,ежемесячный!$D:$D,$A$1,ежемесячный!$E:$E,P$2) -> 0 | Q12: =SUMIFS(ежемесячный!$G:$G,ежемесячный!$C:$C,$A12,ежемесячный!$D:$D,$A$1,ежемесячный!$E:$E,P$2) -> 0 | R12: =SUMIFS(ежемесячный!$F:$F,ежемесячный!$C:$C,$A12,ежемесячный!$D:$D,$A$1,ежемесячный!$E:$E,R$2) -> 0 | S12: =SUMIFS(ежемесячный!$G:$G,ежемесячный!$C:$C,$A12,ежемесячный!$D:$D,$A$1,ежемесячный!$E:$E,R$2) -> 0 | T12: =SUMIFS(ежемесячный!$F:$F,ежемесячный!$C:$C,$A12,ежемесячный!$D:$D,$A$1,ежемесячный!$E:$E,T$2) -> 0 | U12: =SUMIFS(ежемесячный!$G:$G,ежемесячный!$C:$C,$A12,ежемесячный!$D:$D,$A$1,ежемесячный!$E:$E,T$2) -> 0 | V12: 0
A13: 2014-03-09 | B13: =SUMIFS(ежемесячный!$F:$F,ежемесячный!$C:$C,$A13,ежемесячный!$D:$D,$A$1,ежемесячный!$E:$E,B$2) -> 0 | C13: =SUMIFS(ежемесячный!$G:$G,ежемесячный!$C:$C,$A13,ежемесячный!$D:$D,$A$1,ежемесячный!$E:$E,B$2) -> 0 | D13: =SUMIFS(ежемесячный!$F:$F,ежемесячный!$C:$C,$A13,ежемесячный!$D:$D,$A$1,ежемесячный!$E:$E,D$2) -> 0 | E13: =SUMIFS(ежемесячный!$G:$G,ежемесячный!$C:$C,$A13,ежемесячный!$D:$D,$A$1,ежемесячный!$E:$E,D$2) -> 0 | F13: =SUMIFS(ежемесячный!$F:$F,ежемесячный!$C:$C,$A13,ежемесячный!$D:$D,$A$1,ежемесячный!$E:$E,F$2) -> 0 | G13: =SUMIFS(ежемесячный!$G:$G,ежемесячный!$C:$C,$A13,ежемесячный!$D:$D,$A$1,ежемесячный!$E:$E,F$2) -> 0 | H13: =SUMIFS(ежемесячный!$F:$F,ежемесячный!$C:$C,$A13,ежемесячный!$D:$D,$A$1,ежемесячный!$E:$E,H$2) -> 0 | I13: =SUMIFS(ежемесячный!$G:$G,ежемесячный!$C:$C,$A13,ежемесячный!$D:$D,$A$1,ежемесячный!$E:$E,H$2) -> 0 | J13: =SUMIFS(ежемесячный!$F:$F,ежемесячный!$C:$C,$A13,ежемесячный!$D:$D,$A$1,ежемесячный!$E:$E,J$2) -> 0 | K13: =SUMIFS(ежемесячный!$G:$G,ежемесячный!$C:$C,$A13,ежемесячный!$D:$D,$A$1,ежемесячный!$E:$E,J$2) -> 0 | L13: =SUMIFS(ежемесячный!$F:$F,ежемесячный!$C:$C,$A13,ежемесячный!$D:$D,$A$1,ежемесячный!$E:$E,L$2) -> 0 | M13: =SUMIFS(ежемесячный!$G:$G,ежемесячный!$C:$C,$A13,ежемесячный!$D:$D,$A$1,ежемесячный!$E:$E,L$2) -> 0 | N13: =SUMIFS(ежемесячный!$F:$F,ежемесячный!$C:$C,$A13,ежемесячный!$D:$D,$A$1,ежемесячный!$E:$E,N$2) -> 0 | O13: =SUMIFS(ежемесячный!$G:$G,ежемесячный!$C:$C,$A13,ежемесячный!$D:$D,$A$1,ежемесячный!$E:$E,N$2) -> 0 | P13: =SUMIFS(ежемесячный!$F:$F,ежемесячный!$C:$C,$A13,ежемесячный!$D:$D,$A$1,ежемесячный!$E:$E,P$2) -> 0 | Q13: =SUMIFS(ежемесячный!$G:$G,ежемесячный!$C:$C,$A13,ежемесячный!$D:$D,$A$1,ежемесячный!$E:$E,P$2) -> 0 | R13: =SUMIFS(ежемесячный!$F:$F,ежемесячный!$C:$C,$A13,ежемесячный!$D:$D,$A$1,ежемесячный!$E:$E,R$2) -> 0 | S13: =SUMIFS(ежемесячный!$G:$G,ежемесячный!$C:$C,$A13,ежемесячный!$D:$D,$A$1,ежемесячный!$E:$E,R$2) -> 0 | T13: =SUMIFS(ежемесячный!$F:$F,ежемесячный!$C:$C,$A13,ежемесячный!$D:$D,$A$1,ежемесячный!$E:$E,T$2) -> 0 | U13: =SUMIFS(ежемесячный!$G:$G,ежемесячный!$C:$C,$A13,ежемесячный!$D:$D,$A$1,ежемесячный!$E:$E,T$2) -> 0 | V13: 0
A14: 2014-03-10 | B14: =SUMIFS(ежемесячный!$F:$F,ежемесячный!$C:$C,$A14,ежемесячный!$D:$D,$A$1,ежемесячный!$E:$E,B$2) -> 0 | C14: =SUMIFS(ежемесячный!$G:$G,ежемесячный!$C:$C,$A14,ежемесячный!$D:$D,$A$1,ежемесячный!$E:$E,B$2) -> 0 | D14: =SUMIFS(ежемесячный!$F:$F,ежемесячный!$C:$C,$A14,ежемесячный!$D:$D,$A$1,ежемесячный!$E:$E,D$2) -> 0 | E14: =SUMIFS(ежемесячный!$G:$G,ежемесячный!$C:$C,$A14,ежемесячный!$D:$D,$A$1,ежемесячный!$E:$E,D$2) -> 0 | F14: =SUMIFS(ежемесячный!$F:$F,ежемесячный!$C:$C,$A14,ежемесячный!$D:$D,$A$1,ежемесячный!$E:$E,F$2) -> 0 | G14: =SUMIFS(ежемесячный!$G:$G,ежемесячный!$C:$C,$A14,ежемесячный!$D:$D,$A$1,ежемесячный!$E:$E,F$2) -> 0 | H14: =SUMIFS(ежемесячный!$F:$F,ежемесячный!$C:$C,$A14,ежемесячный!$D:$D,$A$1,ежемесячный!$E:$E,H$2) -> 0 | I14: =SUMIFS(ежемесячный!$G:$G,ежемесячный!$C:$C,$A14,ежемесячный!$D:$D,$A$1,ежемесячный!$E:$E,H$2) -> 0 | J14: =SUMIFS(ежемесячный!$F:$F,ежемесячный!$C:$C,$A14,ежемесячный!$D:$D,$A$1,ежемесячный!$E:$E,J$2) -> 0 | K14: =SUMIFS(ежемесячный!$G:$G,ежемесячный!$C:$C,$A14,ежемесячный!$D:$D,$A$1,ежемесячный!$E:$E,J$2) -> 0 | L14: =SUMIFS(ежемесячный!$F:$F,ежемесячный!$C:$C,$A14,ежемесячный!$D:$D,$A$1,ежемесячный!$E:$E,L$2) -> 0 | M14: =SUMIFS(ежемесячный!$G:$G,ежемесячный!$C:$C,$A14,ежемесячный!$D:$D,$A$1,ежемесячный!$E:$E,L$2) -> 0 | N14: =SUMIFS(ежемесячный!$F:$F,ежемесячный!$C:$C,$A14,ежемесячный!$D:$D,$A$1,ежемесячный!$E:$E,N$2) -> 0 | O14: =SUMIFS(ежемесячный!$G:$G,ежемесячный!$C:$C,$A14,ежемесячный!$D:$D,$A$1,ежемесячный!$E:$E,N$2) -> 0 | P14: =SUMIFS(ежемесячный!$F:$F,ежемесячный!$C:$C,$A14,ежемесячный!$D:$D,$A$1,ежемесячный!$E:$E,P$2) -> 0 | Q14: =SUMIFS(ежемесячный!$G:$G,ежемесячный!$C:$C,$A14,ежемесячный!$D:$D,$A$1,ежемесячный!$E:$E,P$2) -> 0 | R14: =SUMIFS(ежемесячный!$F:$F,ежемесячный!$C:$C,$A14,ежемесячный!$D:$D,$A$1,ежемесячный!$E:$E,R$2) -> 0 | S14: =SUMIFS(ежемесячный!$G:$G,ежемесячный!$C:$C,$A14,ежемесячный!$D:$D,$A$1,ежемесячный!$E:$E,R$2) -> 0 | T14: =SUMIFS(ежемесячный!$F:$F,ежемесячный!$C:$C,$A14,ежемесячный!$D:$D,$A$1,ежемесячный!$E:$E,T$2) -> 0 | U14: =SUMIFS(ежемесячный!$G:$G,ежемесячный!$C:$C,$A14,ежемесячный!$D:$D,$A$1,ежемесячный!$E:$E,T$2) -> 0 | V14: 0
A15: 2014-03-11 | B15: =SUMIFS(ежемесячный!$F:$F,ежемесячный!$C:$C,$A15,ежемесячный!$D:$D,$A$1,ежемесячный!$E:$E,B$2) -> 0 | C15: =SUMIFS(ежемесячный!$G:$G,ежемесячный!$C:$C,$A15,ежемесячный!$D:$D,$A$1,ежемесячный!$E:$E,B$2) -> 0 | D15: =SUMIFS(ежемесячный!$F:$F,ежемесячный!$C:$C,$A15,ежемесячный!$D:$D,$A$1,ежемесячный!$E:$E,D$2) -> 0 | E15: =SUMIFS(ежемесячный!$G:$G,ежемесячный!$C:$C,$A15,ежемесячный!$D:$D,$A$1,ежемесячный!$E:$E,D$2) -> 0 | F15: =SUMIFS(ежемесячный!$F:$F,ежемесячный!$C:$C,$A15,ежемесячный!$D:$D,$A$1,ежемесячный!$E:$E,F$2) -> 0 | G15: =SUMIFS(ежемесячный!$G:$G,ежемесячный!$C:$C,$A15,ежемесячный!$D:$D,$A$1,ежемесячный!$E:$E,F$2) -> 0 | H15: =SUMIFS(ежемесячный!$F:$F,ежемесячный!$C:$C,$A15,ежемесячный!$D:$D,$A$1,ежемесячный!$E:$E,H$2) -> 0 | I15: =SUMIFS(ежемесячный!$G:$G,ежемесячный!$C:$C,$A15,ежемесячный!$D:$D,$A$1,ежемесячный!$E:$E,H$2) -> 0 | J15: =SUMIFS(ежемесячный!$F:$F,ежемесячный!$C:$C,$A15,ежемесячный!$D:$D,$A$1,ежемесячный!$E:$E,J$2) -> 0 | K15: =SUMIFS(ежемесячный!$G:$G,ежемесячный!$C:$C,$A15,ежемесячный!$D:$D,$A$1,ежемесячный!$E:$E,J$2) -> 0 | L15: =SUMIFS(ежемесячный!$F:$F,ежемесячный!$C:$C,$A15,ежемесячный!$D:$D,$A$1,ежемесячный!$E:$E,L$2) -> 0 | M15: =SUMIFS(ежемесячный!$G:$G,ежемесячный!$C:$C,$A15,ежемесячный!$D:$D,$A$1,ежемесячный!$E:$E,L$2) -> 0 | N15: =SUMIFS(ежемесячный!$F:$F,ежемесячный!$C:$C,$A15,ежемесячный!$D:$D,$A$1,ежемесячный!$E:$E,N$2) -> 0 | O15: =SUMIFS(ежемесячный!$G:$G,ежемесячный!$C:$C,$A15,ежемесячный!$D:$D,$A$1,ежемесячный!$E:$E,N$2) -> 0 | P15: =SUMIFS(ежемесячный!$F:$F,ежемесячный!$C:$C,$A15,ежемесячный!$D:$D,$A$1,ежемесячный!$E:$E,P$2) -> 0 | Q15: =SUMIFS(ежемесячный!$G:$G,ежемесячный!$C:$C,$A15,ежемесячный!$D:$D,$A$1,ежемесячный!$E:$E,P$2) -> 0 | R15: =SUMIFS(ежемесячный!$F:$F,ежемесячный!$C:$C,$A15,ежемесячный!$D:$D,$A$1,ежемесячный!$E:$E,R$2) -> 0 | S15: =SUMIFS(ежемесячный!$G:$G,ежемесячный!$C:$C,$A15,ежемесячный!$D:$D,$A$1,ежемесячный!$E:$E,R$2) -> 0 | T15: =SUMIFS(ежемесячный!$F:$F,ежемесячный!$C:$C,$A15,ежемесячный!$D:$D,$A$1,ежемесячный!$E:$E,T$2) -> 0 | U15: =SUMIFS(ежемесячный!$G:$G,ежемесячный!$C:$C,$A15,ежемесячный!$D:$D,$A$1,ежемесячный!$E:$E,T$2) -> 0 | V15: 0
A16: 2014-03-12 | B16: =SUMIFS(ежемесячный!$F:$F,ежемесячный!$C:$C,$A16,ежемесячный!$D:$D,$A$1,ежемесячный!$E:$E,B$2) -> 759 | C16: =SUMIFS(ежемесячный!$G:$G,ежемесячный!$C:$C,$A16,ежемесячный!$D:$D,$A$1,ежемесячный!$E:$E,B$2) -> 110757 | D16: =SUMIFS(ежемесячный!$F:$F,ежемесячный!$C:$C,$A16,ежемесячный!$D:$D,$A$1,ежемесячный!$E:$E,D$2) -> 140 | E16: =SUMIFS(ежемесячный!$G:$G,ежемесячный!$C:$C,$A16,ежемесячный!$D:$D,$A$1,ежемесячный!$E:$E,D$2) -> 201277 | F16: =SUMIFS(ежемесячный!$F:$F,ежемесячный!$C:$C,$A16,ежемесячный!$D:$D,$A$1,ежемесячный!$E:$E,F$2) -> 12 | G16: =SUMIFS(ежемесячный!$G:$G,ежемесячный!$C:$C,$A16,ежемесячный!$D:$D,$A$1,ежемесячный!$E:$E,F$2) -> 82875 | H16: =SUMIFS(ежемесячный!$F:$F,ежемесячный!$C:$C,$A16,ежемесячный!$D:$D,$A$1,ежемесячный!$E:$E,H$2) -> 478 | I16: =SUMIFS(ежемесячный!$G:$G,ежемесячный!$C:$C,$A16,ежемесячный!$D:$D,$A$1,ежемесячный!$E:$E,H$2) -> 14785 | J16: =SUMIFS(ежемесячный!$F:$F,ежемесячный!$C:$C,$A16,ежемесячный!$D:$D,$A$1,ежемесячный!$E:$E,J$2) -> 0 | K16: =SUMIFS(ежемесячный!$G:$G,ежемесячный!$C:$C,$A16,ежемесячный!$D:$D,$A$1,ежемесячный!$E:$E,J$2) -> 0 | L16: =SUMIFS(ежемесячный!$F:$F,ежемесячный!$C:$C,$A16,ежемесячный!$D:$D,$A$1,ежемесячный!$E:$E,L$2) -> 786 | M16: =SUMIFS(ежемесячный!$G:$G,ежемесячный!$C:$C,$A16,ежемесячный!$D:$D,$A$1,ежемесячный!$E:$E,L$2) -> 78043 | N16: =SUMIFS(ежемесячный!$F:$F,ежемесячный!$C:$C,$A16,ежемесячный!$D:$D,$A$1,ежемесячный!$E:$E,N$2) -> 15 | O16: =SUMIFS(ежемесячный!$G:$G,ежемесячный!$C:$C,$A16,ежемесячный!$D:$D,$A$1,ежемесячный!$E:$E,N$2) -> 3532087 | P16: =SUMIFS(ежемесячный!$F:$F,ежемесячный!$C:$C,$A16,ежемесячный!$D:$D,$A$1,ежемесячный!$E:$E,P$2) -> 209 | Q16: =SUMIFS(ежемесячный!$G:$G,ежемесячный!$C:$C,$A16,ежемесячный!$D:$D,$A$1,ежемесячный!$E:$E,P$2) -> 59963 | R16: =SUMIFS(ежемесячный!$F:$F,ежемесячный!$C:$C,$A16,ежемесячный!$D:$D,$A$1,ежемесячный!$E:$E,R$2) -> 9 | S16: =SUMIFS(ежемесячный!$G:$G,ежемесячный!$C:$C,$A16,ежемесячный!$D:$D,$A$1,ежемесячный!$E:$E,R$2) -> 1043870 | T16: =SUMIFS(ежемесячный!$F:$F,ежемесячный!$C:$C,$A16,ежемесячный!$D:$D,$A$1,ежемесячный!$E:$E,T$2) -> 161 | U16: =SUMIFS(ежемесячный!$G:$G,ежемесячный!$C:$C,$A16,ежемесячный!$D:$D,$A$1,ежемесячный!$E:$E,T$2) -> 539563 | V16: 5663220
A17: 2014-03-13 | B17: =SUMIFS(ежемесячный!$F:$F,ежемесячный!$C:$C,$A17,ежемесячный!$D:$D,$A$1,ежемесячный!$E:$E,B$2) -> 0 | C17: =SUMIFS(ежемесячный!$G:$G,ежемесячный!$C:$C,$A17,ежемесячный!$D:$D,$A$1,ежемесячный!$E:$E,B$2) -> 0 | D17: =SUMIFS(ежемесячный!$F:$F,ежемесячный!$C:$C,$A17,ежемесячный!$D:$D,$A$1,ежемесячный!$E:$E,D$2) -> 0 | E17: =SUMIFS(ежемесячный!$G:$G,ежемесячный!$C:$C,$A17,ежемесячный!$D:$D,$A$1,ежемесячный!$E:$E,D$2) -> 0 | F17: =SUMIFS(ежемесячный!$F:$F,ежемесячный!$C:$C,$A17,ежемесячный!$D:$D,$A$1,ежемесячный!$E:$E,F$2) -> 0 | G17: =SUMIFS(ежемесячный!$G:$G,ежемесячный!$C:$C,$A17,ежемесячный!$D:$D,$A$1,ежемесячный!$E:$E,F$2) -> 0 | H17: =SUMIFS(ежемесячный!$F:$F,ежемесячный!$C:$C,$A17,ежемесячный!$D:$D,$A$1,ежемесячный!$E:$E,H$2) -> 0 | I17: =SUMIFS(ежемесячный!$G:$G,ежемесячный!$C:$C,$A17,ежемесячный!$D:$D,$A$1,ежемесячный!$E:$E,H$2) -> 0 | J17: =SUMIFS(ежемесячный!$F:$F,ежемесячный!$C:$C,$A17,ежемесячный!$D:$D,$A$1,ежемесячный!$E:$E,J$2) -> 0 | K17: =SUMIFS(ежемесячный!$G:$G,ежемесячный!$C:$C,$A17,ежемесячный!$D:$D,$A$1,ежемесячный!$E:$E,J$2) -> 0 | L17: =SUMIFS(ежемесячный!$F:$F,ежемесячный!$C:$C,$A17,ежемесячный!$D:$D,$A$1,ежемесячный!$E:$E,L$2) -> 0 | M17: =SUMIFS(ежемесячный!$G:$G,ежемесячный!$C:$C,$A17,ежемесячный!$D:$D,$A$1,ежемесячный!$E:$E,L$2) -> 0 | N17: =SUMIFS(ежемесячный!$F:$F,ежемесячный!$C:$C,$A17,ежемесячный!$D:$D,$A$1,ежемесячный!$E:$E,N$2) -> 0 | O17: =SUMIFS(ежемесячный!$G:$G,ежемесячный!$C:$C,$A17,ежемесячный!$D:$D,$A$1,ежемесячный!$E:$E,N$2) -> 0 | P17: =SUMIFS(ежемесячный!$F:$F,ежемесячный!$C:$C,$A17,ежемесячный!$D:$D,$A$1,ежемесячный!$E:$E,P$2) -> 80 | Q17: =SUMIFS(ежемесячный!$G:$G,ежемесячный!$C:$C,$A17,ежемесячный!$D:$D,$A$1,ежемесячный!$E:$E,P$2) -> 326000 | R17: =SUMIFS(ежемесячный!$F:$F,ежемесячный!$C:$C,$A17,ежемесячный!$D:$D,$A$1,ежемесячный!$E:$E,R$2) -> 12 | S17: =SUMIFS(ежемесячный!$G:$G,ежемесячный!$C:$C,$A17,ежемесячный!$D:$D,$A$1,ежемесячный!$E:$E,R$2) -> 5444444 | T17: =SUMIFS(ежемесячный!$F:$F,ежемесячный!$C:$C,$A17,ежемесячный!$D:$D,$A$1,ежемесячный!$E:$E,T$2) -> 0 | U17: =SUMIFS(ежемесячный!$G:$G,ежемесячный!$C:$C,$A17,ежемесячный!$D:$D,$A$1,ежемесячный!$E:$E,T$2) -> 0 | V17: 5770444
A18: 2014-03-14 | B18: =SUMIFS(ежемесячный!$F:$F,ежемесячный!$C:$C,$A18,ежемесячный!$D:$D,$A$1,ежемесячный!$E:$E,B$2) -> 0 | C18: =SUMIFS(ежемесячный!$G:$G,ежемесячный!$C:$C,$A18,ежемесячный!$D:$D,$A$1,ежемесячный!$E:$E,B$2) -> 0 | D18: =SUMIFS(ежемесячный!$F:$F,ежемесячный!$C:$C,$A18,ежемесячный!$D:$D,$A$1,ежемесячный!$E:$E,D$2) -> 0 | E18: =SUMIFS(ежемесячный!$G:$G,ежемесячный!$C:$C,$A18,ежемесячный!$D:$D,$A$1,ежемесячный!$E:$E,D$2) -> 0 | F18: =SUMIFS(ежемесячный!$F:$F,ежемесячный!$C:$C,$A18,ежемесячный!$D:$D,$A$1,ежемесячный!$E:$E,F$2) -> 0 | G18: =SUMIFS(ежемесячный!$G:$G,ежемесячный!$C:$C,$A18,ежемесячный!$D:$D,$A$1,ежемесячный!$E:$E,F$2) -> 0 | H18: =SUMIFS(ежемесячный!$F:$F,ежемесячный!$C:$C,$A18,ежемесячный!$D:$D,$A$1,ежемесячный!$E:$E,H$2) -> 0 | I18: =SUMIFS(ежемесячный!$G:$G,ежемесячный!$C:$C,$A18,ежемесячный!$D:$D,$A$1,ежемесячный!$E:$E,H$2) -> 0 | J18: =SUMIFS(ежемесячный!$F:$F,ежемесячный!$C:$C,$A18,ежемесячный!$D:$D,$A$1,ежемесячный!$E:$E,J$2) -> 6 | K18: =SUMIFS(ежемесячный!$G:$G,ежемесячный!$C:$C,$A18,ежемесячный!$D:$D,$A$1,ежемесячный!$E:$E,J$2) -> 90000 | L18: =SUMIFS(ежемесячный!$F:$F,ежемесячный!$C:$C,$A18,ежемесячный!$D:$D,$A$1,ежемесячный!$E:$E,L$2) -> 0 | M18: =SUMIFS(ежемесячный!$G:$G,ежемесячный!$C:$C,$A18,ежемесячный!$D:$D,$A$1,ежемесячный!$E:$E,L$2) -> 0 | N18: =SUMIFS(ежемесячный!$F:$F,ежемесячный!$C:$C,$A18,ежемесячный!$D:$D,$A$1,ежемесячный!$E:$E,N$2) -> 0 | O18: =SUMIFS(ежемесячный!$G:$G,ежемесячный!$C:$C,$A18,ежемесячный!$D:$D,$A$1,ежемесячный!$E:$E,N$2) -> 0 | P18: =SUMIFS(ежемесячный!$F:$F,ежемесячный!$C:$C,$A18,ежемесячный!$D:$D,$A$1,ежемесячный!$E:$E,P$2) -> 0 | Q18: =SUMIFS(ежемесячный!$G:$G,ежемесячный!$C:$C,$A18,ежемесячный!$D:$D,$A$1,ежемесячный!$E:$E,P$2) -> 0 | R18: =SUMIFS(ежемесячный!$F:$F,ежемесячный!$C:$C,$A18,ежемесячный!$D:$D,$A$1,ежемесячный!$E:$E,R$2) -> 0 | S18: =SUMIFS(ежемесячный!$G:$G,ежемесячный!$C:$C,$A18,ежемесячный!$D:$D,$A$1,ежемесячный!$E:$E,R$2) -> 0 | T18: =SUMIFS(ежемесячный!$F:$F,ежемесячный!$C:$C,$A18,ежемесячный!$D:$D,$A$1,ежемесячный!$E:$E,T$2) -> 0 | U18: =SUMIFS(ежемесячный!$G:$G,ежемесячный!$C:$C,$A18,ежемесячный!$D:$D,$A$1,ежемесячный!$E:$E,T$2) -> 0 | V18: 90000
A19: 2014-03-15 | B19: =SUMIFS(ежемесячный!$F:$F,ежемесячный!$C:$C,$A19,ежемесячный!$D:$D,$A$1,ежемесячный!$E:$E,B$2) -> 0 | C19: =SUMIFS(ежемесячный!$G:$G,ежемесячный!$C:$C,$A19,ежемесячный!$D:$D,$A$1,ежемесячный!$E:$E,B$2) -> 0 | D19: =SUMIFS(ежемесячный!$F:$F,ежемесячный!$C:$C,$A19,ежемесячный!$D:$D,$A$1,ежемесячный!$E:$E,D$2) -> 0 | E19: =SUMIFS(ежемесячный!$G:$G,ежемесячный!$C:$C,$A19,ежемесячный!$D:$D,$A$1,ежемесячный!$E:$E,D$2) -> 0 | F19: =SUMIFS(ежемесячный!$F:$F,ежемесячный!$C:$C,$A19,ежемесячный!$D:$D,$A$1,ежемесячный!$E:$E,F$2) -> 0 | G19: =SUMIFS(ежемесячный!$G:$G,ежемесячный!$C:$C,$A19,ежемесячный!$D:$D,$A$1,ежемесячный!$E:$E,F$2) -> 0 | H19: =SUMIFS(ежемесячный!$F:$F,ежемесячный!$C:$C,$A19,ежемесячный!$D:$D,$A$1,ежемесячный!$E:$E,H$2) -> 0 | I19: =SUMIFS(ежемесячный!$G:$G,ежемесячный!$C:$C,$A19,ежемесячный!$D:$D,$A$1,ежемесячный!$E:$E,H$2) -> 0 | J19: =SUMIFS(ежемесячный!$F:$F,ежемесячный!$C:$C,$A19,ежемесячный!$D:$D,$A$1,ежемесячный!$E:$E,J$2) -> 0 | K19: =SUMIFS(ежемесячный!$G:$G,ежемесячный!$C:$C,$A19,ежемесячный!$D:$D,$A$1,ежемесячный!$E:$E,J$2) -> 0 | L19: =SUMIFS(ежемесячный!$F:$F,ежемесячный!$C:$C,$A19,ежемесячный!$D:$D,$A$1,ежемесячный!$E:$E,L$2) -> 0 | M19: =SUMIFS(ежемесячный!$G:$G,ежемесячный!$C:$C,$A19,ежемесячный!$D:$D,$A$1,ежемесячный!$E:$E,L$2) -> 0 | N19: =SUMIFS(ежемесячный!$F:$F,ежемесячный!$C:$C,$A19,ежемесячный!$D:$D,$A$1,ежемесячный!$E:$E,N$2) -> 0 | O19: =SUMIFS(ежемесячный!$G:$G,ежемесячный!$C:$C,$A19,ежемесячный!$D:$D,$A$1,ежемесячный!$E:$E,N$2) -> 0 | P19: =SUMIFS(ежемесячный!$F:$F,ежемесячный!$C:$C,$A19,ежемесячный!$D:$D,$A$1,ежемесячный!$E:$E,P$2) -> 0 | Q19: =SUMIFS(ежемесячный!$G:$G,ежемесячный!$C:$C,$A19,ежемесячный!$D:$D,$A$1,ежемесячный!$E:$E,P$2) -> 0 | R19: =SUMIFS(ежемесячный!$F:$F,ежемесячный!$C:$C,$A19,ежемесячный!$D:$D,$A$1,ежемесячный!$E:$E,R$2) -> 0 | S19: =SUMIFS(ежемесячный!$G:$G,ежемесячный!$C:$C,$A19,ежемесячный!$D:$D,$A$1,ежемесячный!$E:$E,R$2) -> 0 | T19: =SUMIFS(ежемесячный!$F:$F,ежемесячный!$C:$C,$A19,ежемесячный!$D:$D,$A$1,ежемесячный!$E:$E,T$2) -> 0 | U19: =SUMIFS(ежемесячный!$G:$G,ежемесячный!$C:$C,$A19,ежемесячный!$D:$D,$A$1,ежемесячный!$E:$E,T$2) -> 0 | V19: 0
A20: 2014-03-16 | B20: =SUMIFS(ежемесячный!$F:$F,ежемесячный!$C:$C,$A20,ежемесячный!$D:$D,$A$1,ежемесячный!$E:$E,B$2) -> 0 | C20: =SUMIFS(ежемесячный!$G:$G,ежемесячный!$C:$C,$A20,ежемесячный!$D:$D,$A$1,ежемесячный!$E:$E,B$2) -> 0 | D20: =SUMIFS(ежемесячный!$F:$F,ежемесячный!$C:$C,$A20,ежемесячный!$D:$D,$A$1,ежемесячный!$E:$E,D$2) -> 0 | E20: =SUMIFS(ежемесячный!$G:$G,ежемесячный!$C:$C,$A20,ежемесячный!$D:$D,$A$1,ежемесячный!$E:$E,D$2) -> 0 | F20: =SUMIFS(ежемесячный!$F:$F,ежемесячный!$C:$C,$A20,ежемесячный!$D:$D,$A$1,ежемесячный!$E:$E,F$2) -> 0 | G20: =SUMIFS(ежемесячный!$G:$G,ежемесячный!$C:$C,$A20,ежемесячный!$D:$D,$A$1,ежемесячный!$E:$E,F$2) -> 0 | H20: =SUMIFS(ежемесячный!$F:$F,ежемесячный!$C:$C,$A20,ежемесячный!$D:$D,$A$1,ежемесячный!$E:$E,H$2) -> 0 | I20: =SUMIFS(ежемесячный!$G:$G,ежемесячный!$C:$C,$A20,ежемесячный!$D:$D,$A$1,ежемесячный!$E:$E,H$2) -> 0 | J20: =SUMIFS(ежемесячный!$F:$F,ежемесячный!$C:$C,$A20,ежемесячный!$D:$D,$A$1,ежемесячный!$E:$E,J$2) -> 0 | K20: =SUMIFS(ежемесячный!$G:$G,ежемесячный!$C:$C,$A20,ежемесячный!$D:$D,$A$1,ежемесячный!$E:$E,J$2) -> 0 | L20: =SUMIFS(ежемесячный!$F:$F,ежемесячный!$C:$C,$A20,ежемесячный!$D:$D,$A$1,ежемесячный!$E:$E,L$2) -> 0 | M20: =SUMIFS(ежемесячный!$G:$G,ежемесячный!$C:$C,$A20,ежемесячный!$D:$D,$A$1,ежемесячный!$E:$E,L$2) -> 0 | N20: =SUMIFS(ежемесячный!$F:$F,ежемесячный!$C:$C,$A20,ежемесячный!$D:$D,$A$1,ежемесячный!$E:$E,N$2) -> 0 | O20: =SUMIFS(ежемесячный!$G:$G,ежемесячный!$C:$C,$A20,ежемесячный!$D:$D,$A$1,ежемесячный!$E:$E,N$2) -> 0 | P20: =SUMIFS(ежемесячный!$F:$F,ежемесячный!$C:$C,$A20,ежемесячный!$D:$D,$A$1,ежемесячный!$E:$E,P$2) -> 0 | Q20: =SUMIFS(ежемесячный!$G:$G,ежемесячный!$C:$C,$A20,ежемесячный!$D:$D,$A$1,ежемесячный!$E:$E,P$2) -> 0 | R20: =SUMIFS(ежемесячный!$F:$F,ежемесячный!$C:$C,$A20,ежемесячный!$D:$D,$A$1,ежемесячный!$E:$E,R$2) -> 0 | S20: =SUMIFS(ежемесячный!$G:$G,ежемесячный!$C:$C,$A20,ежемесячный!$D:$D,$A$1,ежемесячный!$E:$E,R$2) -> 0 | T20: =SUMIFS(ежемесячный!$F:$F,ежемесячный!$C:$C,$A20,ежемесячный!$D:$D,$A$1,ежемесячный!$E:$E,T$2) -> 0 | U20: =SUMIFS(ежемесячный!$G:$G,ежемесячный!$C:$C,$A20,ежемесячный!$D:$D,$A$1,ежемесячный!$E:$E,T$2) -> 0 | V20: 0
A21: 2014-03-17 | B21: =SUMIFS(ежемесячный!$F:$F,ежемесячный!$C:$C,$A21,ежемесячный!$D:$D,$A$1,ежемесячный!$E:$E,B$2) -> 0 | C21: =SUMIFS(ежемесячный!$G:$G,ежемесячный!$C:$C,$A21,ежемесячный!$D:$D,$A$1,ежемесячный!$E:$E,B$2) -> 0 | D21: =SUMIFS(ежемесячный!$F:$F,ежемесячный!$C:$C,$A21,ежемесячный!$D:$D,$A$1,ежемесячный!$E:$E,D$2) -> 0 | E21: =SUMIFS(ежемесячный!$G:$G,ежемесячный!$C:$C,$A21,ежемесячный!$D:$D,$A$1,ежемесячный!$E:$E,D$2) -> 0 | F21: =SUMIFS(ежемесячный!$F:$F,ежемесячный!$C:$C,$A21,ежемесячный!$D:$D,$A$1,ежемесячный!$E:$E,F$2) -> 0 | G21: =SUMIFS(ежемесячный!$G:$G,ежемесячный!$C:$C,$A21,ежемесячный!$D:$D,$A$1,ежемесячный!$E:$E,F$2) -> 0 | H21: =SUMIFS(ежемесячный!$F:$F,ежемесячный!$C:$C,$A21,ежемесячный!$D:$D,$A$1,ежемесячный!$E:$E,H$2) -> 0 | I21: =SUMIFS(ежемесячный!$G:$G,ежемесячный!$C:$C,$A21,ежемесячный!$D:$D,$A$1,ежемесячный!$E:$E,H$2) -> 0 | J21: =SUMIFS(ежемесячный!$F:$F,ежемесячный!$C:$C,$A21,ежемесячный!$D:$D,$A$1,ежемесячный!$E:$E,J$2) -> 0 | K21: =SUMIFS(ежемесячный!$G:$G,ежемесячный!$C:$C,$A21,ежемесячный!$D:$D,$A$1,ежемесячный!$E:$E,J$2) -> 0 | L21: =SUMIFS(ежемесячный!$F:$F,ежемесячный!$C:$C,$A21,ежемесячный!$D:$D,$A$1,ежемесячный!$E:$E,L$2) -> 0 | M21: =SUMIFS(ежемесячный!$G:$G,ежемесячный!$C:$C,$A21,ежемесячный!$D:$D,$A$1,ежемесячный!$E:$E,L$2) -> 0 | N21: =SUMIFS(ежемесячный!$F:$F,ежемесячный!$C:$C,$A21,ежемесячный!$D:$D,$A$1,ежемесячный!$E:$E,N$2) -> 0 | O21: =SUMIFS(ежемесячный!$G:$G,ежемесячный!$C:$C,$A21,ежемесячный!$D:$D,$A$1,ежемесячный!$E:$E,N$2) -> 0 | P21: =SUMIFS(ежемесячный!$F:$F,ежемесячный!$C:$C,$A21,ежемесячный!$D:$D,$A$1,ежемесячный!$E:$E,P$2) -> 0 | Q21: =SUMIFS(ежемесячный!$G:$G,ежемесячный!$C:$C,$A21,ежемесячный!$D:$D,$A$1,ежемесячный!$E:$E,P$2) -> 0 | R21: =SUMIFS(ежемесячный!$F:$F,ежемесячный!$C:$C,$A21,ежемесячный!$D:$D,$A$1,ежемесячный!$E:$E,R$2) -> 0 | S21: =SUMIFS(ежемесячный!$G:$G,ежемесячный!$C:$C,$A21,ежемесячный!$D:$D,$A$1,ежемесячный!$E:$E,R$2) -> 0 | T21: =SUMIFS(ежемесячный!$F:$F,ежемесячный!$C:$C,$A21,ежемесячный!$D:$D,$A$1,ежемесячный!$E:$E,T$2) -> 0 | U21: =SUMIFS(ежемесячный!$G:$G,ежемесячный!$C:$C,$A21,ежемесячный!$D:$D,$A$1,ежемесячный!$E:$E,T$2) -> 0 | V21: 0
A22: 2014-03-18 | B22: =SUMIFS(ежемесячный!$F:$F,ежемесячный!$C:$C,$A22,ежемесячный!$D:$D,$A$1,ежемесячный!$E:$E,B$2) -> 0 | C22: =SUMIFS(ежемесячный!$G:$G,ежемесячный!$C:$C,$A22,ежемесячный!$D:$D,$A$1,ежемесячный!$E:$E,B$2) -> 0 | D22: =SUMIFS(ежемесячный!$F:$F,ежемесячный!$C:$C,$A22,ежемесячный!$D:$D,$A$1,ежемесячный!$E:$E,D$2) -> 0 | E22: =SUMIFS(ежемесячный!$G:$G,ежемесячный!$C:$C,$A22,ежемесячный!$D:$D,$A$1,ежемесячный!$E:$E,D$2) -> 0 | F22: =SUMIFS(ежемесячный!$F:$F,ежемесячный!$C:$C,$A22,ежемесячный!$D:$D,$A$1,ежемесячный!$E:$E,F$2) -> 0 | G22: =SUMIFS(ежемесячный!$G:$G,ежемесячный!$C:$C,$A22,ежемесячный!$D:$D,$A$1,ежемесячный!$E:$E,F$2) -> 0 | H22: =SUMIFS(ежемесячный!$F:$F,ежемесячный!$C:$C,$A22,ежемесячный!$D:$D,$A$1,ежемесячный!$E:$E,H$2) -> 0 | I22: =SUMIFS(ежемесячный!$G:$G,ежемесячный!$C:$C,$A22,ежемесячный!$D:$D,$A$1,ежемесячный!$E:$E,H$2) -> 0 | J22: =SUMIFS(ежемесячный!$F:$F,ежемесячный!$C:$C,$A22,ежемесячный!$D:$D,$A$1,ежемесячный!$E:$E,J$2) -> 0 | K22: =SUMIFS(ежемесячный!$G:$G,ежемесячный!$C:$C,$A22,ежемесячный!$D:$D,$A$1,ежемесячный!$E:$E,J$2) -> 0 | L22: =SUMIFS(ежемесячный!$F:$F,ежемесячный!$C:$C,$A22,ежемесячный!$D:$D,$A$1,ежемесячный!$E:$E,L$2) -> 0 | M22: =SUMIFS(ежемесячный!$G:$G,ежемесячный!$C:$C,$A22,ежемесячный!$D:$D,$A$1,ежемесячный!$E:$E,L$2) -> 0 | N22: =SUMIFS(ежемесячный!$F:$F,ежемесячный!$C:$C,$A22,ежемесячный!$D:$D,$A$1,ежемесячный!$E:$E,N$2) -> 0 | O22: =SUMIFS(ежемесячный!$G:$G,ежемесячный!$C:$C,$A22,ежемесячный!$D:$D,$A$1,ежемесячный!$E:$E,N$2) -> 0 | P22: =SUMIFS(ежемесячный!$F:$F,ежемесячный!$C:$C,$A22,ежемесячный!$D:$D,$A$1,ежемесячный!$E:$E,P$2) -> 0 | Q22: =SUMIFS(ежемесячный!$G:$G,ежемесячный!$C:$C,$A22,ежемесячный!$D:$D,$A$1,ежемесячный!$E:$E,P$2) -> 0 | R22: =SUMIFS(ежемесячный!$F:$F,ежемесячный!$C:$C,$A22,ежемесячный!$D:$D,$A$1,ежемесячный!$E:$E,R$2) -> 0 | S22: =SUMIFS(ежемесячный!$G:$G,ежемесячный!$C:$C,$A22,ежемесячный!$D:$D,$A$1,ежемесячный!$E:$E,R$2) -> 0 | T22: =SUMIFS(ежемесячный!$F:$F,ежемесячный!$C:$C,$A22,ежемесячный!$D:$D,$A$1,ежемесячный!$E:$E,T$2) -> 0 | U22: =SUMIFS(ежемесячный!$G:$G,ежемесячный!$C:$C,$A22,ежемесячный!$D:$D,$A$1,ежемесячный!$E:$E,T$2) -> 0 | V22: 0
A23: 2014-03-19 | B23: =SUMIFS(ежемесячный!$F:$F,ежемесячный!$C:$C,$A23,ежемесячный!$D:$D,$A$1,ежемесячный!$E:$E,B$2) -> 0 | C23: =SUMIFS(ежемесячный!$G:$G,ежемесячный!$C:$C,$A23,ежемесячный!$D:$D,$A$1,ежемесячный!$E:$E,B$2) -> 0 | D23: =SUMIFS(ежемесячный!$F:$F,ежемесячный!$C:$C,$A23,ежемесячный!$D:$D,$A$1,ежемесячный!$E:$E,D$2) -> 0 | E23: =SUMIFS(ежемесячный!$G:$G,ежемесячный!$C:$C,$A23,ежемесячный!$D:$D,$A$1,ежемесячный!$E:$E,D$2) -> 0 | F23: =SUMIFS(ежемесячный!$F:$F,ежемесячный!$C:$C,$A23,ежемесячный!$D:$D,$A$1,ежемесячный!$E:$E,F$2) -> 0 | G23: =SUMIFS(ежемесячный!$G:$G,ежемесячный!$C:$C,$A23,ежемесячный!$D:$D,$A$1,ежемесячный!$E:$E,F$2) -> 0 | H23: =SUMIFS(ежемесячный!$F:$F,ежемесячный!$C:$C,$A23,ежемесячный!$D:$D,$A$1,ежемесячный!$E:$E,H$2) -> 0 | I23: =SUMIFS(ежемесячный!$G:$G,ежемесячный!$C:$C,$A23,ежемесячный!$D:$D,$A$1,ежемесячный!$E:$E,H$2) -> 0 | J23: =SUMIFS(ежемесячный!$F:$F,ежемесячный!$C:$C,$A23,ежемесячный!$D:$D,$A$1,ежемесячный!$E:$E,J$2) -> 0 | K23: =SUMIFS(ежемесячный!$G:$G,ежемесячный!$C:$C,$A23,ежемесячный!$D:$D,$A$1,ежемесячный!$E:$E,J$2) -> 0 | L23: =SUMIFS(ежемесячный!$F:$F,ежемесячный!$C:$C,$A23,ежемесячный!$D:$D,$A$1,ежемесячный!$E:$E,L$2) -> 0 | M23: =SUMIFS(ежемесячный!$G:$G,ежемесячный!$C:$C,$A23,ежемесячный!$D:$D,$A$1,ежемесячный!$E:$E,L$2) -> 0 | N23: =SUMIFS(ежемесячный!$F:$F,ежемесячный!$C:$C,$A23,ежемесячный!$D:$D,$A$1,ежемесячный!$E:$E,N$2) -> 0 | O23: =SUMIFS(ежемесячный!$G:$G,ежемесячный!$C:$C,$A23,ежемесячный!$D:$D,$A$1,ежемесячный!$E:$E,N$2) -> 0 | P23: =SUMIFS(ежемесячный!$F:$F,ежемесячный!$C:$C,$A23,ежемесячный!$D:$D,$A$1,ежемесячный!$E:$E,P$2) -> 0 | Q23: =SUMIFS(ежемесячный!$G:$G,ежемесячный!$C:$C,$A23,ежемесячный!$D:$D,$A$1,ежемесячный!$E:$E,P$2) -> 0 | R23: =SUMIFS(ежемесячный!$F:$F,ежемесячный!$C:$C,$A23,ежемесячный!$D:$D,$A$1,ежемесячный!$E:$E,R$2) -> 0 | S23: =SUMIFS(ежемесячный!$G:$G,ежемесячный!$C:$C,$A23,ежемесячный!$D:$D,$A$1,ежемесячный!$E:$E,R$2) -> 0 | T23: =SUMIFS(ежемесячный!$F:$F,ежемесячный!$C:$C,$A23,ежемесячный!$D:$D,$A$1,ежемесячный!$E:$E,T$2) -> 0 | U23: =SUMIFS(ежемесячный!$G:$G,ежемесячный!$C:$C,$A23,ежемесячный!$D:$D,$A$1,ежемесячный!$E:$E,T$2) -> 0 | V23: 0
A24: 2014-03-20 | B24: =SUMIFS(ежемесячный!$F:$F,ежемесячный!$C:$C,$A24,ежемесячный!$D:$D,$A$1,ежемесячный!$E:$E,B$2) -> 0 | C24: =SUMIFS(ежемесячный!$G:$G,ежемесячный!$C:$C,$A24,ежемесячный!$D:$D,$A$1,ежемесячный!$E:$E,B$2) -> 0 | D24: =SUMIFS(ежемесячный!$F:$F,ежемесячный!$C:$C,$A24,ежемесячный!$D:$D,$A$1,ежемесячный!$E:$E,D$2) -> 0 | E24: =SUMIFS(ежемесячный!$G:$G,ежемесячный!$C:$C,$A24,ежемесячный!$D:$D,$A$1,ежемесячный!$E:$E,D$2) -> 0 | F24: =SUMIFS(ежемесячный!$F:$F,ежемесячный!$C:$C,$A24,ежемесячный!$D:$D,$A$1,ежемесячный!$E:$E,F$2) -> 0 | G24: =SUMIFS(ежемесячный!$G:$G,ежемесячный!$C:$C,$A24,ежемесячный!$D:$D,$A$1,ежемесячный!$E:$E,F$2) -> 0 | H24: =SUMIFS(ежемесячный!$F:$F,ежемесячный!$C:$C,$A24,ежемесячный!$D:$D,$A$1,ежемесячный!$E:$E,H$2) -> 0 | I24: =SUMIFS(ежемесячный!$G:$G,ежемесячный!$C:$C,$A24,ежемесячный!$D:$D,$A$1,ежемесячный!$E:$E,H$2) -> 0 | J24: =SUMIFS(ежемесячный!$F:$F,ежемесячный!$C:$C,$A24,ежемесячный!$D:$D,$A$1,ежемесячный!$E:$E,J$2) -> 0 | K24: =SUMIFS(ежемесячный!$G:$G,ежемесячный!$C:$C,$A24,ежемесячный!$D:$D,$A$1,ежемесячный!$E:$E,J$2) -> 0 | L24: =SUMIFS(ежемесячный!$F:$F,ежемесячный!$C:$C,$A24,ежемесячный!$D:$D,$A$1,ежемесячный!$E:$E,L$2) -> 0 | M24: =SUMIFS(ежемесячный!$G:$G,ежемесячный!$C:$C,$A24,ежемесячный!$D:$D,$A$1,ежемесячный!$E:$E,L$2) -> 0 | N24: =SUMIFS(ежемесячный!$F:$F,ежемесячный!$C:$C,$A24,ежемесячный!$D:$D,$A$1,ежемесячный!$E:$E,N$2) -> 0 | O24: =SUMIFS(ежемесячный!$G:$G,ежемесячный!$C:$C,$A24,ежемесячный!$D:$D,$A$1,ежемесячный!$E:$E,N$2) -> 0 | P24: =SUMIFS(ежемесячный!$F:$F,ежемесячный!$C:$C,$A24,ежемесячный!$D:$D,$A$1,ежемесячный!$E:$E,P$2) -> 0 | Q24: =SUMIFS(ежемесячный!$G:$G,ежемесячный!$C:$C,$A24,ежемесячный!$D:$D,$A$1,ежемесячный!$E:$E,P$2) -> 0 | R24: =SUMIFS(ежемесячный!$F:$F,ежемесячный!$C:$C,$A24,ежемесячный!$D:$D,$A$1,ежемесячный!$E:$E,R$2) -> 0 | S24: =SUMIFS(ежемесячный!$G:$G,ежемесячный!$C:$C,$A24,ежемесячный!$D:$D,$A$1,ежемесячный!$E:$E,R$2) -> 0 | T24: =SUMIFS(ежемесячный!$F:$F,ежемесячный!$C:$C,$A24,ежемесячный!$D:$D,$A$1,ежемесячный!$E:$E,T$2) -> 0 | U24: =SUMIFS(ежемесячный!$G:$G,ежемесячный!$C:$C,$A24,ежемесячный!$D:$D,$A$1,ежемесячный!$E:$E,T$2) -> 0 | V24: 0
A25: 2014-03-21 | B25: =SUMIFS(ежемесячный!$F:$F,ежемесячный!$C:$C,$A25,ежемесячный!$D:$D,$A$1,ежемесячный!$E:$E,B$2) -> 0 | C25: =SUMIFS(ежемесячный!$G:$G,ежемесячный!$C:$C,$A25,ежемесячный!$D:$D,$A$1,ежемесячный!$E:$E,B$2) -> 0 | D25: =SUMIFS(ежемесячный!$F:$F,ежемесячный!$C:$C,$A25,ежемесячный!$D:$D,$A$1,ежемесячный!$E:$E,D$2) -> 0 | E25: =SUMIFS(ежемесячный!$G:$G,ежемесячный!$C:$C,$A25,ежемесячный!$D:$D,$A$1,ежемесячный!$E:$E,D$2) -> 0 | F25: =SUMIFS(ежемесячный!$F:$F,ежемесячный!$C:$C,$A25,ежемесячный!$D:$D,$A$1,ежемесячный!$E:$E,F$2) -> 0 | G25: =SUMIFS(ежемесячный!$G:$G,ежемесячный!$C:$C,$A25,ежемесячный!$D:$D,$A$1,ежемесячный!$E:$E,F$2) -> 0 | H25: =SUMIFS(ежемесячный!$F:$F,ежемесячный!$C:$C,$A25,ежемесячный!$D:$D,$A$1,ежемесячный!$E:$E,H$2) -> 0 | I25: =SUMIFS(ежемесячный!$G:$G,ежемесячный!$C:$C,$A25,ежемесячный!$D:$D,$A$1,ежемесячный!$E:$E,H$2) -> 0 | J25: =SUMIFS(ежемесячный!$F:$F,ежемесячный!$C:$C,$A25,ежемесячный!$D:$D,$A$1,ежемесячный!$E:$E,J$2) -> 0 | K25: =SUMIFS(ежемесячный!$G:$G,ежемесячный!$C:$C,$A25,ежемесячный!$D:$D,$A$1,ежемесячный!$E:$E,J$2) -> 0 | L25: =SUMIFS(ежемесячный!$F:$F,ежемесячный!$C:$C,$A25,ежемесячный!$D:$D,$A$1,ежемесячный!$E:$E,L$2) -> 0 | M25: =SUMIFS(ежемесячный!$G:$G,ежемесячный!$C:$C,$A25,ежемесячный!$D:$D,$A$1,ежемесячный!$E:$E,L$2) -> 0 | N25: =SUMIFS(ежемесячный!$F:$F,ежемесячный!$C:$C,$A25,ежемесячный!$D:$D,$A$1,ежемесячный!$E:$E,N$2) -> 0 | O25: =SUMIFS(ежемесячный!$G:$G,ежемесячный!$C:$C,$A25,ежемесячный!$D:$D,$A$1,ежемесячный!$E:$E,N$2) -> 0 | P25: =SUMIFS(ежемесячный!$F:$F,ежемесячный!$C:$C,$A25,ежемесячный!$D:$D,$A$1,ежемесячный!$E:$E,P$2) -> 0 | Q25: =SUMIFS(ежемесячный!$G:$G,ежемесячный!$C:$C,$A25,ежемесячный!$D:$D,$A$1,ежемесячный!$E:$E,P$2) -> 0 | R25: =SUMIFS(ежемесячный!$F:$F,ежемесячный!$C:$C,$A25,ежемесячный!$D:$D,$A$1,ежемесячный!$E:$E,R$2) -> 0 | S25: =SUMIFS(ежемесячный!$G:$G,ежемесячный!$C:$C,$A25,ежемесячный!$D:$D,$A$1,ежемесячный!$E:$E,R$2) -> 0 | T25: =SUMIFS(ежемесячный!$F:$F,ежемесячный!$C:$C,$A25,ежемесячный!$D:$D,$A$1,ежемесячный!$E:$E,T$2) -> 0 | U25: =SUMIFS(ежемесячный!$G:$G,ежемесячный!$C:$C,$A25,ежемесячный!$D:$D,$A$1,ежемесячный!$E:$E,T$2) -> 0 | V25: 0
A26: 2014-03-22 | B26: =SUMIFS(ежемесячный!$F:$F,ежемесячный!$C:$C,$A26,ежемесячный!$D:$D,$A$1,ежемесячный!$E:$E,B$2) -> 0 | C26: =SUMIFS(ежемесячный!$G:$G,ежемесячный!$C:$C,$A26,ежемесячный!$D:$D,$A$1,ежемесячный!$E:$E,B$2) -> 0 | D26: =SUMIFS(ежемесячный!$F:$F,ежемесячный!$C:$C,$A26,ежемесячный!$D:$D,$A$1,ежемесячный!$E:$E,D$2) -> 0 | E26: =SUMIFS(ежемесячный!$G:$G,ежемесячный!$C:$C,$A26,ежемесячный!$D:$D,$A$1,ежемесячный!$E:$E,D$2) -> 0 | F26: =SUMIFS(ежемесячный!$F:$F,ежемесячный!$C:$C,$A26,ежемесячный!$D:$D,$A$1,ежемесячный!$E:$E,F$2) -> 0 | G26: =SUMIFS(ежемесячный!$G:$G,ежемесячный!$C:$C,$A26,ежемесячный!$D:$D,$A$1,ежемесячный!$E:$E,F$2) -> 0 | H26: =SUMIFS(ежемесячный!$F:$F,ежемесячный!$C:$C,$A26,ежемесячный!$D:$D,$A$1,ежемесячный!$E:$E,H$2) -> 0 | I26: =SUMIFS(ежемесячный!$G:$G,ежемесячный!$C:$C,$A26,ежемесячный!$D:$D,$A$1,ежемесячный!$E:$E,H$2) -> 0 | J26: =SUMIFS(ежемесячный!$F:$F,ежемесячный!$C:$C,$A26,ежемесячный!$D:$D,$A$1,ежемесячный!$E:$E,J$2) -> 0 | K26: =SUMIFS(ежемесячный!$G:$G,ежемесячный!$C:$C,$A26,ежемесячный!$D:$D,$A$1,ежемесячный!$E:$E,J$2) -> 0 | L26: =SUMIFS(ежемесячный!$F:$F,ежемесячный!$C:$C,$A26,ежемесячный!$D:$D,$A$1,ежемесячный!$E:$E,L$2) -> 0 | M26: =SUMIFS(ежемесячный!$G:$G,ежемесячный!$C:$C,$A26,ежемесячный!$D:$D,$A$1,ежемесячный!$E:$E,L$2) -> 0 | N26: =SUMIFS(ежемесячный!$F:$F,ежемесячный!$C:$C,$A26,ежемесячный!$D:$D,$A$1,ежемесячный!$E:$E,N$2) -> 0 | O26: =SUMIFS(ежемесячный!$G:$G,ежемесячный!$C:$C,$A26,ежемесячный!$D:$D,$A$1,ежемесячный!$E:$E,N$2) -> 0 | P26: =SUMIFS(ежемесячный!$F:$F,ежемесячный!$C:$C,$A26,ежемесячный!$D:$D,$A$1,ежемесячный!$E:$E,P$2) -> 0 | Q26: =SUMIFS(ежемесячный!$G:$G,ежемесячный!$C:$C,$A26,ежемесячный!$D:$D,$A$1,ежемесячный!$E:$E,P$2) -> 0 | R26: =SUMIFS(ежемесячный!$F:$F,ежемесячный!$C:$C,$A26,ежемесячный!$D:$D,$A$1,ежемесячный!$E:$E,R$2) -> 0 | S26: =SUMIFS(ежемесячный!$G:$G,ежемесячный!$C:$C,$A26,ежемесячный!$D:$D,$A$1,ежемесячный!$E:$E,R$2) -> 0 | T26: =SUMIFS(ежемесячный!$F:$F,ежемесячный!$C:$C,$A26,ежемесячный!$D:$D,$A$1,ежемесячный!$E:$E,T$2) -> 0 | U26: =SUMIFS(ежемесячный!$G:$G,ежемесячный!$C:$C,$A26,ежемесячный!$D:$D,$A$1,ежемесячный!$E:$E,T$2) -> 0 | V26: 0
A27: 2014-03-23 | B27: =SUMIFS(ежемесячный!$F:$F,ежемесячный!$C:$C,$A27,ежемесячный!$D:$D,$A$1,ежемесячный!$E:$E,B$2) -> 0 | C27: =SUMIFS(ежемесячный!$G:$G,ежемесячный!$C:$C,$A27,ежемесячный!$D:$D,$A$1,ежемесячный!$E:$E,B$2) -> 0 | D27: =SUMIFS(ежемесячный!$F:$F,ежемесячный!$C:$C,$A27,ежемесячный!$D:$D,$A$1,ежемесячный!$E:$E,D$2) -> 0 | E27: =SUMIFS(ежемесячный!$G:$G,ежемесячный!$C:$C,$A27,ежемесячный!$D:$D,$A$1,ежемесячный!$E:$E,D$2) -> 0 | F27: =SUMIFS(ежемесячный!$F:$F,ежемесячный!$C:$C,$A27,ежемесячный!$D:$D,$A$1,ежемесячный!$E:$E,F$2) -> 0 | G27: =SUMIFS(ежемесячный!$G:$G,ежемесячный!$C:$C,$A27,ежемесячный!$D:$D,$A$1,ежемесячный!$E:$E,F$2) -> 0 | H27: =SUMIFS(ежемесячный!$F:$F,ежемесячный!$C:$C,$A27,ежемесячный!$D:$D,$A$1,ежемесячный!$E:$E,H$2) -> 0 | I27: =SUMIFS(ежемесячный!$G:$G,ежемесячный!$C:$C,$A27,ежемесячный!$D:$D,$A$1,ежемесячный!$E:$E,H$2) -> 0 | J27: =SUMIFS(ежемесячный!$F:$F,ежемесячный!$C:$C,$A27,ежемесячный!$D:$D,$A$1,ежемесячный!$E:$E,J$2) -> 0 | K27: =SUMIFS(ежемесячный!$G:$G,ежемесячный!$C:$C,$A27,ежемесячный!$D:$D,$A$1,ежемесячный!$E:$E,J$2) -> 0 | L27: =SUMIFS(ежемесячный!$F:$F,ежемесячный!$C:$C,$A27,ежемесячный!$D:$D,$A$1,ежемесячный!$E:$E,L$2) -> 0 | M27: =SUMIFS(ежемесячный!$G:$G,ежемесячный!$C:$C,$A27,ежемесячный!$D:$D,$A$1,ежемесячный!$E:$E,L$2) -> 0 | N27: =SUMIFS(ежемесячный!$F:$F,ежемесячный!$C:$C,$A27,ежемесячный!$D:$D,$A$1,ежемесячный!$E:$E,N$2) -> 0 | O27: =SUMIFS(ежемесячный!$G:$G,ежемесячный!$C:$C,$A27,ежемесячный!$D:$D,$A$1,ежемесячный!$E:$E,N$2) -> 0 | P27: =SUMIFS(ежемесячный!$F:$F,ежемесячный!$C:$C,$A27,ежемесячный!$D:$D,$A$1,ежемесячный!$E:$E,P$2) -> 0 | Q27: =SUMIFS(ежемесячный!$G:$G,ежемесячный!$C:$C,$A27,ежемесячный!$D:$D,$A$1,ежемесячный!$E:$E,P$2) -> 0 | R27: =SUMIFS(ежемесячный!$F:$F,ежемесячный!$C:$C,$A27,ежемесячный!$D:$D,$A$1,ежемесячный!$E:$E,R$2) -> 0 | S27: =SUMIFS(ежемесячный!$G:$G,ежемесячный!$C:$C,$A27,ежемесячный!$D:$D,$A$1,ежемесячный!$E:$E,R$2) -> 0 | T27: =SUMIFS(ежемесячный!$F:$F,ежемесячный!$C:$C,$A27,ежемесячный!$D:$D,$A$1,ежемесячный!$E:$E,T$2) -> 0 | U27: =SUMIFS(ежемесячный!$G:$G,ежемесячный!$C:$C,$A27,ежемесячный!$D:$D,$A$1,ежемесячный!$E:$E,T$2) -> 0 | V27: 0
A28: 2014-03-24 | B28: =SUMIFS(ежемесячный!$F:$F,ежемесячный!$C:$C,$A28,ежемесячный!$D:$D,$A$1,ежемесячный!$E:$E,B$2) -> 0 | C28: =SUMIFS(ежемесячный!$G:$G,ежемесячный!$C:$C,$A28,ежемесячный!$D:$D,$A$1,ежемесячный!$E:$E,B$2) -> 0 | D28: =SUMIFS(ежемесячный!$F:$F,ежемесячный!$C:$C,$A28,ежемесячный!$D:$D,$A$1,ежемесячный!$E:$E,D$2) -> 0 | E28: =SUMIFS(ежемесячный!$G:$G,ежемесячный!$C:$C,$A28,ежемесячный!$D:$D,$A$1,ежемесячный!$E:$E,D$2) -> 0 | F28: =SUMIFS(ежемесячный!$F:$F,ежемесячный!$C:$C,$A28,ежемесячный!$D:$D,$A$1,ежемесячный!$E:$E,F$2) -> 0 | G28: =SUMIFS(ежемесячный!$G:$G,ежемесячный!$C:$C,$A28,ежемесячный!$D:$D,$A$1,ежемесячный!$E:$E,F$2) -> 0 | H28: =SUMIFS(ежемесячный!$F:$F,ежемесячный!$C:$C,$A28,ежемесячный!$D:$D,$A$1,ежемесячный!$E:$E,H$2) -> 0 | I28: =SUMIFS(ежемесячный!$G:$G,ежемесячный!$C:$C,$A28,ежемесячный!$D:$D,$A$1,ежемесячный!$E:$E,H$2) -> 0 | J28: =SUMIFS(ежемесячный!$F:$F,ежемесячный!$C:$C,$A28,ежемесячный!$D:$D,$A$1,ежемесячный!$E:$E,J$2) -> 0 | K28: =SUMIFS(ежемесячный!$G:$G,ежемесячный!$C:$C,$A28,ежемесячный!$D:$D,$A$1,ежемесячный!$E:$E,J$2) -> 0 | L28: =SUMIFS(ежемесячный!$F:$F,ежемесячный!$C:$C,$A28,ежемесячный!$D:$D,$A$1,ежемесячный!$E:$E,L$2) -> 0 | M28: =SUMIFS(ежемесячный!$G:$G,ежемесячный!$C:$C,$A28,ежемесячный!$D:$D,$A$1,ежемесячный!$E:$E,L$2) -> 0 | N28: =SUMIFS(ежемесячный!$F:$F,ежемесячный!$C:$C,$A28,ежемесячный!$D:$D,$A$1,ежемесячный!$E:$E,N$2) -> 0 | O28: =SUMIFS(ежемесячный!$G:$G,ежемесячный!$C:$C,$A28,ежемесячный!$D:$D,$A$1,ежемесячный!$E:$E,N$2) -> 0 | P28: =SUMIFS(ежемесячный!$F:$F,ежемесячный!$C:$C,$A28,ежемесячный!$D:$D,$A$1,ежемесячный!$E:$E,P$2) -> 0 | Q28: =SUMIFS(ежемесячный!$G:$G,ежемесячный!$C:$C,$A28,ежемесячный!$D:$D,$A$1,ежемесячный!$E:$E,P$2) -> 0 | R28: =SUMIFS(ежемесячный!$F:$F,ежемесячный!$C:$C,$A28,ежемесячный!$D:$D,$A$1,ежемесячный!$E:$E,R$2) -> 0 | S28: =SUMIFS(ежемесячный!$G:$G,ежемесячный!$C:$C,$A28,ежемесячный!$D:$D,$A$1,ежемесячный!$E:$E,R$2) -> 0 | T28: =SUMIFS(ежемесячный!$F:$F,ежемесячный!$C:$C,$A28,ежемесячный!$D:$D,$A$1,ежемесячный!$E:$E,T$2) -> 0 | U28: =SUMIFS(ежемесячный!$G:$G,ежемесячный!$C:$C,$A28,ежемесячный!$D:$D,$A$1,ежемесячный!$E:$E,T$2) -> 0 | V28: 0
A29: 2014-03-25 | B29: =SUMIFS(ежемесячный!$F:$F,ежемесячный!$C:$C,$A29,ежемесячный!$D:$D,$A$1,ежемесячный!$E:$E,B$2) -> 0 | C29: =SUMIFS(ежемесячный!$G:$G,ежемесячный!$C:$C,$A29,ежемесячный!$D:$D,$A$1,ежемесячный!$E:$E,B$2) -> 0 | D29: =SUMIFS(ежемесячный!$F:$F,ежемесячный!$C:$C,$A29,ежемесячный!$D:$D,$A$1,ежемесячный!$E:$E,D$2) -> 0 | E29: =SUMIFS(ежемесячный!$G:$G,ежемесячный!$C:$C,$A29,ежемесячный!$D:$D,$A$1,ежемесячный!$E:$E,D$2) -> 0 | F29: =SUMIFS(ежемесячный!$F:$F,ежемесячный!$C:$C,$A29,ежемесячный!$D:$D,$A$1,ежемесячный!$E:$E,F$2) -> 0 | G29: =SUMIFS(ежемесячный!$G:$G,ежемесячный!$C:$C,$A29,ежемесячный!$D:$D,$A$1,ежемесячный!$E:$E,F$2) -> 0 | H29: =SUMIFS(ежемесячный!$F:$F,ежемесячный!$C:$C,$A29,ежемесячный!$D:$D,$A$1,ежемесячный!$E:$E,H$2) -> 0 | I29: =SUMIFS(ежемесячный!$G:$G,ежемесячный!$C:$C,$A29,ежемесячный!$D:$D,$A$1,ежемесячный!$E:$E,H$2) -> 0 | J29: =SUMIFS(ежемесячный!$F:$F,ежемесячный!$C:$C,$A29,ежемесячный!$D:$D,$A$1,ежемесячный!$E:$E,J$2) -> 0 | K29: =SUMIFS(ежемесячный!$G:$G,ежемесячный!$C:$C,$A29,ежемесячный!$D:$D,$A$1,ежемесячный!$E:$E,J$2) -> 0 | L29: =SUMIFS(ежемесячный!$F:$F,ежемесячный!$C:$C,$A29,ежемесячный!$D:$D,$A$1,ежемесячный!$E:$E,L$2) -> 0 | M29: =SUMIFS(ежемесячный!$G:$G,ежемесячный!$C:$C,$A29,ежемесячный!$D:$D,$A$1,ежемесячный!$E:$E,L$2) -> 0 | N29: =SUMIFS(ежемесячный!$F:$F,ежемесячный!$C:$C,$A29,ежемесячный!$D:$D,$A$1,ежемесячный!$E:$E,N$2) -> 0 | O29: =SUMIFS(ежемесячный!$G:$G,ежемесячный!$C:$C,$A29,ежемесячный!$D:$D,$A$1,ежемесячный!$E:$E,N$2) -> 0 | P29: =SUMIFS(ежемесячный!$F:$F,ежемесячный!$C:$C,$A29,ежемесячный!$D:$D,$A$1,ежемесячный!$E:$E,P$2) -> 0 | Q29: =SUMIFS(ежемесячный!$G:$G,ежемесячный!$C:$C,$A29,ежемесячный!$D:$D,$A$1,ежемесячный!$E:$E,P$2) -> 0 | R29: =SUMIFS(ежемесячный!$F:$F,ежемесячный!$C:$C,$A29,ежемесячный!$D:$D,$A$1,ежемесячный!$E:$E,R$2) -> 0 | S29: =SUMIFS(ежемесячный!$G:$G,ежемесячный!$C:$C,$A29,ежемесячный!$D:$D,$A$1,ежемесячный!$E:$E,R$2) -> 0 | T29: =SUMIFS(ежемесячный!$F:$F,ежемесячный!$C:$C,$A29,ежемесячный!$D:$D,$A$1,ежемесячный!$E:$E,T$2) -> 0 | U29: =SUMIFS(ежемесячный!$G:$G,ежемесячный!$C:$C,$A29,ежемесячный!$D:$D,$A$1,ежемесячный!$E:$E,T$2) -> 0 | V29: 0
A30: 2014-03-26 | B30: =SUMIFS(ежемесячный!$F:$F,ежемесячный!$C:$C,$A30,ежемесячный!$D:$D,$A$1,ежемесячный!$E:$E,B$2) -> 0 | C30: =SUMIFS(ежемесячный!$G:$G,ежемесячный!$C:$C,$A30,ежемесячный!$D:$D,$A$1,ежемесячный!$E:$E,B$2) -> 0 | D30: =SUMIFS(ежемесячный!$F:$F,ежемесячный!$C:$C,$A30,ежемесячный!$D:$D,$A$1,ежемесячный!$E:$E,D$2) -> 0 | E30: =SUMIFS(ежемесячный!$G:$G,ежемесячный!$C:$C,$A30,ежемесячный!$D:$D,$A$1,ежемесячный!$E:$E,D$2) -> 0 | F30: =SUMIFS(ежемесячный!$F:$F,ежемесячный!$C:$C,$A30,ежемесячный!$D:$D,$A$1,ежемесячный!$E:$E,F$2) -> 0 | G30: =SUMIFS(ежемесячный!$G:$G,ежемесячный!$C:$C,$A30,ежемесячный!$D:$D,$A$1,ежемесячный!$E:$E,F$2) -> 0 | H30: =SUMIFS(ежемесячный!$F:$F,ежемесячный!$C:$C,$A30,ежемесячный!$D:$D,$A$1,ежемесячный!$E:$E,H$2) -> 0 | I30: =SUMIFS(ежемесячный!$G:$G,ежемесячный!$C:$C,$A30,ежемесячный!$D:$D,$A$1,ежемесячный!$E:$E,H$2) -> 0 | J30: =SUMIFS(ежемесячный!$F:$F,ежемесячный!$C:$C,$A30,ежемесячный!$D:$D,$A$1,ежемесячный!$E:$E,J$2) -> 0 | K30: =SUMIFS(ежемесячный!$G:$G,ежемесячный!$C:$C,$A30,ежемесячный!$D:$D,$A$1,ежемесячный!$E:$E,J$2) -> 0 | L30: =SUMIFS(ежемесячный!$F:$F,ежемесячный!$C:$C,$A30,ежемесячный!$D:$D,$A$1,ежемесячный!$E:$E,L$2) -> 0 | M30: =SUMIFS(ежемесячный!$G:$G,ежемесячный!$C:$C,$A30,ежемесячный!$D:$D,$A$1,ежемесячный!$E:$E,L$2) -> 0 | N30: =SUMIFS(ежемесячный!$F:$F,ежемесячный!$C:$C,$A30,ежемесячный!$D:$D,$A$1,ежемесячный!$E:$E,N$2) -> 0 | O30: =SUMIFS(ежемесячный!$G:$G,ежемесячный!$C:$C,$A30,ежемесячный!$D:$D,$A$1,ежемесячный!$E:$E,N$2) -> 0 | P30: =SUMIFS(ежемесячный!$F:$F,ежемесячный!$C:$C,$A30,ежемесячный!$D:$D,$A$1,ежемесячный!$E:$E,P$2) -> 0 | Q30: =SUMIFS(ежемесячный!$G:$G,ежемесячный!$C:$C,$A30,ежемесячный!$D:$D,$A$1,ежемесячный!$E:$E,P$2) -> 0 | R30: =SUMIFS(ежемесячный!$F:$F,ежемесячный!$C:$C,$A30,ежемесячный!$D:$D,$A$1,ежемесячный!$E:$E,R$2) -> 0 | S30: =SUMIFS(ежемесячный!$G:$G,ежемесячный!$C:$C,$A30,ежемесячный!$D:$D,$A$1,ежемесячный!$E:$E,R$2) -> 0 | T30: =SUMIFS(ежемесячный!$F:$F,ежемесячный!$C:$C,$A30,ежемесячный!$D:$D,$A$1,ежемесячный!$E:$E,T$2) -> 0 | U30: =SUMIFS(ежемесячный!$G:$G,ежемесячный!$C:$C,$A30,ежемесячный!$D:$D,$A$1,ежемесячный!$E:$E,T$2) -> 0 | V30: 0
A31: 2014-03-27 | B31: =SUMIFS(ежемесячный!$F:$F,ежемесячный!$C:$C,$A31,ежемесячный!$D:$D,$A$1,ежемесячный!$E:$E,B$2) -> 0 | C31: =SUMIFS(ежемесячный!$G:$G,ежемесячный!$C:$C,$A31,ежемесячный!$D:$D,$A$1,ежемесячный!$E:$E,B$2) -> 0 | D31: =SUMIFS(ежемесячный!$F:$F,ежемесячный!$C:$C,$A31,ежемесячный!$D:$D,$A$1,ежемесячный!$E:$E,D$2) -> 0 | E31: =SUMIFS(ежемесячный!$G:$G,ежемесячный!$C:$C,$A31,ежемесячный!$D:$D,$A$1,ежемесячный!$E:$E,D$2) -> 0 | F31: =SUMIFS(ежемесячный!$F:$F,ежемесячный!$C:$C,$A31,ежемесячный!$D:$D,$A$1,ежемесячный!$E:$E,F$2) -> 0 | G31: =SUMIFS(ежемесячный!$G:$G,ежемесячный!$C:$C,$A31,ежемесячный!$D:$D,$A$1,ежемесячный!$E:$E,F$2) -> 0 | H31: =SUMIFS(ежемесячный!$F:$F,ежемесячный!$C:$C,$A31,ежемесячный!$D:$D,$A$1,ежемесячный!$E:$E,H$2) -> 0 | I31: =SUMIFS(ежемесячный!$G:$G,ежемесячный!$C:$C,$A31,ежемесячный!$D:$D,$A$1,ежемесячный!$E:$E,H$2) -> 0 | J31: =SUMIFS(ежемесячный!$F:$F,ежемесячный!$C:$C,$A31,ежемесячный!$D:$D,$A$1,ежемесячный!$E:$E,J$2) -> 0 | K31: =SUMIFS(ежемесячный!$G:$G,ежемесячный!$C:$C,$A31,ежемесячный!$D:$D,$A$1,ежемесячный!$E:$E,J$2) -> 0 | L31: =SUMIFS(ежемесячный!$F:$F,ежемесячный!$C:$C,$A31,ежемесячный!$D:$D,$A$1,ежемесячный!$E:$E,L$2) -> 0 | M31: =SUMIFS(ежемесячный!$G:$G,ежемесячный!$C:$C,$A31,ежемесячный!$D:$D,$A$1,ежемесячный!$E:$E,L$2) -> 0 | N31: =SUMIFS(ежемесячный!$F:$F,ежемесячный!$C:$C,$A31,ежемесячный!$D:$D,$A$1,ежемесячный!$E:$E,N$2) -> 0 | O31: =SUMIFS(ежемесячный!$G:$G,ежемесячный!$C:$C,$A31,ежемесячный!$D:$D,$A$1,ежемесячный!$E:$E,N$2) -> 0 | P31: =SUMIFS(ежемесячный!$F:$F,ежемесячный!$C:$C,$A31,ежемесячный!$D:$D,$A$1,ежемесячный!$E:$E,P$2) -> 0 | Q31: =SUMIFS(ежемесячный!$G:$G,ежемесячный!$C:$C,$A31,ежемесячный!$D:$D,$A$1,ежемесячный!$E:$E,P$2) -> 0 | R31: =SUMIFS(ежемесячный!$F:$F,ежемесячный!$C:$C,$A31,ежемесячный!$D:$D,$A$1,ежемесячный!$E:$E,R$2) -> 0 | S31: =SUMIFS(ежемесячный!$G:$G,ежемесячный!$C:$C,$A31,ежемесячный!$D:$D,$A$1,ежемесячный!$E:$E,R$2) -> 0 | T31: =SUMIFS(ежемесячный!$F:$F,ежемесячный!$C:$C,$A31,ежемесячный!$D:$D,$A$1,ежемесячный!$E:$E,T$2) -> 0 | U31: =SUMIFS(ежемесячный!$G:$G,ежемесячный!$C:$C,$A31,ежемесячный!$D:$D,$A$1,ежемесячный!$E:$E,T$2) -> 0 | V31: 0
A32: 2014-03-28 | B32: =SUMIFS(ежемесячный!$F:$F,ежемесячный!$C:$C,$A32,ежемесячный!$D:$D,$A$1,ежемесячный!$E:$E,B$2) -> 0 | C32: =SUMIFS(ежемесячный!$G:$G,ежемесячный!$C:$C,$A32,ежемесячный!$D:$D,$A$1,ежемесячный!$E:$E,B$2) -> 0 | D32: =SUMIFS(ежемесячный!$F:$F,ежемесячный!$C:$C,$A32,ежемесячный!$D:$D,$A$1,ежемесячный!$E:$E,D$2) -> 0 | E32: =SUMIFS(ежемесячный!$G:$G,ежемесячный!$C:$C,$A32,ежемесячный!$D:$D,$A$1,ежемесячный!$E:$E,D$2) -> 0 | F32: =SUMIFS(ежемесячный!$F:$F,ежемесячный!$C:$C,$A32,ежемесячный!$D:$D,$A$1,ежемесячный!$E:$E,F$2) -> 0 | G32: =SUMIFS(ежемесячный!$G:$G,ежемесячный!$C:$C,$A32,ежемесячный!$D:$D,$A$1,ежемесячный!$E:$E,F$2) -> 0 | H32: =SUMIFS(ежемесячный!$F:$F,ежемесячный!$C:$C,$A32,ежемесячный!$D:$D,$A$1,ежемесячный!$E:$E,H$2) -> 0 | I32: =SUMIFS(ежемесячный!$G:$G,ежемесячный!$C:$C,$A32,ежемесячный!$D:$D,$A$1,ежемесячный!$E:$E,H$2) -> 0 | J32: =SUMIFS(ежемесячный!$F:$F,ежемесячный!$C:$C,$A32,ежемесячный!$D:$D,$A$1,ежемесячный!$E:$E,J$2) -> 0 | K32: =SUMIFS(ежемесячный!$G:$G,ежемесячный!$C:$C,$A32,ежемесячный!$D:$D,$A$1,ежемесячный!$E:$E,J$2) -> 0 | L32: =SUMIFS(ежемесячный!$F:$F,ежемесячный!$C:$C,$A32,ежемесячный!$D:$D,$A$1,ежемесячный!$E:$E,L$2) -> 0 | M32: =SUMIFS(ежемесячный!$G:$G,ежемесячный!$C:$C,$A32,ежемесячный!$D:$D,$A$1,ежемесячный!$E:$E,L$2) -> 0 | N32: =SUMIFS(ежемесячный!$F:$F,ежемесячный!$C:$C,$A32,ежемесячный!$D:$D,$A$1,ежемесячный!$E:$E,N$2) -> 0 | O32: =SUMIFS(ежемесячный!$G:$G,ежемесячный!$C:$C,$A32,ежемесячный!$D:$D,$A$1,ежемесячный!$E:$E,N$2) -> 0 | P32: =SUMIFS(ежемесячный!$F:$F,ежемесячный!$C:$C,$A32,ежемесячный!$D:$D,$A$1,ежемесячный!$E:$E,P$2) -> 0 | Q32: =SUMIFS(ежемесячный!$G:$G,ежемесячный!$C:$C,$A32,ежемесячный!$D:$D,$A$1,ежемесячный!$E:$E,P$2) -> 0 | R32: =SUMIFS(ежемесячный!$F:$F,ежемесячный!$C:$C,$A32,ежемесячный!$D:$D,$A$1,ежемесячный!$E:$E,R$2) -> 0 | S32: =SUMIFS(ежемесячный!$G:$G,ежемесячный!$C:$C,$A32,ежемесячный!$D:$D,$A$1,ежемесячный!$E:$E,R$2) -> 0 | T32: =SUMIFS(ежемесячный!$F:$F,ежемесячный!$C:$C,$A32,ежемесячный!$D:$D,$A$1,ежемесячный!$E:$E,T$2) -> 0 | U32: =SUMIFS(ежемесячный!$G:$G,ежемесячный!$C:$C,$A32,ежемесячный!$D:$D,$A$1,ежемесячный!$E:$E,T$2) -> 0 | V32: 0
A33: 2014-03-29 | B33: =SUMIFS(ежемесячный!$F:$F,ежемесячный!$C:$C,$A33,ежемесячный!$D:$D,$A$1,ежемесячный!$E:$E,B$2) -> 0 | C33: =SUMIFS(ежемесячный!$G:$G,ежемесячный!$C:$C,$A33,ежемесячный!$D:$D,$A$1,ежемесячный!$E:$E,B$2) -> 0 | D33: =SUMIFS(ежемесячный!$F:$F,ежемесячный!$C:$C,$A33,ежемесячный!$D:$D,$A$1,ежемесячный!$E:$E,D$2) -> 0 | E33: =SUMIFS(ежемесячный!$G:$G,ежемесячный!$C:$C,$A33,ежемесячный!$D:$D,$A$1,ежемесячный!$E:$E,D$2) -> 0 | F33: =SUMIFS(ежемесячный!$F:$F,ежемесячный!$C:$C,$A33,ежемесячный!$D:$D,$A$1,ежемесячный!$E:$E,F$2) -> 0 | G33: =SUMIFS(ежемесячный!$G:$G,ежемесячный!$C:$C,$A33,ежемесячный!$D:$D,$A$1,ежемесячный!$E:$E,F$2) -> 0 | H33: =SUMIFS(ежемесячный!$F:$F,ежемесячный!$C:$C,$A33,ежемесячный!$D:$D,$A$1,ежемесячный!$E:$E,H$2) -> 0 | I33: =SUMIFS(ежемесячный!$G:$G,ежемесячный!$C:$C,$A33,ежемесячный!$D:$D,$A$1,ежемесячный!$E:$E,H$2) -> 0 | J33: =SUMIFS(ежемесячный!$F:$F,ежемесячный!$C:$C,$A33,ежемесячный!$D:$D,$A$1,ежемесячный!$E:$E,J$2) -> 0 | K33: =SUMIFS(ежемесячный!$G:$G,ежемесячный!$C:$C,$A33,ежемесячный!$D:$D,$A$1,ежемесячный!$E:$E,J$2) -> 0 | L33: =SUMIFS(ежемесячный!$F:$F,ежемесячный!$C:$C,$A33,ежемесячный!$D:$D,$A$1,ежемесячный!$E:$E,L$2) -> 0 | M33: =SUMIFS(ежемесячный!$G:$G,ежемесячный!$C:$C,$A33,ежемесячный!$D:$D,$A$1,ежемесячный!$E:$E,L$2) -> 0 | N33: =SUMIFS(ежемесячный!$F:$F,ежемесячный!$C:$C,$A33,ежемесячный!$D:$D,$A$1,ежемесячный!$E:$E,N$2) -> 0 | O33: =SUMIFS(ежемесячный!$G:$G,ежемесячный!$C:$C,$A33,ежемесячный!$D:$D,$A$1,ежемесячный!$E:$E,N$2) -> 0 | P33: =SUMIFS(ежемесячный!$F:$F,ежемесячный!$C:$C,$A33,ежемесячный!$D:$D,$A$1,ежемесячный!$E:$E,P$2) -> 0 | Q33: =SUMIFS(ежемесячный!$G:$G,ежемесячный!$C:$C,$A33,ежемесячный!$D:$D,$A$1,ежемесячный!$E:$E,P$2) -> 0 | R33: =SUMIFS(ежемесячный!$F:$F,ежемесячный!$C:$C,$A33,ежемесячный!$D:$D,$A$1,ежемесячный!$E:$E,R$2) -> 0 | S33: =SUMIFS(ежемесячный!$G:$G,ежемесячный!$C:$C,$A33,ежемесячный!$D:$D,$A$1,ежемесячный!$E:$E,R$2) -> 0 | T33: =SUMIFS(ежемесячный!$F:$F,ежемесячный!$C:$C,$A33,ежемесячный!$D:$D,$A$1,ежемесячный!$E:$E,T$2) -> 0 | U33: =SUMIFS(ежемесячный!$G:$G,ежемесячный!$C:$C,$A33,ежемесячный!$D:$D,$A$1,ежемесячный!$E:$E,T$2) -> 0 | V33: 0
A34: 2014-03-30 | B34: =SUMIFS(ежемесячный!$F:$F,ежемесячный!$C:$C,$A34,ежемесячный!$D:$D,$A$1,ежемесячный!$E:$E,B$2) -> 0 | C34: =SUMIFS(ежемесячный!$G:$G,ежемесячный!$C:$C,$A34,ежемесячный!$D:$D,$A$1,ежемесячный!$E:$E,B$2) -> 0 | D34: =SUMIFS(ежемесячный!$F:$F,ежемесячный!$C:$C,$A34,ежемесячный!$D:$D,$A$1,ежемесячный!$E:$E,D$2) -> 0 | E34: =SUMIFS(ежемесячный!$G:$G,ежемесячный!$C:$C,$A34,ежемесячный!$D:$D,$A$1,ежемесячный!$E:$E,D$2) -> 0 | F34: =SUMIFS(ежемесячный!$F:$F,ежемесячный!$C:$C,$A34,ежемесячный!$D:$D,$A$1,ежемесячный!$E:$E,F$2) -> 0 | G34: =SUMIFS(ежемесячный!$G:$G,ежемесячный!$C:$C,$A34,ежемесячный!$D:$D,$A$1,ежемесячный!$E:$E,F$2) -> 0 | H34: =SUMIFS(ежемесячный!$F:$F,ежемесячный!$C:$C,$A34,ежемесячный!$D:$D,$A$1,ежемесячный!$E:$E,H$2) -> 0 | I34: =SUMIFS(ежемесячный!$G:$G,ежемесячный!$C:$C,$A34,ежемесячный!$D:$D,$A$1,ежемесячный!$E:$E,H$2) -> 0 | J34: =SUMIFS(ежемесячный!$F:$F,ежемесячный!$C:$C,$A34,ежемесячный!$D:$D,$A$1,ежемесячный!$E:$E,J$2) -> 0 | K34: =SUMIFS(ежемесячный!$G:$G,ежемесячный!$C:$C,$A34,ежемесячный!$D:$D,$A$1,ежемесячный!$E:$E,J$2) -> 0 | L34: =SUMIFS(ежемесячный!$F:$F,ежемесячный!$C:$C,$A34,ежемесячный!$D:$D,$A$1,ежемесячный!$E:$E,L$2) -> 0 | M34: =SUMIFS(ежемесячный!$G:$G,ежемесячный!$C:$C,$A34,ежемесячный!$D:$D,$A$1,ежемесячный!$E:$E,L$2) -> 0 | N34: =SUMIFS(ежемесячный!$F:$F,ежемесячный!$C:$C,$A34,ежемесячный!$D:$D,$A$1,ежемесячный!$E:$E,N$2) -> 0 | O34: =SUMIFS(ежемесячный!$G:$G,ежемесячный!$C:$C,$A34,ежемесячный!$D:$D,$A$1,ежемесячный!$E:$E,N$2) -> 0 | P34: =SUMIFS(ежемесячный!$F:$F,ежемесячный!$C:$C,$A34,ежемесячный!$D:$D,$A$1,ежемесячный!$E:$E,P$2) -> 0 | Q34: =SUMIFS(ежемесячный!$G:$G,ежемесячный!$C:$C,$A34,ежемесячный!$D:$D,$A$1,ежемесячный!$E:$E,P$2) -> 0 | R34: =SUMIFS(ежемесячный!$F:$F,ежемесячный!$C:$C,$A34,ежемесячный!$D:$D,$A$1,ежемесячный!$E:$E,R$2) -> 0 | S34: =SUMIFS(ежемесячный!$G:$G,ежемесячный!$C:$C,$A34,ежемесячный!$D:$D,$A$1,ежемесячный!$E:$E,R$2) -> 0 | T34: =SUMIFS(ежемесячный!$F:$F,ежемесячный!$C:$C,$A34,ежемесячный!$D:$D,$A$1,ежемесячный!$E:$E,T$2) -> 0 | U34: =SUMIFS(ежемесячный!$G:$G,ежемесячный!$C:$C,$A34,ежемесячный!$D:$D,$A$1,ежемесячный!$E:$E,T$2) -> 0 | V34: 0
A35: 2014-03-31 | B35: =SUMIFS(ежемесячный!$F:$F,ежемесячный!$C:$C,$A35,ежемесячный!$D:$D,$A$1,ежемесячный!$E:$E,B$2) -> 0 | C35: =SUMIFS(ежемесячный!$G:$G,ежемесячный!$C:$C,$A35,ежемесячный!$D:$D,$A$1,ежемесячный!$E:$E,B$2) -> 0 | D35: =SUMIFS(ежемесячный!$F:$F,ежемесячный!$C:$C,$A35,ежемесячный!$D:$D,$A$1,ежемесячный!$E:$E,D$2) -> 0 | E35: =SUMIFS(ежемесячный!$G:$G,ежемесячный!$C:$C,$A35,ежемесячный!$D:$D,$A$1,ежемесячный!$E:$E,D$2) -> 0 | F35: =SUMIFS(ежемесячный!$F:$F,ежемесячный!$C:$C,$A35,ежемесячный!$D:$D,$A$1,ежемесячный!$E:$E,F$2) -> 0 | G35: =SUMIFS(ежемесячный!$G:$G,ежемесячный!$C:$C,$A35,ежемесячный!$D:$D,$A$1,ежемесячный!$E:$E,F$2) -> 0 | H35: =SUMIFS(ежемесячный!$F:$F,ежемесячный!$C:$C,$A35,ежемесячный!$D:$D,$A$1,ежемесячный!$E:$E,H$2) -> 0 | I35: =SUMIFS(ежемесячный!$G:$G,ежемесячный!$C:$C,$A35,ежемесячный!$D:$D,$A$1,ежемесячный!$E:$E,H$2) -> 0 | J35: =SUMIFS(ежемесячный!$F:$F,ежемесячный!$C:$C,$A35,ежемесячный!$D:$D,$A$1,ежемесячный!$E:$E,J$2) -> 0 | K35: =SUMIFS(ежемесячный!$G:$G,ежемесячный!$C:$C,$A35,ежемесячный!$D:$D,$A$1,ежемесячный!$E:$E,J$2) -> 0 | L35: =SUMIFS(ежемесячный!$F:$F,ежемесячный!$C:$C,$A35,ежемесячный!$D:$D,$A$1,ежемесячный!$E:$E,L$2) -> 0 | M35: =SUMIFS(ежемесячный!$G:$G,ежемесячный!$C:$C,$A35,ежемесячный!$D:$D,$A$1,ежемесячный!$E:$E,L$2) -> 0 | N35: =SUMIFS(ежемесячный!$F:$F,ежемесячный!$C:$C,$A35,ежемесячный!$D:$D,$A$1,ежемесячный!$E:$E,N$2) -> 0 | O35: =SUMIFS(ежемесячный!$G:$G,ежемесячный!$C:$C,$A35,ежемесячный!$D:$D,$A$1,ежемесячный!$E:$E,N$2) -> 0 | P35: =SUMIFS(ежемесячный!$F:$F,ежемесячный!$C:$C,$A35,ежемесячный!$D:$D,$A$1,ежемесячный!$E:$E,P$2) -> 0 | Q35: =SUMIFS(ежемесячный!$G:$G,ежемесячный!$C:$C,$A35,ежемесячный!$D:$D,$A$1,ежемесячный!$E:$E,P$2) -> 0 | R35: =SUMIFS(ежемесячный!$F:$F,ежемесячный!$C:$C,$A35,ежемесячный!$D:$D,$A$1,ежемесячный!$E:$E,R$2) -> 0 | S35: =SUMIFS(ежемесячный!$G:$G,ежемесячный!$C:$C,$A35,ежемесячный!$D:$D,$A$1,ежемесячный!$E:$E,R$2) -> 0 | T35: =SUMIFS(ежемесячный!$F:$F,ежемесячный!$C:$C,$A35,ежемесячный!$D:$D,$A$1,ежемесячный!$E:$E,T$2) -> 0 | U35: =SUMIFS(ежемесячный!$G:$G,ежемесячный!$C:$C,$A35,ежемесячный!$D:$D,$A$1,ежемесячный!$E:$E,T$2) -> 0 | V35: 0
B36: =SUM(B5:B35) -> 759 | C36: =SUM(C5:C35) -> 110757 | D36: =SUM(D5:D35) -> 140 | E36: 201277 | F36: 12 | G36: 82875 | H36: 478 | I36: 14785 | J36: 6 | K36: 90000 | L36: 786 | M36: 78043 | O36: 3532087 | Q36: 385963 | S36: 6488314 | T36: 161 | U36: 539563 | V36: 11523664
B38: кол-во прин.ПО | D38: =B36+D36+F36+H36+J36+L36+T36 -> 2342
B39: сумма доходов | D39: =V36 -> 11523664
